{"text_format":"1","workbook":"xlsx","n_sheets":9,"sheets":["Calculator & BOM","OUT-IN Open Flush Bolt","OUT-IN Open Rebated","OUT-IN Opening","Product List","List","Working","DoorCalc","Pricing"],"not_rendered":{"charts":0,"images":7,"macros":1,"external_links":1,"defined_names":123,"comments":2,"pivot_tables":0},"unopened":[],"bounds":{"document_bytes":16777216,"sheet_cells":100000,"rows_first":2000,"rows_last":500,"rows_between":2000,"halvings":0,"cell_chars":16384,"cell_head_chars":4096},"cells_cut":0,"cells_raw":0,"read":"whole","date_system":"1900"}

{"sheet":"Calculator & BOM","index":0,"n_rows":109,"n_cols":62,"rows_kept":109,"cut":false,"hidden":false,"merged":[[4,0,7,0],[29,1,29,2],[30,1,30,2],[31,1,31,2],[32,1,32,2],[33,1,33,2],[28,4,28,7],[29,4,29,7],[13,1,13,2],[4,2,4,11],[21,1,21,7],[26,4,26,7],[18,9,18,10],[19,9,19,10],[20,9,20,10],[21,9,21,10],[22,9,22,10],[23,9,23,10],[24,9,24,10],[25,9,25,10],[26,9,26,10],[25,1,25,2],[26,1,26,2],[27,1,27,2],[28,1,28,2],[25,4,25,7],[27,4,27,7],[6,2,6,11],[10,1,10,2],[22,1,22,2],[23,1,23,2],[24,1,24,2],[23,4,23,7],[22,4,22,7],[24,4,24,7],[65,1,65,11],[34,4,34,7],[30,9,30,10],[31,9,31,10],[36,9,36,14],[32,4,32,7],[36,4,36,7],[33,4,33,7],[30,4,30,7],[31,4,31,7],[61,2,61,11],[62,2,62,11],[58,1,58,12],[63,2,63,9],[34,1,34,2],[60,2,60,11],[1,1,1,14],[17,1,17,2],[15,4,15,6],[17,4,17,6],[11,1,11,2],[14,1,14,2],[15,1,15,2],[16,1,16,2],[9,1,9,7],[12,1,12,2],[16,4,16,6],[3,1,3,11],[7,2,7,9],[3,12,7,14],[8,1,8,14],[5,2,5,11],[27,9,27,10],[10,37,10,40],[14,4,14,6],[13,4,13,6],[10,4,10,6],[11,4,11,6],[12,4,12,6]]}
[]
[null,"VIO Folding Door Hardware Calculator"]
[]
[null,"Customer & Project Information"]
["Use \"Tab\" key or \"Mouse\" to navigate inputs","Customer:"]
[null,"Customer ID:"]
[null,"Project:"]
[null,"Puchase Order Nº:",null,null,null,null,null,null,null,null,"Date:",{"$f":"TODAY()","v":"2021-10-15"}]
[null,null,null,null,null,null,null,null,null,null,null,null,null,null,null,null,{"$f":"SUM(Q10:Q33)","v":0}]
[null,"Opening information"]
[null,"Opening or Panel Width",null,null,"Select",null,null,null,null,null,null,null,null,null,null,null,null,null,null,null,null,null,null,null,null,null,null,null,null,null,null,null,null,null,null,null,null,{"$f":"IF(COUNTA(C13:C14)-COUNTBLANK(C13:C14)>0,\"Red items below are incorrect\",\"\")","v":""}]
[null,"All Dimensions are:",null,null,"Metric"]
[null,{"$f":"IF($E$11=\"Panel Width\",\"Panel Width (mm)\",\"Opening Width (mm)\")","v":"Opening Width (mm)"}]
[null,{"$f":"IF($E$11=\"Panel Width\",\"Panel Height (mm)\",\"Opening Height (mm)\")","v":"Opening Height (mm)"}]
[null,"Number of Panels Left"]
[null,"Number of Panels Right"]
[null,"Panel Weight 50 / 100kg",null,null,"Select"]
[null,"Panel Opening Outward/Inward",null,null,"Select",null,null,null,null,"Summary of Opening Information"]
[null,null,null,null,null,null,null,null,null,"Total number of Panels",null,{"$f":"List!K14","v":0}]
[null,null,null,null,null,null,null,null,null,"Opening Width (OW)",null,{"$f":"IF(Start_With=\"Panel Width\",List!S14,List!L14)","v":0}]
[null,null,null,null,null,null,null,null,null,"Opening Height (OH)",null,{"$f":"List!B26","v":""}]
[null,"Select Options & Finish",null,null,null,null,null,null,null,"Track Depth (TH)",null,{"$f":"List!H26","v":""}]
[null,"Hinge Type",null,null,"Non-Mortice",null,null,null,null,"Top Clearance (TC)",null,{"$f":"List!$I$26","v":""}]
[null,"Optional Security Hinge",null,null,"Select",null,null,null,null,"Bottom Clearance (BC)",null,{"$f":"List!J26","v":""}]
[null,"Hardware Finish",null,null,"Select",null,null,null,null,"Adjusted Panel Height (PH)",null,{"$f":"List!G26","v":""},null,null,null,null,{"$f":"IF(O37>0,O37*M37,0)","v":0}]
[null,"Rebated Meeting Stile",null,null,"Select",null,null,null,null,"Adjusted Panel Width (DW)",null,{"$f":"IFERROR(IF(Start_With=\"Panel Width\",List!R14,List!P14),\"\")","v":""}]
[null,"Seal Colour",null,null,"Select",null,null,null,null,"Jamb/Frame Clearance (FG)",null,{"$f":"List!M26","v":""}]
[null,"Locking System",null,null,"Flush Bolts",null,null,null,null,"Panel-to-Panel Gap (DG)",null,{"$f":"List!N26","v":""}]
[null,"Flush Bolts Sizes",null,null,"Select"]
[null,"Locking Flush Bolts",null,null,"Select"]
[null,"Active Door: Mortice Lock (ML)",null,null,"Select"]
[null,"Euro Cylinder",null,null,"Select"]
[null,"Handle/Lever Set",null,null,"Select",null,null,null,null,null,null,null,null,null,null,null,null,null,null,null,null,null,null,null,null,null,null,null,null,null,null,null,{"$f":"IF(AND(BothSetsOdd,LeftDoorCatch<>RightDoorCatch,LeftDoorCatch<>\"None\",RightDoorCatch<>\"None\"),\"Door Catch finishes do not match. Please correct your selection\",\"\")","v":""}]
[null,"Magnetic Holder",null,null,"Select"]
[null,"Input Magnetic Holder Quantity"]
[]
[null,"Total Nº of Panels",{"$f":"E15+E16","v":0},null,"Door handing viewed from the OUTSIDE",null,null,null,null,"Hangers,Guides & Hinge sets: Left to Right (from outside)",null,null,null,null,null,null,"Out in Opening Ref1","Colour Ref","Out in Opening Column Reference",{"$f":"COUNTIF($J$38:$J38,J38)","v":1},{"$f":"IF(T37=1,J38,\"\")","v":""},1,null,null,null,null,null,null,null,null,null,null,{"$f":"IF(Rebated,\"Not End Panels\",\"\")","v":""}]
[null,{"$f":"IF(Working!F50<>\"\",IF(Working!F50<=Num_Left,\"Left\",\"Right\")&\" Door Nº\"&Working!F50,\"\")","v":""},null,{"$f":"IF(F38=\"\",IF(D39=\"\",\"\",\" \"),IF(Working!F50<=Num_Left,IF(MOD(Working!F50,2)=0,\"\\\",\"/\"),IF(MOD(Total_Num_of_Panels-Working!F50,2)=0,\"\\\",\"/\")))","v":""},null,{"$f":"IF(AND(B38<>\"\",Start_With=\"Panel Width\"),List!$R$2,IF(AND(B38<>\"\",Start_With=\"Opening Width\"),List!$P$2,\"\"))","v":""},{"$f":"IF(F38=\"\",\"\",IF(AND(Working!F50<>Num_Left,Working!F50<>Total_Num_of_Panels-Num_Right+1),IF(Working!F50<=Num_Left,IF(MOD(Working!F50,2)=0,\"\",\"Flush Bolts\"),IF(MOD(Total_Num_of_Panels-Working!F50,2)=0,\"Flush Bolts\",\"\")),IF(AND(Working!F50=Num_Left,MOD(Num_Left,2)=1,MOD(Num_Right,2)=1),\"Flush Bolts\",\"\")))","v":""},{"$f":"IFERROR(IF($E$18=\"select\",\"\",IF(INDEX(INDIRECT(\"'OUT-IN Open Flush Bolt'!\"&S38),MATCH($Q$38,'OUT-IN Open Flush Bolt'!A:A,0))=\"\",\"\",INDEX(INDIRECT(\"'OUT-IN Open Flush Bolt'!\"&S38),MATCH($Q$38,'OUT-IN Open Flush Bolt'!A:A,0)))),\"\")","v":""},null,{"$f":"IFERROR(IF($E$26=\"select\",\"\",IF($E$26=\"No\",IF(INDEX(INDIRECT(\"'OUT-IN Opening'!\"&S38),MATCH($Q$38,'OUT-IN Opening'!$A:$A,0))=\"\",\"\",INDEX(INDIRECT(\"'OUT-IN Opening'!\"&S38),MATCH($Q$38,'OUT-IN Opening'!$A:$A,0))&$R$38),IF(INDEX(INDIRECT(\"'OUT-IN Open Rebated'!\"&S38),MATCH($Q$38,'OUT-IN Open Rebated'!A:A,0))=\"\",\"\",INDEX(INDIRECT(\"'OUT-IN Open Rebated'!\"&S38),MATCH($Q$38,'OUT-IN Open Rebated'!A:A,0))&$R$38))),\"\")","v":""},null,{"$f":"IF(J38<>\"\",1,\"\")","v":""},{"$f":"IF(L38<>\"\",\"set\",\"\")","v":""},null,null,null,{"$f":"IF(E18=\"Outward\",\"O\"&Num_Left&Num_Right,\"I\"&Num_Left&Num_Right)","v":"I"},{"$f":"INDEX(List!$AY$84:$AY$87,MATCH($E$25,List!$AX$88:$AX$91,0))","v":{"$error":"#N/A"}},"D:D",{"$f":"COUNTIF($J$38:$J39,J39)","v":2},"",{"$f":"IF(AND(U38<>\"\",T38=1),V37+1,V37)","v":1}]
[null,{"$f":"IF(Working!F51<>\"\",IF(Working!F51<=Num_Left,\"Left\",\"Right\")&\" Door Nº\"&Working!F51,\"\")","v":""},null,{"$f":"IF(F39=\"\",IF(D40=\"\",\"\",\" \"),IF(Working!F51<=Num_Left,IF(MOD(Working!F51,2)=0,\"\\\",\"/\"),IF(MOD(Total_Num_of_Panels-Working!F51,2)=0,\"\\\",\"/\")))","v":""},null,{"$f":"IF(AND(B39<>\"\",Start_With=\"Panel Width\"),List!$R$2,IF(AND(B39<>\"\",Start_With=\"Opening Width\"),List!$P$2,\"\"))","v":""},{"$f":"IF(F39=\"\",\"\",IF(AND(Working!F51<>Num_Left,Working!F51<>Total_Num_of_Panels-Num_Right+1),IF(Working!F51<=Num_Left,IF(MOD(Working!F51,2)=0,\"\",\"Dropbolts\"),IF(MOD(Total_Num_of_Panels-Working!F51,2)=0,\"Dropbolts\",\"\")),IF(AND(Working!F51=Num_Left,MOD(Num_Left,2)=1,MOD(Num_Right,2)=1),\"Dropbolts\",\"\")))","v":""},{"$f":"IFERROR(IF($E$18=\"select\",\"\",IF(INDEX(INDIRECT(\"'OUT-IN Open Flush Bolt'!\"&S39),MATCH($Q$38,'OUT-IN Open Flush Bolt'!A:A,0))=\"\",\"\",INDEX(INDIRECT(\"'OUT-IN Open Flush Bolt'!\"&S39),MATCH($Q$38,'OUT-IN Open Flush Bolt'!A:A,0)))),\"\")","v":""},null,{"$f":"IFERROR(IF($E$26=\"select\",\"\",IF($E$26=\"No\",IF(INDEX(INDIRECT(\"'OUT-IN Opening'!\"&S39),MATCH($Q$38,'OUT-IN Opening'!$A:$A,0))=\"\",\"\",INDEX(INDIRECT(\"'OUT-IN Opening'!\"&S39),MATCH($Q$38,'OUT-IN Opening'!$A:$A,0))&$R$38),IF(INDEX(INDIRECT(\"'OUT-IN Open Rebated'!\"&S39),MATCH($Q$38,'OUT-IN Open Rebated'!A:A,0))=\"\",\"\",INDEX(INDIRECT(\"'OUT-IN Open Rebated'!\"&S39),MATCH($Q$38,'OUT-IN Open Rebated'!A:A,0))&$R$38))),\"\")","v":""},null,{"$f":"IF(J39<>\"\",1,\"\")","v":""},"",null,null,null,null,null,{"$f":"CHAR(CODE(S38)+1)&\":\"&CHAR(CODE(S38)+1)","v":"E:E"},{"$f":"COUNTIF($J$38:$J40,J40)","v":3},"",{"$f":"IF(AND(U39<>\"\",T39=1),V38+1,V38)","v":1}]
[null,{"$f":"IF(Working!F52<>\"\",IF(Working!F52<=Num_Left,\"Left\",\"Right\")&\" Door Nº\"&Working!F52,\"\")","v":""},null,{"$f":"IF(F40=\"\",IF(D41=\"\",\"\",\" \"),IF(Working!F52<=Num_Left,IF(MOD(Working!F52,2)=0,\"\\\",\"/\"),IF(MOD(Total_Num_of_Panels-Working!F52,2)=0,\"\\\",\"/\")))","v":""},null,{"$f":"IF(AND(B40<>\"\",Start_With=\"Panel Width\"),List!$R$2,IF(AND(B40<>\"\",Start_With=\"Opening Width\"),List!$P$2,\"\"))","v":""},{"$f":"IF(F40=\"\",\"\",IF(AND(Working!F52<>Num_Left,Working!F52<>Total_Num_of_Panels-Num_Right+1),IF(Working!F52<=Num_Left,IF(MOD(Working!F52,2)=0,\"\",\"Dropbolts\"),IF(MOD(Total_Num_of_Panels-Working!F52,2)=0,\"Dropbolts\",\"\")),IF(AND(Working!F52=Num_Left,MOD(Num_Left,2)=1,MOD(Num_Right,2)=1),\"Dropbolts\",\"\")))","v":""},{"$f":"IFERROR(IF($E$18=\"select\",\"\",IF(INDEX(INDIRECT(\"'OUT-IN Open Flush Bolt'!\"&S40),MATCH($Q$38,'OUT-IN Open Flush Bolt'!A:A,0))=\"\",\"\",INDEX(INDIRECT(\"'OUT-IN Open Flush Bolt'!\"&S40),MATCH($Q$38,'OUT-IN Open Flush Bolt'!A:A,0)))),\"\")","v":""},null,{"$f":"IFERROR(IF($E$26=\"select\",\"\",IF($E$26=\"No\",IF(INDEX(INDIRECT(\"'OUT-IN Opening'!\"&S40),MATCH($Q$38,'OUT-IN Opening'!$A:$A,0))=\"\",\"\",INDEX(INDIRECT(\"'OUT-IN Opening'!\"&S40),MATCH($Q$38,'OUT-IN Opening'!$A:$A,0))&$R$38),IF(INDEX(INDIRECT(\"'OUT-IN Open Rebated'!\"&S40),MATCH($Q$38,'OUT-IN Open Rebated'!A:A,0))=\"\",\"\",INDEX(INDIRECT(\"'OUT-IN Open Rebated'!\"&S40),MATCH($Q$38,'OUT-IN Open Rebated'!A:A,0))&$R$38))),\"\")","v":""},null,"","",null,null,null,null,null,{"$f":"CHAR(CODE(S39)+1)&\":\"&CHAR(CODE(S39)+1)","v":"F:F"},{"$f":"COUNTIF($J$38:$J41,J41)","v":4},"",1]
[null,{"$f":"IF(Working!F53<>\"\",IF(Working!F53<=Num_Left,\"Left\",\"Right\")&\" Door Nº\"&Working!F53,\"\")","v":""},null,{"$f":"IF(F41=\"\",IF(D42=\"\",\"\",\" \"),IF(Working!F53<=Num_Left,IF(MOD(Working!F53,2)=0,\"\\\",\"/\"),IF(MOD(Total_Num_of_Panels-Working!F53,2)=0,\"\\\",\"/\")))","v":""},null,{"$f":"IF(AND(B41<>\"\",Start_With=\"Panel Width\"),List!$R$2,IF(AND(B41<>\"\",Start_With=\"Opening Width\"),List!$P$2,\"\"))","v":""},{"$f":"IF(F41=\"\",\"\",IF(AND(Working!F53<>Num_Left,Working!F53<>Total_Num_of_Panels-Num_Right+1),IF(Working!F53<=Num_Left,IF(MOD(Working!F53,2)=0,\"\",\"Dropbolts\"),IF(MOD(Total_Num_of_Panels-Working!F53,2)=0,\"Dropbolts\",\"\")),IF(AND(Working!F53=Num_Left,MOD(Num_Left,2)=1,MOD(Num_Right,2)=1),\"Dropbolts\",\"\")))","v":""},{"$f":"IFERROR(IF($E$18=\"select\",\"\",IF(INDEX(INDIRECT(\"'OUT-IN Open Flush Bolt'!\"&S41),MATCH($Q$38,'OUT-IN Open Flush Bolt'!A:A,0))=\"\",\"\",INDEX(INDIRECT(\"'OUT-IN Open Flush Bolt'!\"&S41),MATCH($Q$38,'OUT-IN Open Flush Bolt'!A:A,0)))),\"\")","v":""},null,{"$f":"IFERROR(IF($E$26=\"select\",\"\",IF($E$26=\"No\",IF(INDEX(INDIRECT(\"'OUT-IN Opening'!\"&S41),MATCH($Q$38,'OUT-IN Opening'!$A:$A,0))=\"\",\"\",INDEX(INDIRECT(\"'OUT-IN Opening'!\"&S41),MATCH($Q$38,'OUT-IN Opening'!$A:$A,0))&$R$38),IF(INDEX(INDIRECT(\"'OUT-IN Open Rebated'!\"&S41),MATCH($Q$38,'OUT-IN Open Rebated'!A:A,0))=\"\",\"\",INDEX(INDIRECT(\"'OUT-IN Open Rebated'!\"&S41),MATCH($Q$38,'OUT-IN Open Rebated'!A:A,0))&$R$38))),\"\")","v":""},null,"","",null,null,null,null,null,"G:G",{"$f":"COUNTIF($J$38:$J42,J42)","v":5},"",1]
[null,{"$f":"IF(Working!F54<>\"\",IF(Working!F54<=Num_Left,\"Left\",\"Right\")&\" Door Nº\"&Working!F54,\"\")","v":""},null,{"$f":"IF(F42=\"\",IF(D43=\"\",\"\",\" \"),IF(Working!F54<=Num_Left,IF(MOD(Working!F54,2)=0,\"\\\",\"/\"),IF(MOD(Total_Num_of_Panels-Working!F54,2)=0,\"\\\",\"/\")))","v":""},null,{"$f":"IF(AND(B42<>\"\",Start_With=\"Panel Width\"),List!$R$2,IF(AND(B42<>\"\",Start_With=\"Opening Width\"),List!$P$2,\"\"))","v":""},{"$f":"IF(F42=\"\",\"\",IF(AND(Working!F54<>Num_Left,Working!F54<>Total_Num_of_Panels-Num_Right+1),IF(Working!F54<=Num_Left,IF(MOD(Working!F54,2)=0,\"\",\"Dropbolts\"),IF(MOD(Total_Num_of_Panels-Working!F54,2)=0,\"Dropbolts\",\"\")),IF(AND(Working!F54=Num_Left,MOD(Num_Left,2)=1,MOD(Num_Right,2)=1),\"Dropbolts\",\"\")))","v":""},{"$f":"IFERROR(IF($E$18=\"select\",\"\",IF(INDEX(INDIRECT(\"'OUT-IN Open Flush Bolt'!\"&S42),MATCH($Q$38,'OUT-IN Open Flush Bolt'!A:A,0))=\"\",\"\",INDEX(INDIRECT(\"'OUT-IN Open Flush Bolt'!\"&S42),MATCH($Q$38,'OUT-IN Open Flush Bolt'!A:A,0)))),\"\")","v":""},null,{"$f":"IFERROR(IF($E$26=\"select\",\"\",IF($E$26=\"No\",IF(INDEX(INDIRECT(\"'OUT-IN Opening'!\"&S42),MATCH($Q$38,'OUT-IN Opening'!$A:$A,0))=\"\",\"\",INDEX(INDIRECT(\"'OUT-IN Opening'!\"&S42),MATCH($Q$38,'OUT-IN Opening'!$A:$A,0))&$R$38),IF(INDEX(INDIRECT(\"'OUT-IN Open Rebated'!\"&S42),MATCH($Q$38,'OUT-IN Open Rebated'!A:A,0))=\"\",\"\",INDEX(INDIRECT(\"'OUT-IN Open Rebated'!\"&S42),MATCH($Q$38,'OUT-IN Open Rebated'!A:A,0))&$R$38))),\"\")","v":""},null,"","",null,null,null,null,null,"H:H",{"$f":"COUNTIF($J$38:$J43,J43)","v":6},"",1,null,""]
[null,{"$f":"IF(Working!F55<>\"\",IF(Working!F55<=Num_Left,\"Left\",\"Right\")&\" Door Nº\"&Working!F55,\"\")","v":""},null,{"$f":"IF(F43=\"\",IF(D44=\"\",\"\",\" \"),IF(Working!F55<=Num_Left,IF(MOD(Working!F55,2)=0,\"\\\",\"/\"),IF(MOD(Total_Num_of_Panels-Working!F55,2)=0,\"\\\",\"/\")))","v":""},null,{"$f":"IF(AND(B43<>\"\",Start_With=\"Panel Width\"),List!$R$2,IF(AND(B43<>\"\",Start_With=\"Opening Width\"),List!$P$2,\"\"))","v":""},{"$f":"IF(F43=\"\",\"\",IF(AND(Working!F55<>Num_Left,Working!F55<>Total_Num_of_Panels-Num_Right+1),IF(Working!F55<=Num_Left,IF(MOD(Working!F55,2)=0,\"\",\"Dropbolts\"),IF(MOD(Total_Num_of_Panels-Working!F55,2)=0,\"Dropbolts\",\"\")),IF(AND(Working!F55=Num_Left,MOD(Num_Left,2)=1,MOD(Num_Right,2)=1),\"Dropbolts\",\"\")))","v":""},{"$f":"IFERROR(IF($E$18=\"select\",\"\",IF(INDEX(INDIRECT(\"'OUT-IN Open Flush Bolt'!\"&S43),MATCH($Q$38,'OUT-IN Open Flush Bolt'!A:A,0))=\"\",\"\",INDEX(INDIRECT(\"'OUT-IN Open Flush Bolt'!\"&S43),MATCH($Q$38,'OUT-IN Open Flush Bolt'!A:A,0)))),\"\")","v":""},null,{"$f":"IFERROR(IF($E$26=\"select\",\"\",IF($E$26=\"No\",IF(INDEX(INDIRECT(\"'OUT-IN Opening'!\"&S43),MATCH($Q$38,'OUT-IN Opening'!$A:$A,0))=\"\",\"\",INDEX(INDIRECT(\"'OUT-IN Opening'!\"&S43),MATCH($Q$38,'OUT-IN Opening'!$A:$A,0))&$R$38),IF(INDEX(INDIRECT(\"'OUT-IN Open Rebated'!\"&S43),MATCH($Q$38,'OUT-IN Open Rebated'!A:A,0))=\"\",\"\",INDEX(INDIRECT(\"'OUT-IN Open Rebated'!\"&S43),MATCH($Q$38,'OUT-IN Open Rebated'!A:A,0))&$R$38))),\"\")","v":""},null,"","",null,null,null,null,null,"I:I",{"$f":"COUNTIF($J$38:$J44,J44)","v":7},"",1]
[null,{"$f":"IF(Working!F56<>\"\",IF(Working!F56<=Num_Left,\"Left\",\"Right\")&\" Door Nº\"&Working!F56,\"\")","v":""},null,{"$f":"IF(F44=\"\",IF(D45=\"\",\"\",\" \"),IF(Working!F56<=Num_Left,IF(MOD(Working!F56,2)=0,\"\\\",\"/\"),IF(MOD(Total_Num_of_Panels-Working!F56,2)=0,\"\\\",\"/\")))","v":""},null,{"$f":"IF(AND(B44<>\"\",Start_With=\"Panel Width\"),List!$R$2,IF(AND(B44<>\"\",Start_With=\"Opening Width\"),List!$P$2,\"\"))","v":""},{"$f":"IF(F44=\"\",\"\",IF(AND(Working!F56<>Num_Left,Working!F56<>Total_Num_of_Panels-Num_Right+1),IF(Working!F56<=Num_Left,IF(MOD(Working!F56,2)=0,\"\",\"Dropbolts\"),IF(MOD(Total_Num_of_Panels-Working!F56,2)=0,\"Dropbolts\",\"\")),IF(AND(Working!F56=Num_Left,MOD(Num_Left,2)=1,MOD(Num_Right,2)=1),\"Dropbolts\",\"\")))","v":""},{"$f":"IFERROR(IF($E$18=\"select\",\"\",IF(INDEX(INDIRECT(\"'OUT-IN Open Flush Bolt'!\"&S44),MATCH($Q$38,'OUT-IN Open Flush Bolt'!A:A,0))=\"\",\"\",INDEX(INDIRECT(\"'OUT-IN Open Flush Bolt'!\"&S44),MATCH($Q$38,'OUT-IN Open Flush Bolt'!A:A,0)))),\"\")","v":""},null,{"$f":"IFERROR(IF($E$26=\"select\",\"\",IF($E$26=\"No\",IF(INDEX(INDIRECT(\"'OUT-IN Opening'!\"&S44),MATCH($Q$38,'OUT-IN Opening'!$A:$A,0))=\"\",\"\",INDEX(INDIRECT(\"'OUT-IN Opening'!\"&S44),MATCH($Q$38,'OUT-IN Opening'!$A:$A,0))&$R$38),IF(INDEX(INDIRECT(\"'OUT-IN Open Rebated'!\"&S44),MATCH($Q$38,'OUT-IN Open Rebated'!A:A,0))=\"\",\"\",INDEX(INDIRECT(\"'OUT-IN Open Rebated'!\"&S44),MATCH($Q$38,'OUT-IN Open Rebated'!A:A,0))&$R$38))),\"\")","v":""},null,"","",null,null,null,null,null,"J:J",{"$f":"COUNTIF($J$38:$J45,J45)","v":8},"",1]
[null,{"$f":"IF(Working!F57<>\"\",IF(Working!F57<=Num_Left,\"Left\",\"Right\")&\" Door Nº\"&Working!F57,\"\")","v":""},null,{"$f":"IF(F45=\"\",IF(D46=\"\",\"\",\" \"),IF(Working!F57<=Num_Left,IF(MOD(Working!F57,2)=0,\"\\\",\"/\"),IF(MOD(Total_Num_of_Panels-Working!F57,2)=0,\"\\\",\"/\")))","v":""},null,{"$f":"IF(AND(B45<>\"\",Start_With=\"Panel Width\"),List!$R$2,IF(AND(B45<>\"\",Start_With=\"Opening Width\"),List!$P$2,\"\"))","v":""},{"$f":"IF(F45=\"\",\"\",IF(AND(Working!F57<>Num_Left,Working!F57<>Total_Num_of_Panels-Num_Right+1),IF(Working!F57<=Num_Left,IF(MOD(Working!F57,2)=0,\"\",\"Dropbolts\"),IF(MOD(Total_Num_of_Panels-Working!F57,2)=0,\"Dropbolts\",\"\")),IF(AND(Working!F57=Num_Left,MOD(Num_Left,2)=1,MOD(Num_Right,2)=1),\"Dropbolts\",\"\")))","v":""},{"$f":"IFERROR(IF($E$18=\"select\",\"\",IF(INDEX(INDIRECT(\"'OUT-IN Open Flush Bolt'!\"&S45),MATCH($Q$38,'OUT-IN Open Flush Bolt'!A:A,0))=\"\",\"\",INDEX(INDIRECT(\"'OUT-IN Open Flush Bolt'!\"&S45),MATCH($Q$38,'OUT-IN Open Flush Bolt'!A:A,0)))),\"\")","v":""},null,{"$f":"IFERROR(IF($E$26=\"select\",\"\",IF($E$26=\"No\",IF(INDEX(INDIRECT(\"'OUT-IN Opening'!\"&S45),MATCH($Q$38,'OUT-IN Opening'!$A:$A,0))=\"\",\"\",INDEX(INDIRECT(\"'OUT-IN Opening'!\"&S45),MATCH($Q$38,'OUT-IN Opening'!$A:$A,0))&$R$38),IF(INDEX(INDIRECT(\"'OUT-IN Open Rebated'!\"&S45),MATCH($Q$38,'OUT-IN Open Rebated'!A:A,0))=\"\",\"\",INDEX(INDIRECT(\"'OUT-IN Open Rebated'!\"&S45),MATCH($Q$38,'OUT-IN Open Rebated'!A:A,0))&$R$38))),\"\")","v":""},null,"","",null,null,null,null,null,"K:K",{"$f":"COUNTIF($J$38:$J46,J46)","v":9},"",1]
[null,{"$f":"IF(Working!F58<>\"\",IF(Working!F58<=Num_Left,\"Left\",\"Right\")&\" Door Nº\"&Working!F58,\"\")","v":""},null,{"$f":"IF(F46=\"\",IF(D47=\"\",\"\",\" \"),IF(Working!F58<=Num_Left,IF(MOD(Working!F58,2)=0,\"\\\",\"/\"),IF(MOD(Total_Num_of_Panels-Working!F58,2)=0,\"\\\",\"/\")))","v":""},null,{"$f":"IF(AND(B46<>\"\",Start_With=\"Panel Width\"),List!$R$2,IF(AND(B46<>\"\",Start_With=\"Opening Width\"),List!$P$2,\"\"))","v":""},{"$f":"IF(F46=\"\",\"\",IF(AND(Working!F58<>Num_Left,Working!F58<>Total_Num_of_Panels-Num_Right+1),IF(Working!F58<=Num_Left,IF(MOD(Working!F58,2)=0,\"\",\"Dropbolts\"),IF(MOD(Total_Num_of_Panels-Working!F58,2)=0,\"Dropbolts\",\"\")),IF(AND(Working!F58=Num_Left,MOD(Num_Left,2)=1,MOD(Num_Right,2)=1),\"Dropbolts\",\"\")))","v":""},{"$f":"IFERROR(IF($E$18=\"select\",\"\",IF(INDEX(INDIRECT(\"'OUT-IN Open Flush Bolt'!\"&S46),MATCH($Q$38,'OUT-IN Open Flush Bolt'!A:A,0))=\"\",\"\",INDEX(INDIRECT(\"'OUT-IN Open Flush Bolt'!\"&S46),MATCH($Q$38,'OUT-IN Open Flush Bolt'!A:A,0)))),\"\")","v":""},null,{"$f":"IFERROR(IF($E$26=\"select\",\"\",IF($E$26=\"No\",IF(INDEX(INDIRECT(\"'OUT-IN Opening'!\"&S46),MATCH($Q$38,'OUT-IN Opening'!$A:$A,0))=\"\",\"\",INDEX(INDIRECT(\"'OUT-IN Opening'!\"&S46),MATCH($Q$38,'OUT-IN Opening'!$A:$A,0))&$R$38),IF(INDEX(INDIRECT(\"'OUT-IN Open Rebated'!\"&S46),MATCH($Q$38,'OUT-IN Open Rebated'!A:A,0))=\"\",\"\",INDEX(INDIRECT(\"'OUT-IN Open Rebated'!\"&S46),MATCH($Q$38,'OUT-IN Open Rebated'!A:A,0))&$R$38))),\"\")","v":""},null,"","",null,null,null,null,null,"L:L",{"$f":"COUNTIF($J$38:$J47,J47)","v":10},"",1]
[null,{"$f":"IF(Working!F59<>\"\",IF(Working!F59<=Num_Left,\"Left\",\"Right\")&\" Door Nº\"&Working!F59,\"\")","v":""},null,{"$f":"IF(F47=\"\",IF(D48=\"\",\"\",\" \"),IF(Working!F59<=Num_Left,IF(MOD(Working!F59,2)=0,\"\\\",\"/\"),IF(MOD(Total_Num_of_Panels-Working!F59,2)=0,\"\\\",\"/\")))","v":""},null,{"$f":"IF(AND(B47<>\"\",Start_With=\"Panel Width\"),List!$R$2,IF(AND(B47<>\"\",Start_With=\"Opening Width\"),List!$P$2,\"\"))","v":""},{"$f":"IF(F47=\"\",\"\",IF(AND(Working!F59<>Num_Left,Working!F59<>Total_Num_of_Panels-Num_Right+1),IF(Working!F59<=Num_Left,IF(MOD(Working!F59,2)=0,\"\",\"Dropbolts\"),IF(MOD(Total_Num_of_Panels-Working!F59,2)=0,\"Dropbolts\",\"\")),IF(AND(Working!F59=Num_Left,MOD(Num_Left,2)=1,MOD(Num_Right,2)=1),\"Dropbolts\",\"\")))","v":""},{"$f":"IFERROR(IF($E$18=\"select\",\"\",IF(INDEX(INDIRECT(\"'OUT-IN Open Flush Bolt'!\"&S47),MATCH($Q$38,'OUT-IN Open Flush Bolt'!A:A,0))=\"\",\"\",INDEX(INDIRECT(\"'OUT-IN Open Flush Bolt'!\"&S47),MATCH($Q$38,'OUT-IN Open Flush Bolt'!A:A,0)))),\"\")","v":""},null,{"$f":"IFERROR(IF($E$26=\"select\",\"\",IF($E$26=\"No\",IF(INDEX(INDIRECT(\"'OUT-IN Opening'!\"&S47),MATCH($Q$38,'OUT-IN Opening'!$A:$A,0))=\"\",\"\",INDEX(INDIRECT(\"'OUT-IN Opening'!\"&S47),MATCH($Q$38,'OUT-IN Opening'!$A:$A,0))&$R$38),IF(INDEX(INDIRECT(\"'OUT-IN Open Rebated'!\"&S47),MATCH($Q$38,'OUT-IN Open Rebated'!A:A,0))=\"\",\"\",INDEX(INDIRECT(\"'OUT-IN Open Rebated'!\"&S47),MATCH($Q$38,'OUT-IN Open Rebated'!A:A,0))&$R$38))),\"\")","v":""},null,"","",null,null,null,null,null,"M:M",{"$f":"COUNTIF($J$38:$J48,J48)","v":11},"",1]
[null,{"$f":"IF(Working!F60<>\"\",IF(Working!F60<=Num_Left,\"Left\",\"Right\")&\" Door Nº\"&Working!F60,\"\")","v":""},null,{"$f":"IF(F48=\"\",IF(D49=\"\",\"\",\" \"),IF(Working!F60<=Num_Left,IF(MOD(Working!F60,2)=0,\"\\\",\"/\"),IF(MOD(Total_Num_of_Panels-Working!F60,2)=0,\"\\\",\"/\")))","v":""},null,{"$f":"IF(AND(B48<>\"\",Start_With=\"Panel Width\"),List!$R$2,IF(AND(B48<>\"\",Start_With=\"Opening Width\"),List!$P$2,\"\"))","v":""},{"$f":"IF(F48=\"\",\"\",IF(AND(Working!F60<>Num_Left,Working!F60<>Total_Num_of_Panels-Num_Right+1),IF(Working!F60<=Num_Left,IF(MOD(Working!F60,2)=0,\"\",\"Dropbolts\"),IF(MOD(Total_Num_of_Panels-Working!F60,2)=0,\"Dropbolts\",\"\")),IF(AND(Working!F60=Num_Left,MOD(Num_Left,2)=1,MOD(Num_Right,2)=1),\"Dropbolts\",\"\")))","v":""},{"$f":"IFERROR(IF($E$18=\"select\",\"\",IF(INDEX(INDIRECT(\"'OUT-IN Open Flush Bolt'!\"&S48),MATCH($Q$38,'OUT-IN Open Flush Bolt'!A:A,0))=\"\",\"\",INDEX(INDIRECT(\"'OUT-IN Open Flush Bolt'!\"&S48),MATCH($Q$38,'OUT-IN Open Flush Bolt'!A:A,0)))),\"\")","v":""},null,{"$f":"IFERROR(IF($E$26=\"select\",\"\",IF($E$26=\"No\",IF(INDEX(INDIRECT(\"'OUT-IN Opening'!\"&S48),MATCH($Q$38,'OUT-IN Opening'!$A:$A,0))=\"\",\"\",INDEX(INDIRECT(\"'OUT-IN Opening'!\"&S48),MATCH($Q$38,'OUT-IN Opening'!$A:$A,0))&$R$38),IF(INDEX(INDIRECT(\"'OUT-IN Open Rebated'!\"&S48),MATCH($Q$38,'OUT-IN Open Rebated'!A:A,0))=\"\",\"\",INDEX(INDIRECT(\"'OUT-IN Open Rebated'!\"&S48),MATCH($Q$38,'OUT-IN Open Rebated'!A:A,0))&$R$38))),\"\")","v":""},null,"","",null,null,null,null,null,"N:N",{"$f":"COUNTIF($J$38:$J49,J49)","v":12},"",1]
[null,{"$f":"IF(Working!F61<>\"\",IF(Working!F61<=Num_Left,\"Left\",\"Right\")&\" Door Nº\"&Working!F61,\"\")","v":""},null,{"$f":"IF(F49=\"\",IF(D50=\"\",\"\",\" \"),IF(Working!F61<=Num_Left,IF(MOD(Working!F61,2)=0,\"\\\",\"/\"),IF(MOD(Total_Num_of_Panels-Working!F61,2)=0,\"\\\",\"/\")))","v":""},null,{"$f":"IF(AND(B49<>\"\",Start_With=\"Panel Width\"),List!$R$2,IF(AND(B49<>\"\",Start_With=\"Opening Width\"),List!$P$2,\"\"))","v":""},{"$f":"IF(F49=\"\",\"\",IF(AND(Working!F61<>Num_Left,Working!F61<>Total_Num_of_Panels-Num_Right+1),IF(Working!F61<=Num_Left,IF(MOD(Working!F61,2)=0,\"\",\"Dropbolts\"),IF(MOD(Total_Num_of_Panels-Working!F61,2)=0,\"Dropbolts\",\"\")),IF(AND(Working!F61=Num_Left,MOD(Num_Left,2)=1,MOD(Num_Right,2)=1),\"Dropbolts\",\"\")))","v":""},{"$f":"IFERROR(IF($E$18=\"select\",\"\",IF(INDEX(INDIRECT(\"'OUT-IN Open Flush Bolt'!\"&S49),MATCH($Q$38,'OUT-IN Open Flush Bolt'!A:A,0))=\"\",\"\",INDEX(INDIRECT(\"'OUT-IN Open Flush Bolt'!\"&S49),MATCH($Q$38,'OUT-IN Open Flush Bolt'!A:A,0)))),\"\")","v":""},null,{"$f":"IFERROR(IF($E$26=\"select\",\"\",IF($E$26=\"No\",IF(INDEX(INDIRECT(\"'OUT-IN Opening'!\"&S49),MATCH($Q$38,'OUT-IN Opening'!$A:$A,0))=\"\",\"\",INDEX(INDIRECT(\"'OUT-IN Opening'!\"&S49),MATCH($Q$38,'OUT-IN Opening'!$A:$A,0))&$R$38),IF(INDEX(INDIRECT(\"'OUT-IN Open Rebated'!\"&S49),MATCH($Q$38,'OUT-IN Open Rebated'!A:A,0))=\"\",\"\",INDEX(INDIRECT(\"'OUT-IN Open Rebated'!\"&S49),MATCH($Q$38,'OUT-IN Open Rebated'!A:A,0))&$R$38))),\"\")","v":""},null,"","",null,null,null,null,null,{"$f":"CHAR(CODE(S48)+1)&\":\"&CHAR(CODE(S48)+1)","v":"O:O"},{"$f":"COUNTIF($J$38:$J50,J50)","v":13},"",1]
[null,{"$f":"IF(Working!F62<>\"\",IF(Working!F62<=Num_Left,\"Left\",\"Right\")&\" Door Nº\"&Working!F62,\"\")","v":""},null,{"$f":"IF(F50=\"\",IF(D51=\"\",\"\",\" \"),IF(Working!F62<=Num_Left,IF(MOD(Working!F62,2)=0,\"\\\",\"/\"),IF(MOD(Total_Num_of_Panels-Working!F62,2)=0,\"\\\",\"/\")))","v":""},null,{"$f":"IF(AND(B50<>\"\",Start_With=\"Panel Width\"),List!$R$2,IF(AND(B50<>\"\",Start_With=\"Opening Width\"),List!$P$2,\"\"))","v":""},{"$f":"IF(F50=\"\",\"\",IF(AND(Working!F62<>Num_Left,Working!F62<>Total_Num_of_Panels-Num_Right+1),IF(Working!F62<=Num_Left,IF(MOD(Working!F62,2)=0,\"\",\"Dropbolts\"),IF(MOD(Total_Num_of_Panels-Working!F62,2)=0,\"Dropbolts\",\"\")),IF(AND(Working!F62=Num_Left,MOD(Num_Left,2)=1,MOD(Num_Right,2)=1),\"Dropbolts\",\"\")))","v":""},{"$f":"IFERROR(IF($E$18=\"select\",\"\",IF(INDEX(INDIRECT(\"'OUT-IN Open Flush Bolt'!\"&S50),MATCH($Q$38,'OUT-IN Open Flush Bolt'!A:A,0))=\"\",\"\",INDEX(INDIRECT(\"'OUT-IN Open Flush Bolt'!\"&S50),MATCH($Q$38,'OUT-IN Open Flush Bolt'!A:A,0)))),\"\")","v":""},null,{"$f":"IFERROR(IF($E$26=\"select\",\"\",IF($E$26=\"No\",IF(INDEX(INDIRECT(\"'OUT-IN Opening'!\"&S50),MATCH($Q$38,'OUT-IN Opening'!$A:$A,0))=\"\",\"\",INDEX(INDIRECT(\"'OUT-IN Opening'!\"&S50),MATCH($Q$38,'OUT-IN Opening'!$A:$A,0))&$R$38),IF(INDEX(INDIRECT(\"'OUT-IN Open Rebated'!\"&S50),MATCH($Q$38,'OUT-IN Open Rebated'!A:A,0))=\"\",\"\",INDEX(INDIRECT(\"'OUT-IN Open Rebated'!\"&S50),MATCH($Q$38,'OUT-IN Open Rebated'!A:A,0))&$R$38))),\"\")","v":""},null,"","",null,null,null,null,null,"P:P",{"$f":"COUNTIF($J$38:$J51,J51)","v":14},"",1]
[null,{"$f":"IF(Working!F63<>\"\",IF(Working!F63<=Num_Left,\"Left\",\"Right\")&\" Door Nº\"&Working!F63,\"\")","v":""},null,{"$f":"IF(F51=\"\",IF(D52=\"\",\"\",\" \"),IF(Working!F63<=Num_Left,IF(MOD(Working!F63,2)=0,\"\\\",\"/\"),IF(MOD(Total_Num_of_Panels-Working!F63,2)=0,\"\\\",\"/\")))","v":""},null,{"$f":"IF(AND(B51<>\"\",Start_With=\"Panel Width\"),List!$R$2,IF(AND(B51<>\"\",Start_With=\"Opening Width\"),List!$P$2,\"\"))","v":""},{"$f":"IF(F51=\"\",\"\",IF(AND(Working!F63<>Num_Left,Working!F63<>Total_Num_of_Panels-Num_Right+1),IF(Working!F63<=Num_Left,IF(MOD(Working!F63,2)=0,\"\",\"Dropbolts\"),IF(MOD(Total_Num_of_Panels-Working!F63,2)=0,\"Dropbolts\",\"\")),IF(AND(Working!F63=Num_Left,MOD(Num_Left,2)=1,MOD(Num_Right,2)=1),\"Dropbolts\",\"\")))","v":""},{"$f":"IFERROR(IF($E$18=\"select\",\"\",IF(INDEX(INDIRECT(\"'OUT-IN Open Flush Bolt'!\"&S51),MATCH($Q$38,'OUT-IN Open Flush Bolt'!A:A,0))=\"\",\"\",INDEX(INDIRECT(\"'OUT-IN Open Flush Bolt'!\"&S51),MATCH($Q$38,'OUT-IN Open Flush Bolt'!A:A,0)))),\"\")","v":""},null,{"$f":"IFERROR(IF($E$26=\"select\",\"\",IF($E$26=\"No\",IF(INDEX(INDIRECT(\"'OUT-IN Opening'!\"&S51),MATCH($Q$38,'OUT-IN Opening'!$A:$A,0))=\"\",\"\",INDEX(INDIRECT(\"'OUT-IN Opening'!\"&S51),MATCH($Q$38,'OUT-IN Opening'!$A:$A,0))&$R$38),IF(INDEX(INDIRECT(\"'OUT-IN Open Rebated'!\"&S51),MATCH($Q$38,'OUT-IN Open Rebated'!A:A,0))=\"\",\"\",INDEX(INDIRECT(\"'OUT-IN Open Rebated'!\"&S51),MATCH($Q$38,'OUT-IN Open Rebated'!A:A,0))&$R$38))),\"\")","v":""},null,"","",null,null,null,null,null,"Q:Q",{"$f":"COUNTIF($J$38:$J52,J52)","v":15},"",1]
[null,{"$f":"IF(Working!F64<>\"\",IF(Working!F64<=Num_Left,\"Left\",\"Right\")&\" Door Nº\"&Working!F64,\"\")","v":""},null,{"$f":"IF(F52=\"\",IF(D53=\"\",\"\",\" \"),IF(Working!F64<=Num_Left,IF(MOD(Working!F64,2)=0,\"\\\",\"/\"),IF(MOD(Total_Num_of_Panels-Working!F64,2)=0,\"\\\",\"/\")))","v":""},null,{"$f":"IF(AND(B52<>\"\",Start_With=\"Panel Width\"),List!$R$2,IF(AND(B52<>\"\",Start_With=\"Opening Width\"),List!$P$2,\"\"))","v":""},{"$f":"IF(F52=\"\",\"\",IF(AND(Working!F64<>Num_Left,Working!F64<>Total_Num_of_Panels-Num_Right+1),IF(Working!F64<=Num_Left,IF(MOD(Working!F64,2)=0,\"\",\"Dropbolts\"),IF(MOD(Total_Num_of_Panels-Working!F64,2)=0,\"Dropbolts\",\"\")),IF(AND(Working!F64=Num_Left,MOD(Num_Left,2)=1,MOD(Num_Right,2)=1),\"Dropbolts\",\"\")))","v":""},{"$f":"IFERROR(IF($E$18=\"select\",\"\",IF(INDEX(INDIRECT(\"'OUT-IN Open Flush Bolt'!\"&S52),MATCH($Q$38,'OUT-IN Open Flush Bolt'!A:A,0))=\"\",\"\",INDEX(INDIRECT(\"'OUT-IN Open Flush Bolt'!\"&S52),MATCH($Q$38,'OUT-IN Open Flush Bolt'!A:A,0)))),\"\")","v":""},null,{"$f":"IFERROR(IF($E$26=\"select\",\"\",IF($E$26=\"No\",IF(INDEX(INDIRECT(\"'OUT-IN Opening'!\"&S52),MATCH($Q$38,'OUT-IN Opening'!$A:$A,0))=\"\",\"\",INDEX(INDIRECT(\"'OUT-IN Opening'!\"&S52),MATCH($Q$38,'OUT-IN Opening'!$A:$A,0))&$R$38),IF(INDEX(INDIRECT(\"'OUT-IN Open Rebated'!\"&S52),MATCH($Q$38,'OUT-IN Open Rebated'!A:A,0))=\"\",\"\",INDEX(INDIRECT(\"'OUT-IN Open Rebated'!\"&S52),MATCH($Q$38,'OUT-IN Open Rebated'!A:A,0))&$R$38))),\"\")","v":""},null,"","",null,null,null,null,null,"R:R",{"$f":"COUNTIF($J$38:$J53,J53)","v":16},"",1]
[null,{"$f":"IF(Working!F65<>\"\",IF(Working!F65<=Num_Left,\"Left\",\"Right\")&\" Door Nº\"&Working!F65,\"\")","v":""},null,{"$f":"IF(F53=\"\",IF(D54=\"\",\"\",\" \"),IF(Working!F65<=Num_Left,IF(MOD(Working!F65,2)=0,\"\\\",\"/\"),IF(MOD(Total_Num_of_Panels-Working!F65,2)=0,\"\\\",\"/\")))","v":""},null,{"$f":"IF(AND(B53<>\"\",Start_With=\"Panel Width\"),List!$R$2,IF(AND(B53<>\"\",Start_With=\"Opening Width\"),List!$P$2,\"\"))","v":""},{"$f":"IF(F53=\"\",\"\",IF(AND(Working!F65<>Num_Left,Working!F65<>Total_Num_of_Panels-Num_Right+1),IF(Working!F65<=Num_Left,IF(MOD(Working!F65,2)=0,\"\",\"Dropbolts\"),IF(MOD(Total_Num_of_Panels-Working!F65,2)=0,\"Dropbolts\",\"\")),IF(AND(Working!F65=Num_Left,MOD(Num_Left,2)=1,MOD(Num_Right,2)=1),\"Dropbolts\",\"\")))","v":""},{"$f":"IFERROR(IF($E$18=\"select\",\"\",IF(INDEX(INDIRECT(\"'OUT-IN Open Flush Bolt'!\"&S53),MATCH($Q$38,'OUT-IN Open Flush Bolt'!A:A,0))=\"\",\"\",INDEX(INDIRECT(\"'OUT-IN Open Flush Bolt'!\"&S53),MATCH($Q$38,'OUT-IN Open Flush Bolt'!A:A,0)))),\"\")","v":""},null,{"$f":"IFERROR(IF($E$26=\"select\",\"\",IF($E$26=\"No\",IF(INDEX(INDIRECT(\"'OUT-IN Opening'!\"&S53),MATCH($Q$38,'OUT-IN Opening'!$A:$A,0))=\"\",\"\",INDEX(INDIRECT(\"'OUT-IN Opening'!\"&S53),MATCH($Q$38,'OUT-IN Opening'!$A:$A,0))&$R$38),IF(INDEX(INDIRECT(\"'OUT-IN Open Rebated'!\"&S53),MATCH($Q$38,'OUT-IN Open Rebated'!A:A,0))=\"\",\"\",INDEX(INDIRECT(\"'OUT-IN Open Rebated'!\"&S53),MATCH($Q$38,'OUT-IN Open Rebated'!A:A,0))&$R$38))),\"\")","v":""},null,"","",null,null,null,null,null,"S:S",{"$f":"COUNTIF($J$38:$J54,J54)","v":17},"",1]
[null,{"$f":"IF(Working!F66<>\"\",IF(Working!F66<=Num_Left,\"Left\",\"Right\")&\" Door Nº\"&Working!F66,\"\")","v":""},null,{"$f":"IF(F54=\"\",IF(D55=\"\",\"\",\" \"),IF(Working!F66<=Num_Left,IF(MOD(Working!F66,2)=0,\"\\\",\"/\"),IF(MOD(Total_Num_of_Panels-Working!F66,2)=0,\"\\\",\"/\")))","v":""},null,{"$f":"IF(AND(B54<>\"\",Start_With=\"Panel Width\"),List!$R$2,IF(AND(B54<>\"\",Start_With=\"Opening Width\"),List!$P$2,\"\"))","v":""},{"$f":"IF(F54=\"\",\"\",IF(AND(Working!F66<>Num_Left,Working!F66<>Total_Num_of_Panels-Num_Right+1),IF(Working!F66<=Num_Left,IF(MOD(Working!F66,2)=0,\"\",\"Dropbolts\"),IF(MOD(Total_Num_of_Panels-Working!F66,2)=0,\"Dropbolts\",\"\")),IF(AND(Working!F66=Num_Left,MOD(Num_Left,2)=1,MOD(Num_Right,2)=1),\"Dropbolts\",\"\")))","v":""},{"$f":"IFERROR(IF($E$18=\"select\",\"\",IF(INDEX(INDIRECT(\"'OUT-IN Open Flush Bolt'!\"&S54),MATCH($Q$38,'OUT-IN Open Flush Bolt'!A:A,0))=\"\",\"\",INDEX(INDIRECT(\"'OUT-IN Open Flush Bolt'!\"&S54),MATCH($Q$38,'OUT-IN Open Flush Bolt'!A:A,0)))),\"\")","v":""},null,{"$f":"IFERROR(IF($E$26=\"select\",\"\",IF($E$26=\"No\",IF(INDEX(INDIRECT(\"'OUT-IN Opening'!\"&S54),MATCH($Q$38,'OUT-IN Opening'!$A:$A,0))=\"\",\"\",INDEX(INDIRECT(\"'OUT-IN Opening'!\"&S54),MATCH($Q$38,'OUT-IN Opening'!$A:$A,0))&$R$38),IF(INDEX(INDIRECT(\"'OUT-IN Open Rebated'!\"&S54),MATCH($Q$38,'OUT-IN Open Rebated'!A:A,0))=\"\",\"\",INDEX(INDIRECT(\"'OUT-IN Open Rebated'!\"&S54),MATCH($Q$38,'OUT-IN Open Rebated'!A:A,0))&$R$38))),\"\")","v":""},null,"","",null,null,null,null,null,"T:T",{"$f":"COUNTIF($J$38:$J55,J55)","v":18},"",1]
[null,null,null,null,null,{"$f":"IF(AND(B55<>\"\",Start_With=\"Panel Width\"),List!$R$2,IF(AND(B55<>\"\",Start_With=\"Opening Width\"),List!$P$2,\"\"))","v":""},null,{"$f":"IFERROR(IF($E$18=\"select\",\"\",IF(INDEX(INDIRECT(\"'OUT-IN Open Flush Bolt'!\"&S55),MATCH($Q$38,'OUT-IN Open Flush Bolt'!A:A,0))=\"\",\"\",INDEX(INDIRECT(\"'OUT-IN Open Flush Bolt'!\"&S55),MATCH($Q$38,'OUT-IN Open Flush Bolt'!A:A,0)))),\"\")","v":""},null,{"$f":"IFERROR(IF($E$26=\"select\",\"\",IF($E$26=\"No\",IF(INDEX(INDIRECT(\"'OUT-IN Opening'!\"&S55),MATCH($Q$38,'OUT-IN Opening'!$A:$A,0))=\"\",\"\",INDEX(INDIRECT(\"'OUT-IN Opening'!\"&S55),MATCH($Q$38,'OUT-IN Opening'!$A:$A,0))&$R$38),IF(INDEX(INDIRECT(\"'OUT-IN Open Rebated'!\"&S55),MATCH($Q$38,'OUT-IN Open Rebated'!A:A,0))=\"\",\"\",INDEX(INDIRECT(\"'OUT-IN Open Rebated'!\"&S55),MATCH($Q$38,'OUT-IN Open Rebated'!A:A,0))&$R$38))),\"\")","v":""},null,"","",null,null,null,null,null,"U:U",{"$f":"COUNTIF($J$38:$J56,J56)","v":19},"",1]
[null,null,null,null,null,{"$f":"IF(AND(B56<>\"\",Start_With=\"Panel Width\"),List!$R$2,IF(AND(B56<>\"\",Start_With=\"Opening Width\"),List!$P$2,\"\"))","v":""},null,{"$f":"IFERROR(IF($E$18=\"select\",\"\",IF(INDEX(INDIRECT(\"'OUT-IN Open Flush Bolt'!\"&S56),MATCH($Q$38,'OUT-IN Open Flush Bolt'!A:A,0))=\"\",\"\",INDEX(INDIRECT(\"'OUT-IN Open Flush Bolt'!\"&S56),MATCH($Q$38,'OUT-IN Open Flush Bolt'!A:A,0)))),\"\")","v":""},null,{"$f":"IFERROR(IF($E$26=\"select\",\"\",IF($E$26=\"No\",IF(INDEX(INDIRECT(\"'OUT-IN Opening'!\"&S56),MATCH($Q$38,'OUT-IN Opening'!$A:$A,0))=\"\",\"\",INDEX(INDIRECT(\"'OUT-IN Opening'!\"&S56),MATCH($Q$38,'OUT-IN Opening'!$A:$A,0))&$R$38),IF(INDEX(INDIRECT(\"'OUT-IN Open Rebated'!\"&S56),MATCH($Q$38,'OUT-IN Open Rebated'!A:A,0))=\"\",\"\",INDEX(INDIRECT(\"'OUT-IN Open Rebated'!\"&S56),MATCH($Q$38,'OUT-IN Open Rebated'!A:A,0))&$R$38))),\"\")","v":""},null,"","",null,null,null,null,null,"V:V",{"$f":"COUNTIF($J$38:$J57,J57)","v":20}]
[null,null,null,null,null,{"$f":"IF(AND(B57<>\"\",Start_With=\"Panel Width\"),List!$R$2,IF(AND(B57<>\"\",Start_With=\"Opening Width\"),List!$P$2,\"\"))","v":""},null,{"$f":"IFERROR(IF($E$18=\"select\",\"\",IF(INDEX(INDIRECT(\"'OUT-IN Open Flush Bolt'!\"&S58),MATCH($Q$38,'OUT-IN Open Flush Bolt'!A:A,0))=\"\",\"\",INDEX(INDIRECT(\"'OUT-IN Open Flush Bolt'!\"&S58),MATCH($Q$38,'OUT-IN Open Flush Bolt'!A:A,0)))),\"\")","v":""},null,{"$f":"IFERROR(IF($E$26=\"select\",\"\",IF($E$26=\"No\",IF(INDEX(INDIRECT(\"'OUT-IN Opening'!\"&S58),MATCH($Q$38,'OUT-IN Opening'!$A:$A,0))=\"\",\"\",INDEX(INDIRECT(\"'OUT-IN Opening'!\"&S58),MATCH($Q$38,'OUT-IN Opening'!$A:$A,0))&$R$38),IF(INDEX(INDIRECT(\"'OUT-IN Open Rebated'!\"&S58),MATCH($Q$38,'OUT-IN Open Rebated'!A:A,0))=\"\",\"\",INDEX(INDIRECT(\"'OUT-IN Open Rebated'!\"&S58),MATCH($Q$38,'OUT-IN Open Rebated'!A:A,0))&$R$38))),\"\")","v":""}]
[null,null,null,null,null,null,null,null,null,null,null,null,null,null,null,null,null,null,null,{"$f":"COUNTIF($J$38:$J58,J58)","v":0}]
[null,"VIO Folding Door Hardware",null,null,null,null,null,null,null,null,null,null,null,null,null,null,null,null,null,null,null,null,null,null,null,null,null,null,null,null,null,null,null,null,null,null,null,null,null,null,null,null,null,null,null,null,null,null,null,null,null,null,null,null,null,null,{"$f":"IF(LOOKUP(ROW()-Row_Offset,#REF!)=ROW()-Row_Offset,LOOKUP(ROW()-Row_Offset,#REF!,#REF!),\"\")","v":{"$error":"#REF!"}},{"$f":"IF(BE59<>\"\",LOOKUP(ROW()-Row_Offset,#REF!,#REF!),\"\")","v":{"$error":"#REF!"}},null,{"$f":"IF(AND(BF59<>\"\",Total_Num_of_Panels<>0),LOOKUP(ROW()-Row_Offset,#REF!,#REF!),\"\")","v":{"$error":"#REF!"}},{"$f":"IF(LOOKUP(ROW()-Row_Offset,#REF!)=ROW()-Row_Offset,LOOKUP(ROW()-Row_Offset,#REF!,#REF!),\"\")","v":{"$error":"#REF!"}},{"$f":"IF(BH59<>\"\",IF(INDEX(Order,VLOOKUP(BF59,PriceTable,7,FALSE)+1),1,-1)*VLOOKUP(BF59,PriceTable,6,FALSE),0)","v":{"$error":"#REF!"}}]
[null,null,null,null,null,null,null,null,null,null,null,null,null,null,null,null,null,null,null,null,null,null,null,null,null,null,null,null,null,null,null,null,null,null,null,null,null,null,null,null,null,null,null,null,null,null,null,null,null,null,null,null,null,null,null,null,{"$f":"IF(LOOKUP(ROW()-Row_Offset,#REF!)=ROW()-Row_Offset,LOOKUP(ROW()-Row_Offset,#REF!,#REF!),\"\")","v":{"$error":"#REF!"}}]
[null,"Customer:",{"$f":"IF(C5<>\"\",C5,\"\")","v":""},null,null,null,null,null,null,null,null,null,null,null,null,null,null,null,null,null,null,null,null,null,null,null,null,null,null,null,null,null,null,null,null,null,null,null,null,null,null,null,null,null,null,null,null,null,null,null,null,null,null,null,null,null,{"$f":"IF(LOOKUP(ROW()-Row_Offset,#REF!)=ROW()-Row_Offset,LOOKUP(ROW()-Row_Offset,#REF!,#REF!),\"\")","v":{"$error":"#REF!"}}]
[null,"Customer ID:",{"$f":"IF(C6<>\"\",C6,\"\")","v":""},null,null,null,null,null,null,null,null,null,null,null,null,null,null,null,null,null,null,null,null,null,null,null,null,null,null,null,null,null,null,null,null,null,null,null,null,null,null,null,null,null,null,null,null,null,null,null,null,null,null,null,null,null,{"$f":"IF(LOOKUP(ROW()-Row_Offset,#REF!)=ROW()-Row_Offset,LOOKUP(ROW()-Row_Offset,#REF!,#REF!),\"\")","v":{"$error":"#REF!"}}]
[null,"Project:","",null,null,null,null,null,null,null,null,null,null,null,null,null,null,null,null,null,null,null,null,null,null,null,null,null,null,null,null,null,null,null,null,null,null,null,null,null,null,null,null,null,null,null,null,null,null,null,null,null,null,null,null,null,{"$f":"IF(LOOKUP(ROW()-Row_Offset,#REF!)=ROW()-Row_Offset,LOOKUP(ROW()-Row_Offset,#REF!,#REF!),\"\")","v":{"$error":"#REF!"}}]
[null,"Puchase Order Nº:","",null,null,null,null,null,null,null,"Date:",{"$f":"TODAY()","v":"2021-10-15"},null,null,null,null,null,null,null,null,null,null,null,null,null,null,null,null,null,null,null,null,null,null,null,null,null,null,null,null,null,null,null,null,null,null,null,null,null,null,null,null,null,null,null,null,{"$f":"IF(LOOKUP(ROW()-Row_Offset,#REF!)=ROW()-Row_Offset,LOOKUP(ROW()-Row_Offset,#REF!,#REF!),\"\")","v":{"$error":"#REF!"}}]
[]
[null,"Bill of Materials"]
[]
[null,"PRODUCT CODE","DESCRIPTION",null,null,null,null,null,null,null,"UNIT","QTY",null,null,null,null,null,{"$f":"\"VT\"&E17","v":"VTSelect"}]
[]
[null,"Track & Guide Channel",null,null,null,null,null,null,null,null,null,null,null,null,null,null,null,{"$f":"LOOKUP(2,1/(List!#REF!<=$L$20)/(List!#REF!>=$L$20),List!#REF!)","v":{"$error":"#REF!"}}]
[]
[null,{"$f":"IFERROR(IF($E$17=\"\",\"\",IF($E$17=50,LOOKUP(2,1/(List!$AI$5:$AI$16<=$L$20)/(List!$AJ$5:$AJ$16>=$L$20),List!$AL$5:$AL$16),LOOKUP(2,1/(List!$AI$20:$AI$31<=$L$20)/(List!$AJ$20:$AJ$31>=$L$20),List!$AL$20:$AL$31))&$R$72),\"\")","v":"VT100-20SNA"},{"$f":"IFERROR(INDEX('Product List'!C:C,MATCH(B72,'Product List'!B:B,0)),\"\")","v":"VIO 100kg Top Track 2000mm"},null,null,null,null,null,null,null,{"$f":"IF($C72<>\"\",\"ea\",\"\")","v":"ea"},{"$f":"IFERROR(IF(B72=\"\",\"\",IF($E$17=50,LOOKUP(2,1/(List!$AI$5:$AI$16<=$L$20)/(List!$AJ$5:$AJ$16>=$L$20),List!$AM$5:$AM$16),LOOKUP(2,1/(List!$AI$20:$AI$31<=$L$20)/(List!$AJ$20:$AJ$31>=$L$20),List!$AM$20:$AM$31))),\"\")","v":1},null,null,null,null,null,{"$f":"INDEX(List!AY18:AY19,MATCH(List!BA74,List!AX18:AX19,0))","v":"SNA"}]
[null,{"$f":"IFERROR(IF($E$17=\"\",\"\",IF($E$17=50,LOOKUP(2,1/(List!$AI$5:$AI$16<=$L$20)/(List!$AJ$5:$AJ$16>=$L$20),List!$AN$5:$AN$16),LOOKUP(2,1/(List!$AI$20:$AI$31<=$L$20)/(List!$AJ$20:$AJ$31>=$L$20),List!$AN$20:$AN$31))&$R$72),\"\")","v":"VGC-20SNA"},{"$f":"IFERROR(INDEX('Product List'!C:C,MATCH(B73,'Product List'!B:B,0)),\"\")","v":"VIO Guide Channel 2000mm"},null,null,null,null,null,null,null,{"$f":"IF(C73<>\"\",\"ea\",\"\")","v":"ea"},{"$f":"IFERROR(IF(B73=\"\",\"\",IF($E$17=50,LOOKUP(2,1/(List!$AI$5:$AI$16<=$L$20)/(List!$AJ$5:$AJ$16>=$L$20),List!$AO$5:$AO$16),LOOKUP(2,1/(List!$AI$20:$AI$31<=$L$20)/(List!$AJ$20:$AJ$31>=$L$20),List!$AO$20:$AO$31))),\"\")","v":1},null,null,null,null,null,"BLK"]
[null,{"$f":"IFERROR(IF($E$17=\"\",\"\",IF($E$17=50,LOOKUP(2,1/(List!$AI$5:$AI$16<=$L$20)/(List!$AJ$5:$AJ$16>=$L$20),List!$AP$5:$AP$16),LOOKUP(2,1/(List!$AI$20:$AI$31<=$L$20)/(List!$AJ$20:$AJ$31>=$L$20),List!$AP$20:$AP$31))&$R$73),\"\")","v":"VPCI-20BLK"},{"$f":"IFERROR(INDEX('Product List'!C:C,MATCH(B74,'Product List'!B:B,0)),\"\")","v":"VIO Polypropylene Channel Insert 2000mm"},null,null,null,null,null,null,null,{"$f":"IF(C74<>\"\",\"ea\",\"\")","v":"ea"},{"$f":"IFERROR(IF(B74=\"\",\"\",IF($E$17=50,LOOKUP(2,1/(List!$AI$5:$AI$16<=$L$20)/(List!$AJ$5:$AJ$16>=$L$20),List!$AQ$5:$AQ$16),LOOKUP(2,1/(List!$AI$20:$AI$31<=$L$20)/(List!$AJ$20:$AJ$31>=$L$20),List!$AQ$20:$AQ$31))),\"\")","v":1}]
[]
[null,"Hangers, Guides & Hinge sets"]
[]
[null,{"$f":"IF(R78<>\"\",R78,\"\")","v":""},{"$f":"IFERROR(IF(B78=\"\",\"\",INDEX('Product List'!C:C,MATCH(B78,'Product List'!B:B,0))),\"\")","v":""},null,null,null,null,null,null,null,{"$f":"IF(C78<>\"\",\"set\",\"\")","v":""},{"$f":"IF(B78=\"\",\"\",SUMIF($J$38:$SI$57,B78,$L$38:$L$57))","v":""},null,null,null,null,1,{"$f":"IFERROR(INDEX($U$37:$U$55,MATCH(Q78,$V$37:$V$55,0)),\"\")","v":""},{"$f":"INDEX(List!$AY$13:$AY$16,MATCH($E$25,List!$AX$13:$AX$16,0))","v":{"$error":"#N/A"}}]
[null,{"$f":"IF(R79<>\"\",R79,\"\")","v":""},{"$f":"IFERROR(IF(B79=\"\",\"\",INDEX('Product List'!C:C,MATCH(B79,'Product List'!B:B,0))),\"\")","v":""},null,null,null,null,null,null,null,{"$f":"IF(C79<>\"\",\"set\",\"\")","v":""},"",null,null,null,null,2,"",{"$f":"INDEX(List!$AY$13:$AY$16,MATCH($E$25,List!$AX$13:$AX$16,0))","v":{"$error":"#N/A"}}]
[null,{"$f":"IF(R80<>\"\",R80,\"\")","v":""},{"$f":"IFERROR(IF(B80=\"\",\"\",INDEX('Product List'!C:C,MATCH(B80,'Product List'!B:B,0))),\"\")","v":""},null,null,null,null,null,null,null,{"$f":"IF(C80<>\"\",\"set\",\"\")","v":""},"",null,null,null,null,3,"",{"$f":"INDEX(List!$AY$13:$AY$16,MATCH($E$25,List!$AX$13:$AX$16,0))","v":{"$error":"#N/A"}}]
[null,{"$f":"IF(R81<>\"\",R81,\"\")","v":""},{"$f":"IFERROR(IF(B81=\"\",\"\",INDEX('Product List'!C:C,MATCH(B81,'Product List'!B:B,0))),\"\")","v":""},null,null,null,null,null,null,null,{"$f":"IF(C81<>\"\",\"set\",\"\")","v":""},"",null,null,null,null,4,"",{"$f":"INDEX(List!$AY$13:$AY$16,MATCH($E$25,List!$AX$13:$AX$16,0))","v":{"$error":"#N/A"}}]
[null,{"$f":"IF(R82<>\"\",R82,\"\")","v":""},{"$f":"IFERROR(IF(B82=\"\",\"\",INDEX('Product List'!C:C,MATCH(B82,'Product List'!B:B,0))),\"\")","v":""},null,null,null,null,null,null,null,{"$f":"IF(C82<>\"\",\"set\",\"\")","v":""},"",null,null,null,null,5,"",{"$f":"INDEX(List!$AY$13:$AY$16,MATCH($E$25,List!$AX$13:$AX$16,0))","v":{"$error":"#N/A"}}]
[null,{"$f":"IF(R83<>\"\",R83,\"\")","v":""},{"$f":"IFERROR(IF(B83=\"\",\"\",INDEX('Product List'!C:C,MATCH(B83,'Product List'!B:B,0))),\"\")","v":""},null,null,null,null,null,null,null,{"$f":"IF(C83<>\"\",\"set\",\"\")","v":""},"",null,null,null,null,6,""]
[null,{"$f":"IF(E24=\"yes\",\"VIO-9\"&R38,\"\")","v":""},{"$f":"IFERROR(INDEX('Product List'!C:C,MATCH(B84,'Product List'!B:B,0)),\"\")","v":""},null,null,null,null,null,null,null,{"$f":"IF(C84<>\"\",\"ea\",\"\")","v":""},{"$f":"IF(B84=\"\",\"\",SUMIF($J$38:$J$57,B78,$L$38:$L$57))","v":""}]
[]
[null,"Flush Bolts",null,null,null,null,null,null,null,null,null,null,null,null,null,null,null,null,{"$f":"IF(E18=\"outward\",\"O\",\"I\")","v":"I"}]
[]
[null,{"$f":"IFERROR(INDEX('OUT-IN Open Flush Bolt'!AB:AB,MATCH($S$91,'OUT-IN Open Flush Bolt'!W:W,0))&$U$89,\"\")","v":""},{"$f":"IFERROR(IF(B88=\"\",\"\",INDEX('Product List'!C:C,MATCH(B88,'Product List'!B:B,0))),\"\")","v":""},null,null,null,null,null,null,null,{"$f":"IF(C88<>\"\",\"ea\",\"\")","v":""},{"$f":"IF(C88=\"\",\"\",COUNTIF($H$38:$H$54,\"Flush Bolts Offset\")+COUNTIF($H$38:$H$54,\"Flush Bolts\"))","v":""},null,null,null,null,null,null,{"$f":"E29","v":"Select"},{"$f":"IFERROR(INDEX('OUT-IN Open Flush Bolt'!$X$14:$X$16,MATCH(S88,'OUT-IN Open Flush Bolt'!$Y$14:$Y$16,0)),\"\")","v":""}]
[null,{"$f":"IFERROR(INDEX('OUT-IN Open Flush Bolt'!AC:AC,MATCH($S$91,'OUT-IN Open Flush Bolt'!W:W,0))&U90,\"\")","v":""},{"$f":"IFERROR(IF(B89=\"\",\"\",INDEX('Product List'!C:C,MATCH(B89,'Product List'!B:B,0))),\"\")","v":""},null,null,null,null,null,null,null,"",{"$f":"IF(C89=\"\",\"\",COUNTIF($H$38:$H$54,\"Flush Bolts Offset\")+COUNTIF($H$38:$H$54,\"Flush Bolts\"))","v":""},null,null,null,null,null,null,{"$f":"E30","v":"Select"},null,{"$f":"INDEX(List!$AY$36:$AY$40,MATCH($E$25,List!$AX$36:$AX$40,0))","v":{"$error":"#N/A"}}]
[null,null,{"$f":"IFERROR(IF(B90=\"\",\"\",INDEX('Product List'!C:C,MATCH(B90,'Product List'!B:B,0))),\"\")","v":""},null,null,null,null,null,null,null,null,null,null,null,null,null,null,null,{"$f":"E25","v":"Select"},{"$f":"INDEX(List!$AY$36:$AY$40,MATCH(S90,List!$AX$36:$AX$40,0))","v":{"$error":"#N/A"}},{"$f":"INDEX(List!$AY$36:$AY$40,MATCH($E$25,List!$AX$36:$AX$40,0))","v":{"$error":"#N/A"}}]
[null,null,{"$f":"IFERROR(IF(B91=\"\",\"\",INDEX('Product List'!C:C,MATCH(B91,'Product List'!B:B,0))),\"\")","v":""},null,null,null,null,null,null,null,null,null,null,null,null,null,null,null,{"$f":"S86&T88&S89&T90","v":{"$error":"#N/A"}}]
[null,"Seals"]
[]
[null,{"$f":"IFERROR(INDEX(List!$BC$61:$BC$62,MATCH($E$27,List!$BA$61:$BA$62,0)),\"\")","v":""},{"$f":"IFERROR(IF(B94=\"\",\"\",INDEX('Product List'!C:C,MATCH(B94,'Product List'!B:B,0))),\"\")","v":""},null,null,null,null,null,null,null,{"$f":"IF(C94<>\"\",\"ea\",\"\")","v":""},{"$f":"IFERROR(IF(L20*2+L21*2<20000,1,2),\"\")","v":""}]
[null,{"$f":"IFERROR(INDEX(List!$BC$65:$BC$66,MATCH($E$27,List!$BA$65:$BA$66,0)),\"\")","v":""},{"$f":"IFERROR(IF(B95=\"\",\"\",INDEX('Product List'!C:C,MATCH(B95,'Product List'!B:B,0))),\"\")","v":""},null,null,null,null,null,null,null,{"$f":"IF(C95<>\"\",\"ea\",\"\")","v":""},{"$f":"IFERROR(LOOKUP(2,1/(List!$AI$36:$AI$39<=M95)/(List!$AJ$36:$AJ$39>=M95),List!$AK$36:$AK$39),\"\")","v":""},{"$f":"IFERROR(((L25*2)*(Num_Left+Num_Right)),\"\")","v":""}]
[null,{"$f":"IFERROR(INDEX(List!$BC$69:$BC$70,MATCH($E$27,List!$BA$69:$BA$70,0)),\"\")","v":""},{"$f":"IFERROR(IF(B96=\"\",\"\",INDEX('Product List'!C:C,MATCH(B96,'Product List'!B:B,0))),\"\")","v":""},null,null,null,null,null,null,null,"",{"$f":"IF(L20=0,\"\",IF(L20*1<5000,1,IF(AND(L20*1>=5000,L20*1<=10000),2,IF(AND(L20*1>=10000,L20*1<=15000),3,IF(AND(L20*1>=15000,L20*1<=20000),4,\"\")))))","v":""}]
[null,null,{"$f":"IFERROR(IF(B97=\"\",\"\",INDEX('Product List'!C:C,MATCH(B97,'Product List'!B:B,0))),\"\")","v":""}]
[null,"Lock & Door Furniture"]
[]
[null,{"$f":"IFERROR(INDEX(List!BC:BC,MATCH(E31,List!BA:BA,0))&\"-\"&INDEX(List!$AY$13:$AY$16,MATCH($E$25,List!$AX$13:$AX$16,0)),\"\")","v":""},{"$f":"IFERROR(IF(B100=\"\",\"\",INDEX('Product List'!C:C,MATCH(B100,'Product List'!B:B,0))),\"\")","v":""},null,null,null,null,null,null,null,{"$f":"IF(C100<>\"\",\"ea\",\"\")","v":""},{"$f":"IF($C100<>\"\",1,\"\")","v":""}]
[null,{"$f":"IFERROR(INDEX(List!BC:BC,MATCH(E32,List!BA:BA,0))&INDEX(List!$AY$66:$AY$68,MATCH($E$25,List!$AW$66:$AW$68,0)),\"\")","v":""},{"$f":"IFERROR(IF(B101=\"\",\"\",INDEX('Product List'!C:C,MATCH(B101,'Product List'!B:B,0))),\"\")","v":""},null,null,null,null,null,null,null,{"$f":"IF(C101<>\"\",\"ea\",\"\")","v":""},{"$f":"IF($C101<>\"\",1,\"\")","v":""}]
[null,{"$f":"IFERROR(INDEX(List!$BC$40:$BC$48,MATCH(E33,List!$BA$40:$BA$48,0))&\" \"&INDEX(List!$AY$66:$AY$68,MATCH($E$25,List!$AW$66:$AW$68,0)),\"\")","v":""},{"$f":"IFERROR(IF(B102=\"\",\"\",INDEX('Product List'!C:C,MATCH(B102,'Product List'!B:B,0))),\"\")","v":""},null,null,null,null,null,null,null,{"$f":"IF(C102<>\"\",\"ea\",\"\")","v":""},{"$f":"IF($C102<>\"\",1,\"\")","v":""}]
[null,null,{"$f":"IFERROR(IF(B103=\"\",\"\",INDEX('Product List'!C:C,MATCH(B103,'Product List'!B:B,0))),\"\")","v":""},null,null,null,null,null,null,null,{"$f":"IF(C103<>\"\",\"ea\",\"\")","v":""}]
[null,"Magnetic Catches"]
[]
[null,{"$f":"IFERROR(INDEX(List!BC:BC,MATCH(E34,List!BA:BA,0))&\" \"&INDEX(List!$AY$13:$AY$16,MATCH($E$25,List!$AX$13:$AX$16,0)),\"\")","v":""},{"$f":"IFERROR(IF(B106=\"\",\"\",INDEX('Product List'!C:C,MATCH(B106,'Product List'!B:B,0))),\"\")","v":""},null,null,null,null,null,null,null,{"$f":"IF(C106<>\"\",\"ea\",\"\")","v":""},{"$f":"E35","v":0}]
[null,null,{"$f":"IFERROR(IF(B107=\"\",\"\",INDEX('Product List'!C:C,MATCH(B107,'Product List'!B:B,0))),\"\")","v":""}]
[null,null,{"$f":"IFERROR(IF(B108=\"\",\"\",INDEX('Product List'!C:C,MATCH(B108,'Product List'!B:B,0))),\"\")","v":""}]
[null,null,{"$f":"IFERROR(IF(B109=\"\",\"\",INDEX('Product List'!C:C,MATCH(B109,'Product List'!B:B,0))),\"\")","v":""}]

{"sheet":"OUT-IN Open Flush Bolt","index":1,"n_rows":189,"n_cols":29,"rows_kept":189,"cut":false,"hidden":true,"merged":[[2,23,2,24]]}
[null,"OUTWARD Opening - Flush Bolt Positioning"]
[null,"Doors Left","Doors Right"]
[{"$f":"IF(B3<>\"\",\"O\"&B3&C3,\"\")","v":"O00"},0,0,"","",null,null,null,null,null,null,null,null,null,null,null,null,null,null,null,null,null,null,"Finishes"]
[{"$f":"IF(B4<>\"\",\"O\"&B4&C4,\"\")","v":"O10"},1,0,"ML",null,null,null,null,null,null,null,null,null,null,null,null,null,null,null,null,null,null,null,"SSS","SatinStainless"]
["O20",2,0,null,"Flush Bolts",null,null,null,null,null,null,null,null,null,null,null,null,null,null,null,null,null,null,"PSS","Polished Stainless"]
["O30",3,0,null,"Flush Bolts","ML","",null,null,null,null,null,null,null,null,null,null,null,null,null,null,null,null,"BLK","Black"]
["O40",4,0,null,"Flush Bolts",null,"Flush Bolts",null,null,null,null,null,null,null,null,null,null,null,null,null,null,null,null,"WHT","White"]
["O50",5,0,null,"Flush Bolts",null,"Flush Bolts","ML","",null,null,null,null,null,null,null,null,null,null,null,null,null,null,"SNA","Satin Natural Anodised"]
["O60",6,0,null,"Flush Bolts",null,"Flush Bolts",null,"Flush Bolts"]
["O70",7,0,null,"Flush Bolts",null,"Flush Bolts",null,"Flush Bolts","ML"]
["O80",8,0,null,"Flush Bolts",null,"Flush Bolts",null,"Flush Bolts",null,"Flush Bolts"]
["",null,null,null,null,null,null,null,null,null,null,null,null,null,null,null,null,null,null,null,null,null,null,null,"Pulldown ROW 29"]
["O01",0,1,"ML"]
["O11",1,1,"ML",null,"Flush Bolts",null,null,null,null,null,null,null,null,null,null,null,null,null,null,null,null,null,1,"Top 200mm / Bottom 200mm","01 = 200"]
["O21",2,1,null,"Flush Bolts",null,"ML",null,null,null,null,null,null,null,null,null,null,null,null,null,null,null,null,2,"Top 400mm / Bottom 200mm","02 = 400"]
["O31",3,1,"Flush Bolts",null,"Flush Bolts","","ML","",null,null,null,null,null,null,null,null,null,null,null,null,null,null,3,"Top 600mm / Bottom 200mm","03 = 600"]
["O41",4,1,null,"Flush Bolts",null,"Flush Bolts",null,""]
["O51",5,1,"Flush Bolts",null,"Flush Bolts",null,"Flush Bolts",null,"ML",null,null,null,null,null,null,null,null,null,null,null,null,null,null,null,"FB = VFB"]
["O61",6,1,null,"Flush Bolts",null,"Flush Bolts",null,"Flush Bolts",null,"ML",null,null,null,null,null,null,null,null,null,null,null,null,null,null,"FBO = VFBO"]
["O71",7,1,"Flush Bolts",null,"Flush Bolts",null,"Flush Bolts",null,"Flush Bolts","","ML"]
["O81",8,1,null,"Flush Bolts",null,"Flush Bolts",null,"Flush Bolts",null,"Flush Bolts",null,"ML"]
["",null,null,null,null,null,null,null,null,null,null,null,null,null,null,null,null,null,null,null,null,null,null,null,"Pulldown ROW 29"]
["O02",0,2,"Flush Bolts","ML",null,null,null,null,null,null,null,null,null,null,null,null,null,null,null,null,null,null,null,null,"OUTWARD Opening",null,200,200]
["O12",1,2,"ML","","Flush Bolts",null,null,null,null,null,null,null,null,null,null,null,null,null,null,null,null,null,null,null,null,null,"Top","Bottom"]
["O22",2,2,null,"Flush Bolts",null,"Flush Bolts",null,null,null,null,null,null,null,null,null,null,null,null,null,null,null,{"$f":"X25&Y25&'Calculator & BOM'!$T$90","v":{"$error":"#N/A"}},"O1","Both Bolts Non-Lockable","VFB + VFB",null,"VFB-01","VFB-01"]
["O32",3,2,null,"Flush Bolts","ML",null,"Flush Bolts",null,null,null,null,null,null,null,null,null,null,null,null,null,null,{"$f":"X26&Y26&'Calculator & BOM'!$T$90","v":{"$error":"#N/A"}},{"$f":"X25","v":"O1"},"Top Bolt Key Lockable","VFBL + VFB",null,"VFBL-01","VFB-01"]
["O42",4,2,null,"Flush Bolts",null,"Flush Bolts",null,"Flush Bolts",null,null,null,null,null,null,null,null,null,null,null,null,null,{"$f":"X27&Y27&'Calculator & BOM'!$T$90","v":{"$error":"#N/A"}},{"$f":"X26","v":"O1"},"Bottom Bolt Key Lockable","VFB + VFBL",null,"VFB-01","VFBL-01"]
["O52",5,2,null,"Flush Bolts",null,"Flush Bolts","ML",null,"Flush Bolts",null,null,null,null,null,null,null,null,null,null,null,null,{"$f":"X28&Y28&'Calculator & BOM'!$T$90","v":{"$error":"#N/A"}},"O1","Both Bolts Key Lockable","VFBL + VFBL",null,"VFBL-01","VFBL-01"]
["O62",6,2,null,"Flush Bolts",null,"Flush Bolts",null,"Flush Bolts",null,"Flush Bolts"]
["O72",7,2,null,"Flush Bolts",null,"Flush Bolts",null,"Flush Bolts","ML",null,"Flush Bolts",null,null,null,null,null,null,null,null,null,null,null,null,null,null,null,400,200]
["O82",8,2,null,"Flush Bolts",null,"Flush Bolts",null,"Flush Bolts",null,"Flush Bolts",null,"Flush Bolts",null,null,null,null,null,null,null,null,null,null,null,null,null,null,"Top","Bottom"]
["",null,null,null,null,null,null,null,null,null,null,null,null,null,null,null,null,null,null,null,null,null,{"$f":"X32&Y32&'Calculator & BOM'!$T$90","v":{"$error":"#N/A"}},"O2","Both Bolts Non-Lockable","VFB + VFB",null,"VFB-02","VFB-01"]
["O03",0,3,null,"Flush Bolts","ML",null,null,null,null,null,null,null,null,null,null,null,null,null,null,null,null,{"$f":"X33&Y33&'Calculator & BOM'!$T$90","v":{"$error":"#N/A"}},{"$f":"X32","v":"O2"},"Top Bolt Key Lockable","VFBL + VFB",null,"VFBL-02","VFB-01"]
["O13",1,3,"ML",null,"Flush Bolts","Flush Bolts",null,null,null,null,null,null,null,null,null,null,null,null,null,null,null,{"$f":"X34&Y34&'Calculator & BOM'!$T$90","v":{"$error":"#N/A"}},{"$f":"X33","v":"O2"},"Bottom Bolt Key Lockable","VFB + VFBL",null,"VFB-02","VFBL-01"]
["O23",2,3,"Flush Bolts","ML",null,null,"Flush Bolts",null,null,null,null,null,null,null,null,null,null,null,null,null,null,{"$f":"X35&Y35&'Calculator & BOM'!$T$90","v":{"$error":"#N/A"}},"O2","Both Bolts Key Lockable","VFBL + VFBL",null,"VFBL-02","VFBL-01"]
["O33",3,3,null,"Flush Bolts","Flush Bolts",null,"ML","Flush Bolts"]
["O43",4,3,null,"Flush Bolts",null,"Flush Bolts",null,"ML","Flush Bolts",null,null,null,null,null,null,null,null,null,null,null,null,null,null,null,null,null,600,200]
["O53",5,3,null,"Flush Bolts",null,"Flush Bolts","Flush Bolts",null,"ML","Flush Bolts",null,null,null,null,null,null,null,null,null,null,null,null,null,null,null,null,"Top","Bottom"]
["O63",6,3,null,"Flush Bolts",null,"Flush Bolts",null,"Flush Bolts",null,"ML","Flush Bolts",null,null,null,null,null,null,null,null,null,null,{"$f":"X39&Y39&'Calculator & BOM'!$T$90","v":{"$error":"#N/A"}},"O3","Both Bolts Non-Lockable","VFB + VFB",null,"VFB-03","VFB-01"]
["O73",7,3,null,"Flush Bolts",null,"Flush Bolts",null,"Flush Bolts","Flush Bolts",null,"ML","Flush Bolts",null,null,null,null,null,null,null,null,null,{"$f":"X40&Y40&'Calculator & BOM'!$T$90","v":{"$error":"#N/A"}},{"$f":"X39","v":"O3"},"Top Bolt Key Lockable","VFBL + VFB",null,"VFBL-03","VFB-01"]
["O83",8,3,null,"Flush Bolts",null,"Flush Bolts",null,"Flush Bolts",null,"Flush Bolts",null,"ML","Flush Bolts",null,null,null,null,null,null,null,null,{"$f":"X41&Y41&'Calculator & BOM'!$T$90","v":{"$error":"#N/A"}},{"$f":"X40","v":"O3"},"Bottom Bolt Key Lockable","VFB + VFBL",null,"VFB-03","VFBL-01"]
["",null,null,null,null,null,null,null,null,null,null,null,null,null,null,null,null,null,null,null,null,null,{"$f":"X42&Y42&'Calculator & BOM'!$T$90","v":{"$error":"#N/A"}},"O3","Both Bolts Key Lockable","VFBL + VFBL",null,"VFBL-03","VFBL-01"]
["O04",0,4,null,"Flush Bolts",null,"Flush Bolts"]
["O14",1,4,"ML",null,"Flush Bolts",null,"Flush Bolts"]
["O24",2,4,null,"Flush Bolts",null,"Flush Bolts",null,"Flush Bolts"]
["O34",3,4,null,"Flush Bolts","ML",null,"Flush Bolts",null,"Flush Bolts",null,null,null,null,null,null,null,null,null,null,null,null,null,null,null,"INWARD Opening",null,200,200]
["O44",4,4,null,"Flush Bolts",null,"Flush Bolts",null,"Flush Bolts",null,"Flush Bolts",null,null,null,null,null,null,null,null,null,null,null,null,null,null,null,null,"Top","Bottom"]
["O54",5,4,null,"Flush Bolts",null,"Flush Bolts","ML",null,"Flush Bolts",null,"Flush Bolts",null,null,null,null,null,null,null,null,null,null,{"$f":"X48&Y48&'Calculator & BOM'!$T$90","v":{"$error":"#N/A"}},"I1","Both Bolts Non-Lockable","VFBO + VFBO",null,"VFBO-01","VFBO-01"]
["O64",6,4,null,"Flush Bolts",null,"Flush Bolts",null,"Flush Bolts",null,null,"Flush Bolts",null,"Flush Bolts",null,null,null,null,null,null,null,null,{"$f":"X49&Y49&'Calculator & BOM'!$T$90","v":{"$error":"#N/A"}},{"$f":"X48","v":"I1"},"Top Bolt Key Lockable","VFBOL + VFBO",null,"VFBOL-01","VFBO-01"]
["O74",7,4,null,"Flush Bolts",null,"Flush Bolts",null,"Flush Bolts","ML",null,"Flush Bolts",null,"Flush Bolts",null,null,null,null,null,null,null,null,{"$f":"X50&Y50&'Calculator & BOM'!$T$90","v":{"$error":"#N/A"}},{"$f":"X49","v":"I1"},"Bottom Bolt Key Lockable","VFBO + VFBOL",null,"VFBO-01","VFBOL-01"]
["O84",8,4,null,"Flush Bolts",null,"Flush Bolts",null,"Flush Bolts",null,"Flush Bolts",null,"Flush Bolts",null,"Flush Bolts",null,null,null,null,null,null,null,{"$f":"X51&Y51&'Calculator & BOM'!$T$90","v":{"$error":"#N/A"}},"I1","Both Bolts Key Lockable","VFBOL + VFBOL",null,"VFBOL-01","VFBOL-01"]
["",null,null,null,null,null,null,null,null,null,null,null,null,null,null,null,null,null,null,null,null,null,null,null,null,null,null,400,200]
["O05",0,5,null,"Flush Bolts",null,"Flush Bolts","ML",null,null,null,null,null,null,null,null,null,null,null,null,null,null,null,null,null,null,null,"Top","Bottom"]
["O15",1,5,"ML",null,"Flush Bolts","Flush Bolts",null,"Flush Bolts",null,null,null,null,null,null,null,null,null,null,null,null,null,{"$f":"X54&Y54&'Calculator & BOM'!$T$90","v":{"$error":"#N/A"}},"I2","Both Bolts Non-Lockable","VFBO + VFBO",null,"VFBO-02","VFBO-01"]
["O25",2,5,null,"Flush Bolts",null,"ML","Flush Bolts",null,"Flush Bolts",null,null,null,null,null,null,null,null,null,null,null,null,{"$f":"X55&Y55&'Calculator & BOM'!$T$90","v":{"$error":"#N/A"}},"I2","Top Bolt Key Lockable","VFBOL + VFBO",null,"VFBOL-02","VFBO-01"]
["O35",3,5,null,"Flush Bolts","ML",null,"Flush Bolts","Flush Bolts",null,"Flush Bolts",null,null,null,null,null,null,null,null,null,null,null,{"$f":"X56&Y56&'Calculator & BOM'!$T$90","v":{"$error":"#N/A"}},{"$f":"X55","v":"I2"},"Bottom Bolt Key Lockable","VFBO + VFBOL",null,"VFBOL-02","VFBOL-01"]
["O45",4,5,null,"Flush Bolts",null,"Flush Bolts",null,"ML","Flush Bolts",null,"Flush Bolts",null,null,null,null,null,null,null,null,null,null,{"$f":"X57&Y57&'Calculator & BOM'!$T$90","v":{"$error":"#N/A"}},{"$f":"X56","v":"I2"},"Both Bolts Key Lockable","VFBOL + VFBOL",null,"VFBOL-02","VFBOL-01"]
["O55",5,5,null,"Flush Bolts",null,"Flush Bolts","ML",null,"Flush Bolts","Flush Bolts",null,"Flush Bolts",null,null,null,null,null,null,null,null,null,null,null,null,null,null,600,200]
["O65",6,5,null,"Flush Bolts",null,"Flush Bolts",null,"Flush Bolts",null,"ML","Flush Bolts",null,"Flush Bolts",null,null,null,null,null,null,null,null,null,null,null,null,null,"Top","Bottom"]
["O75",7,5,null,"Flush Bolts",null,"Flush Bolts",null,"Flush Bolts","Flush Bolts",null,"ML","Flush Bolts",null,"Flush Bolts",null,null,null,null,null,null,null,{"$f":"X60&Y60&'Calculator & BOM'!$T$90","v":{"$error":"#N/A"}},"I3","Both Bolts Non-Lockable","VFBO + VFBO",null,"VFBO-03","VFBO-01"]
["O85",8,5,null,"Flush Bolts",null,"Flush Bolts",null,"Flush Bolts",null,"Flush Bolts",null,"ML","Flush Bolts",null,"Flush Bolts",null,null,null,null,null,null,{"$f":"X61&Y61&'Calculator & BOM'!$T$90","v":{"$error":"#N/A"}},{"$f":"X60","v":"I3"},"Top Bolt Key Lockable","VFBOL + VFBO",null,"VFBOL-03","VFBO-01"]
["",null,null,null,null,null,null,null,null,null,null,null,null,null,null,null,null,null,null,null,null,null,{"$f":"X62&Y62&'Calculator & BOM'!$T$90","v":{"$error":"#N/A"}},{"$f":"X61","v":"I3"},"Bottom Bolt Key Lockable","VFBO + VFBOL",null,"VFBO-03","VFBOL-01"]
["O06",0,6,null,"Flush Bolts",null,"Flush Bolts",null,"Flush Bolts",null,null,null,null,null,null,null,null,null,null,null,null,null,{"$f":"X63&Y63&'Calculator & BOM'!$T$90","v":{"$error":"#N/A"}},"I3","Both Bolts Key Lockable","VFBOL + VFBOL",null,"VFBOL-03","VFBOL-01"]
["O16",1,6,"ML",null,"Flush Bolts",null,"Flush Bolts",null,"Flush Bolts"]
["O26",2,6,null,"Flush Bolts",null,"Flush Bolts",null,"Flush Bolts",null,"Flush Bolts"]
["O36",3,6,null,"Flush Bolts","ML",null,"Flush Bolts",null,"Flush Bolts",null,"Flush Bolts"]
["O46",4,6,null,"Flush Bolts",null,"Flush Bolts",null,"Flush Bolts",null,"Flush Bolts",null,"Flush Bolts"]
[{"$f":"IF(B68<>\"\",\"O\"&B68&C68,\"\")","v":"O56"},5,6,null,"Flush Bolts",null,"Flush Bolts","ML",null,"Flush Bolts",null,"Flush Bolts",null,"Flush Bolts"]
["O66",6,6,null,"Flush Bolts",null,"Flush Bolts",null,"Flush Bolts",null,"Flush Bolts",null,"Flush Bolts",null,"Flush Bolts"]
["O76",7,6,null,"Flush Bolts",null,"Flush Bolts",null,"Flush Bolts","ML",null,"Flush Bolts",null,"Flush Bolts",null,"Flush Bolts"]
["O86",8,6,null,"Flush Bolts",null,"Flush Bolts",null,"Flush Bolts",null,"Flush Bolts",null,"Flush Bolts",null,"Flush Bolts",null,"Flush Bolts"]
[""]
["O07",0,7,null,"Flush Bolts",null,"Flush Bolts",null,"Flush Bolts","ML"]
["O17",1,7,"ML",null,"Flush Bolts","Flush Bolts",null,"Flush Bolts",null,"Flush Bolts"]
["O27",2,7,null,"Flush Bolts",null,null,"Flush Bolts",null,"Flush Bolts",null,"Flush Bolts"]
["O37",3,7,null,"Flush Bolts","ML",null,"Flush Bolts","Flush Bolts",null,"Flush Bolts",null,"Flush Bolts"]
["O47",4,7,null,"Flush Bolts",null,"Flush Bolts",null,"ML","Flush Bolts",null,"Flush Bolts",null,"Flush Bolts"]
["O57",5,7,null,"Flush Bolts",null,"Flush Bolts","ML",null,"Flush Bolts",null,"Flush Bolts",null,"Flush Bolts",null,"Flush Bolts"]
["O67",6,7,null,"Flush Bolts",null,"Flush Bolts",null,"Flush Bolts",null,"ML","Flush Bolts",null,"Flush Bolts",null,"Flush Bolts"]
["O77",7,7,null,"Flush Bolts",null,"Flush Bolts",null,"Flush Bolts","ML",null,"Flush Bolts","Flush Bolts",null,"Flush Bolts",null,"Flush Bolts"]
["O87",8,7,null,"Flush Bolts",null,"Flush Bolts",null,"Flush Bolts",null,"Flush Bolts",null,"ML","Flush Bolts",null,"Flush Bolts",null,"Flush Bolts"]
[""]
["O08",0,8,null,"Flush Bolts",null,"Flush Bolts",null,"Flush Bolts",null,"Flush Bolts"]
["O18",1,8,"ML",null,"Flush Bolts",null,"Flush Bolts",null,"Flush Bolts",null,"Flush Bolts"]
["O28",2,8,null,"Flush Bolts",null,"Flush Bolts",null,"Flush Bolts",null,"Flush Bolts",null,"Flush Bolts"]
["O38",3,8,null,"Flush Bolts","ML",null,"Flush Bolts",null,"Flush Bolts",null,"Flush Bolts",null,"Flush Bolts"]
["O48",4,8,null,"Flush Bolts",null,"Flush Bolts",null,"Flush Bolts",null,"Flush Bolts",null,"Flush Bolts",null,"Flush Bolts"]
["O58",5,8,null,"Flush Bolts",null,"Flush Bolts","ML",null,"Flush Bolts",null,"Flush Bolts",null,"Flush Bolts",null,"Flush Bolts"]
["O68",6,8,null,"Flush Bolts",null,"Flush Bolts",null,"Flush Bolts",null,"Flush Bolts",null,"Flush Bolts",null,"Flush Bolts",null,"Flush Bolts"]
["O78",7,8,null,"Flush Bolts",null,"Flush Bolts",null,"Flush Bolts","ML",null,"Flush Bolts",null,"Flush Bolts",null,"Flush Bolts",null,"Flush Bolts"]
[{"$f":"IF(B91<>\"\",\"O\"&B91&C91,\"\")","v":"O88"},8,8,null,"Flush Bolts",null,"Flush Bolts",null,"Flush Bolts",null,"Flush Bolts",null,"Flush Bolts",null,"Flush Bolts",null,"Flush Bolts",null,"Flush Bolts"]
[]
[]
[]
[]
[]
[]
[]
[null,"INWARD Opening - Flush Bolts Positioning"]
[null,"Doors Left","Doors Right"]
[{"$f":"IF(B101<>\"\",\"I\"&B101&C101,\"\")","v":"I00"},0,0,"",""]
[{"$f":"IF(B102<>\"\",\"I\"&B102&C102,\"\")","v":"I10"},1,0,"ML"]
["I20",2,0,null,"Flush Bolts Offset"]
["I30",3,0,null,"Flush Bolts Offset","ML",""]
["I40",4,0,null,"Flush Bolts Offset",null,"Flush Bolts Offset"]
["I50",5,0,null,"Flush Bolts Offset",null,"Flush Bolts Offset","ML",""]
["I60",6,0,null,"Flush Bolts Offset",null,"Flush Bolts Offset",null,"Flush Bolts Offset"]
["I70",7,0,null,"Flush Bolts Offset",null,"Flush Bolts Offset",null,"Flush Bolts Offset","ML"]
["I80",8,0,null,"Flush Bolts Offset",null,"Flush Bolts Offset",null,"Flush Bolts Offset",null,"Flush Bolts Offset"]
[""]
["I01",0,1,"ML"]
["I11",1,1,"ML",null,"Flush Bolts Offset"]
["I21",2,1,null,"Flush Bolts Offset",null,"ML"]
["I31",3,1,"Flush Bolts Offset",null,"Flush Bolts Offset","","ML",""]
["I41",4,1,null,"Flush Bolts Offset",null,"Flush Bolts Offset",null,""]
["I51",5,1,"Flush Bolts Offset",null,"Flush Bolts Offset",null,"Flush Bolts Offset",null,"ML"]
["I61",6,1,null,"Flush Bolts Offset",null,"Flush Bolts Offset",null,"Flush Bolts Offset",null,"ML"]
["I71",7,1,"Flush Bolts Offset",null,"Flush Bolts Offset",null,"Flush Bolts Offset",null,"Flush Bolts Offset","","ML"]
["I81",8,1,null,"Flush Bolts Offset",null,"Flush Bolts Offset",null,"Flush Bolts Offset",null,"Flush Bolts Offset",null,"ML"]
[""]
["I02",0,2,"Flush Bolts Offset","ML"]
["I12",1,2,"ML","","Flush Bolts Offset"]
["I22",2,2,null,"Flush Bolts Offset",null,"Flush Bolts Offset"]
["I32",3,2,null,"Flush Bolts Offset","ML",null,"Flush Bolts Offset"]
["I42",4,2,null,"Flush Bolts Offset",null,"Flush Bolts Offset",null,"Flush Bolts Offset"]
["I52",5,2,null,"Flush Bolts Offset",null,"Flush Bolts Offset","ML",null,"Flush Bolts Offset"]
["I62",6,2,null,"Flush Bolts Offset",null,"Flush Bolts Offset",null,"Flush Bolts Offset",null,"Flush Bolts Offset"]
["I72",7,2,null,"Flush Bolts Offset",null,"Flush Bolts Offset",null,"Flush Bolts Offset","ML",null,"Flush Bolts Offset"]
["I82",8,2,null,"Flush Bolts Offset",null,"Flush Bolts Offset",null,"Flush Bolts Offset",null,"Flush Bolts Offset",null,"Flush Bolts Offset"]
[""]
["I03",0,3,null,"Flush Bolts Offset","ML"]
["I13",1,3,"ML",null,"Flush Bolts Offset","Flush Bolts Offset"]
["I23",2,3,"Flush Bolts Offset","ML",null,null,"Flush Bolts Offset"]
["I33",3,3,null,"Flush Bolts Offset","Flush Bolts Offset",null,"ML","Flush Bolts Offset"]
["I43",4,3,null,"Flush Bolts Offset",null,"Flush Bolts Offset",null,"ML","Flush Bolts Offset"]
["I53",5,3,null,"Flush Bolts Offset",null,"Flush Bolts Offset","Flush Bolts Offset",null,"ML","Flush Bolts Offset"]
["I63",6,3,null,"Flush Bolts Offset",null,"Flush Bolts Offset",null,"Flush Bolts Offset",null,"ML","Flush Bolts Offset"]
["I73",7,3,null,"Flush Bolts Offset",null,"Flush Bolts Offset",null,"Flush Bolts Offset","Flush Bolts Offset",null,"ML","Flush Bolts Offset"]
["I83",8,3,null,"Flush Bolts Offset",null,"Flush Bolts Offset",null,"Flush Bolts Offset",null,"Flush Bolts Offset",null,"ML","Flush Bolts Offset"]
[""]
["I04",0,4,null,"Flush Bolts Offset",null,"Flush Bolts Offset"]
["I14",1,4,"ML",null,"Flush Bolts Offset",null,"Flush Bolts Offset"]
["I24",2,4,null,"Flush Bolts Offset",null,"Flush Bolts Offset",null,"Flush Bolts Offset"]
["I34",3,4,null,"Flush Bolts Offset","ML",null,"Flush Bolts Offset",null,"Flush Bolts Offset"]
["I44",4,4,null,"Flush Bolts Offset",null,"Flush Bolts Offset",null,"Flush Bolts Offset",null,"Flush Bolts Offset"]
["I54",5,4,null,"Flush Bolts Offset",null,"Flush Bolts Offset","ML",null,"Flush Bolts Offset",null,"Flush Bolts Offset"]
["I64",6,4,null,"Flush Bolts Offset",null,"Flush Bolts Offset",null,"Flush Bolts Offset",null,null,"Flush Bolts Offset",null,"Flush Bolts Offset"]
["I74",7,4,null,"Flush Bolts Offset",null,"Flush Bolts Offset",null,"Flush Bolts Offset","ML",null,"Flush Bolts Offset",null,"Flush Bolts Offset"]
["I84",8,4,null,"Flush Bolts Offset",null,"Flush Bolts Offset",null,"Flush Bolts Offset",null,"Flush Bolts Offset",null,"Flush Bolts Offset",null,"Flush Bolts Offset"]
[""]
["I05",0,5,null,"Flush Bolts Offset",null,"Flush Bolts Offset","ML"]
["I15",1,5,"ML",null,"Flush Bolts Offset","Flush Bolts Offset",null,"Flush Bolts Offset"]
["I25",2,5,null,"Flush Bolts Offset",null,"ML","Flush Bolts Offset",null,"Flush Bolts Offset"]
["I35",3,5,null,"Flush Bolts Offset","ML",null,"Flush Bolts Offset","Flush Bolts Offset",null,"Flush Bolts Offset"]
["I45",4,5,null,"Flush Bolts Offset",null,"Flush Bolts Offset",null,"ML","Flush Bolts Offset",null,"Flush Bolts Offset"]
["I55",5,5,null,"Flush Bolts Offset",null,"Flush Bolts Offset","ML",null,"Flush Bolts Offset","Flush Bolts Offset",null,"Flush Bolts Offset"]
["I65",6,5,null,"Flush Bolts Offset",null,"Flush Bolts Offset",null,"Flush Bolts Offset",null,"ML","Flush Bolts Offset",null,"Flush Bolts Offset"]
["I75",7,5,null,"Flush Bolts Offset",null,"Flush Bolts Offset",null,"Flush Bolts Offset","Flush Bolts Offset",null,"ML","Flush Bolts Offset",null,"Flush Bolts Offset"]
["I85",8,5,null,"Flush Bolts Offset",null,"Flush Bolts Offset",null,"Flush Bolts Offset",null,"Flush Bolts Offset",null,"ML","Flush Bolts Offset",null,"Flush Bolts Offset"]
[""]
["I06",0,6,null,"Flush Bolts Offset",null,"Flush Bolts Offset",null,"Flush Bolts Offset"]
["I16",1,6,"ML",null,"Flush Bolts Offset",null,"Flush Bolts Offset",null,"Flush Bolts Offset"]
["I26",2,6,null,"Flush Bolts Offset",null,"Flush Bolts Offset",null,"Flush Bolts Offset",null,"Flush Bolts Offset"]
["I36",3,6,null,"Flush Bolts Offset","ML",null,"Flush Bolts Offset",null,"Flush Bolts Offset",null,"Flush Bolts Offset"]
["I46",4,6,null,"Flush Bolts Offset",null,"Flush Bolts Offset",null,"Flush Bolts Offset",null,"Flush Bolts Offset",null,"Flush Bolts Offset"]
[{"$f":"IF(B166<>\"\",\"I\"&B166&C166,\"\")","v":"I56"},5,6,null,"Flush Bolts Offset",null,"Flush Bolts Offset","ML",null,"Flush Bolts Offset",null,"Flush Bolts Offset",null,"Flush Bolts Offset"]
["I66",6,6,null,"Flush Bolts Offset",null,"Flush Bolts Offset",null,"Flush Bolts Offset",null,"Flush Bolts Offset",null,"Flush Bolts Offset",null,"Flush Bolts Offset"]
["I76",7,6,null,"Flush Bolts Offset",null,"Flush Bolts Offset",null,"Flush Bolts Offset","ML",null,"Flush Bolts Offset",null,"Flush Bolts Offset",null,"Flush Bolts Offset"]
["I86",8,6,null,"Flush Bolts Offset",null,"Flush Bolts Offset",null,"Flush Bolts Offset",null,"Flush Bolts Offset",null,"Flush Bolts Offset",null,"Flush Bolts Offset",null,"Flush Bolts Offset"]
[""]
["I07",0,7,null,"Flush Bolts Offset",null,"Flush Bolts Offset",null,"Flush Bolts Offset","ML"]
["I17",1,7,"ML",null,"Flush Bolts Offset","Flush Bolts Offset",null,"Flush Bolts Offset",null,"Flush Bolts Offset"]
["I27",2,7,null,"Flush Bolts Offset",null,null,"Flush Bolts Offset",null,"Flush Bolts Offset",null,"Flush Bolts Offset"]
["I37",3,7,null,"Flush Bolts Offset","ML",null,"Flush Bolts Offset","Flush Bolts Offset",null,"Flush Bolts Offset",null,"Flush Bolts Offset"]
["I47",4,7,null,"Flush Bolts Offset",null,"Flush Bolts Offset",null,"ML","Flush Bolts Offset",null,"Flush Bolts Offset",null,"Flush Bolts Offset"]
["I57",5,7,null,"Flush Bolts Offset",null,"Flush Bolts Offset","ML",null,"Flush Bolts Offset",null,"Flush Bolts Offset",null,"Flush Bolts Offset",null,"Flush Bolts Offset"]
["I67",6,7,null,"Flush Bolts Offset",null,"Flush Bolts Offset",null,"Flush Bolts Offset",null,"ML","Flush Bolts Offset",null,"Flush Bolts Offset",null,"Flush Bolts Offset"]
["I77",7,7,null,"Flush Bolts Offset",null,"Flush Bolts Offset",null,"Flush Bolts Offset","ML",null,"Flush Bolts Offset","Flush Bolts Offset",null,"Flush Bolts Offset",null,"Flush Bolts Offset"]
["I87",8,7,null,"Flush Bolts Offset",null,"Flush Bolts Offset",null,"Flush Bolts Offset",null,"Flush Bolts Offset",null,"ML","Flush Bolts Offset",null,"Flush Bolts Offset",null,"Flush Bolts Offset"]
[""]
["I08",0,8,null,"Flush Bolts Offset",null,"Flush Bolts Offset",null,"Flush Bolts Offset",null,"Flush Bolts Offset"]
["I18",1,8,"ML",null,"Flush Bolts Offset",null,"Flush Bolts Offset",null,"Flush Bolts Offset",null,"Flush Bolts Offset"]
["I28",2,8,null,"Flush Bolts Offset",null,"Flush Bolts Offset",null,"Flush Bolts Offset",null,"Flush Bolts Offset",null,"Flush Bolts Offset"]
["I38",3,8,null,"Flush Bolts Offset","ML",null,"Flush Bolts Offset",null,"Flush Bolts Offset",null,"Flush Bolts Offset",null,"Flush Bolts Offset"]
["I48",4,8,null,"Flush Bolts Offset",null,"Flush Bolts Offset",null,"Flush Bolts Offset",null,"Flush Bolts Offset",null,"Flush Bolts Offset",null,"Flush Bolts Offset"]
["I58",5,8,null,"Flush Bolts Offset",null,"Flush Bolts Offset","ML",null,"Flush Bolts Offset",null,"Flush Bolts Offset",null,"Flush Bolts Offset",null,"Flush Bolts Offset"]
["I68",6,8,null,"Flush Bolts Offset",null,"Flush Bolts Offset",null,"Flush Bolts Offset",null,"Flush Bolts Offset",null,"Flush Bolts Offset",null,"Flush Bolts Offset",null,"Flush Bolts Offset"]
["I78",7,8,null,"Flush Bolts Offset",null,"Flush Bolts Offset",null,"Flush Bolts Offset","ML",null,"Flush Bolts Offset",null,"Flush Bolts Offset",null,"Flush Bolts Offset",null,"Flush Bolts Offset"]
["I88",8,8,null,"Flush Bolts Offset",null,"Flush Bolts Offset",null,"Flush Bolts Offset",null,"Flush Bolts Offset",null,"Flush Bolts Offset",null,"Flush Bolts Offset",null,"Flush Bolts Offset",null,"Flush Bolts Offset"]

{"sheet":"OUT-IN Open Rebated","index":2,"n_rows":189,"n_cols":25,"rows_kept":189,"cut":false,"hidden":true,"merged":[[0,1,0,2],[2,23,2,24],[98,1,98,2]]}
[null,"OUTWARD Opening"]
[null,"Doors Left","Doors Right"]
[{"$f":"IF(B3<>\"\",\"O\"&B3&C3,\"\")","v":"O00"},0,0,"","","",null,null,null,null,null,null,null,null,null,null,null,null,null,null,null,null,null,"Finishes"]
[{"$f":"IF(B4<>\"\",\"O\"&B4&C4,\"\")","v":"O10"},1,0,"VIO-1",null,null,null,null,null,null,null,null,null,null,null,null,null,null,null,null,null,null,null,"SSS","SatinStainless Steel"]
["O20",2,0,"VIO-1","VIO-3","VIO-2",null,null,null,null,null,null,null,null,null,null,null,null,null,null,null,null,null,"PSS","Polished Stainless Steel"]
["O30",3,0,"VIO-1","VIO-7","VIO-4","",null,null,null,null,null,null,null,null,null,null,null,null,null,null,null,null,"BLK","Black Powdercoat"]
["O40",4,0,"VIO-1","VIO-7","VIO-4","VIO-7","VIO-2",null,null,null,null,null,null,null,null,null,null,null,null,null,null,null,"WHT","White Powdercoat"]
["O50",5,0,"VIO-1","VIO-7","VIO-4","VIO-3","VIO-4","",null,null,null,null,null,null,null,null,null,null,null,null,null,null,"PVD","PVD"]
["O60",6,0,"VIO-1","VIO-7","VIO-4","VIO-3","VIO-4","VIO-7","VIO-2"]
["O70",7,0,"VIO-1","VIO-7","VIO-4","VIO-3","VIO-4","VIO-3","VIO-4",""]
["O80",8,0,"VIO-1","VIO-7","VIO-4","VIO-3","VIO-4","VIO-3","VIO-4","VIO-7","VIO-2"]
[""]
["O01",0,1,"VIO-1"]
["O11",1,1,"VIO-1","","VIO-1"]
["O21",2,1,"VIO-1","VIO-3","VIO-2","","VIO-1"]
["O31",3,1,"VIO-1","VIO-7","VIO-4","","VIO-1",""]
["O41",4,1,"VIO-1","VIO-7","VIO-4","VIO-7","VIO-2","","VIO-1"]
["O51",5,1,"VIO-1","VIO-7","VIO-4","VIO-3","VIO-4","","VIO-1"]
["O61",6,1,"VIO-1","VIO-7","VIO-4","VIO-3","VIO-4","VIO-7","VIO-2","","VIO-1"]
["O71",7,1,"VIO-1","VIO-7","VIO-4","VIO-3","VIO-4","VIO-3","VIO-4","","VIO-1"]
["O81",8,1,"VIO-1","VIO-7","VIO-4","VIO-3","VIO-4","VIO-3","VIO-4","VIO-7","VIO-2","VIO-1"]
[""]
["O02",0,2,"VIO-2","VIO-3","VIO-1"]
["O12",1,2,"VIO-1","","VIO-2","VIO-3","VIO-1"]
["O22",2,2,"VIO-1","VIO-3","","VIO-8","","VIO-3","VIO-1"]
["O32",3,2,"VIO-1","VIO-7","VIO-4",null,"VIO-2","VIO-3","VIO-1"]
["O42",4,2,"VIO-1","VIO-7","VIO-4","VIO-7",null,"VIO-8",null,"VIO-3","VIO-1"]
["O52",5,2,"VIO-1","VIO-7","VIO-4","VIO-3","VIO-4",null,"VIO-2","VIO-3","VIO-1"]
["O62",6,2,"VIO-1","VIO-7","VIO-4","VIO-3","VIO-4","VIO-7",null,"VIO-8",null,"VIO-3","VIO-1"]
["O72",7,2,"VIO-1","VIO-7","VIO-4","VIO-3","VIO-4","VIO-3","VIO-4",null,"VIO-2","VIO-3","VIO-1"]
["O82",8,2,"VIO-1","VIO-7","VIO-4","VIO-3","VIO-4","VIO-3","VIO-4","VIO-7",null,"VIO-8",null,"VIO-3","VIO-1"]
[""]
["O03",0,3,"VIO-4","VIO-7","VIO-1"]
["O13",1,3,"VIO-1",null,"VIO-4","VIO-7","VIO-1"]
["O23",2,3,"VIO-1","VIO-3","VIO-2",null,"VIO-4","VIO-7","VIO-1"]
["O33",3,3,"VIO-1","VIO-7","VIO-4",null,"VIO-4","VIO-7","VIO-1"]
["O43",4,3,"VIO-1","VIO-7","VIO-4","VIO-7","VIO-2",null,"VIO-4","VIO-7","VIO-1"]
["O53",5,3,"VIO-1","VIO-7","VIO-4","VIO-3","VIO-4",null,"VIO-4","VIO-7","VIO-1"]
["O63",6,3,"VIO-1","VIO-7","VIO-4","VIO-3","VIO-4","VIO-7","VIO-2",null,"VIO-4","VIO-7","VIO-1"]
["O73",7,3,"VIO-1","VIO-7","VIO-4","VIO-3","VIO-4","VIO-3","VIO-4",null,"VIO-4","VIO-7","VIO-1"]
["O83",8,3,"VIO-1","VIO-7","VIO-4","VIO-3","VIO-4","VIO-3","VIO-4","VIO-7","VIO-2",null,"VIO-4","VIO-7","VIO-1"]
[""]
["O04",0,4,"VIO-2","VIO-7","VIO-4","VIO-7","VIO-1"]
["O14",1,4,"VIO-1",null,"VIO-2","VIO-7","VIO-4","VIO-7","VIO-1"]
["O24",2,4,"VIO-1","VIO-3",null,"VIO-8",null,"VIO-7","VIO-4","VIO-7","VIO-1"]
["O34",3,4,"VIO-1","VIO-7","VIO-4",null,"VIO-2","VIO-7","VIO-4","VIO-7","VIO-1"]
["O44",4,4,"VIO-1","VIO-7","VIO-4","VIO-7",null,"VIO-8",null,"VIO-7","VIO-4","VIO-7","VIO-1"]
["O54",5,4,"VIO-1","VIO-7","VIO-4","VIO-3","VIO-4",null,"VIO-2","VIO-7","VIO-4","VIO-7","VIO-1"]
["O64",6,4,"VIO-1","VIO-7","VIO-4","VIO-3","VIO-4","VIO-7",null,"VIO-8",null,"VIO-7","VIO-4","VIO-7","VIO-1"]
["O74",7,4,"VIO-1","VIO-7","VIO-4","VIO-3","VIO-4","VIO-3","VIO-4",null,"VIO-2","VIO-7","VIO-4","VIO-7","VIO-1"]
["O84",8,4,"VIO-1","VIO-7","VIO-4","VIO-3","VIO-4","VIO-3","VIO-4","VIO-7",null,"VIO-8",null,"VIO-7","VIO-4","VIO-7","VIO-1"]
[""]
["O05",0,5,"VIO-4","VIO-3","VIO-4","VIO-7","VIO-1"]
["O15",1,5,"VIO-1",null,"VIO-4","VIO-3","VIO-4","VIO-7","VIO-1"]
["O25",2,5,"VIO-1","VIO-3","VIO-2",null,"VIO-4","VIO-3","VIO-4","VIO-7","VIO-1"]
["O35",3,5,"VIO-1","VIO-7","VIO-4",null,"VIO-4","VIO-3","VIO-4","VIO-7","VIO-1"]
["O45",4,5,"VIO-1","VIO-7","VIO-4","VIO-7","VIO-2",null,"VIO-4","VIO-3","VIO-4","VIO-7","VIO-1"]
["O55",5,5,"VIO-1","VIO-7","VIO-4","VIO-3","VIO-4",null,"VIO-4","VIO-3","VIO-4","VIO-7","VIO-1"]
["O65",6,5,"VIO-1","VIO-7","VIO-4","VIO-3","VIO-4","VIO-7","VIO-2",null,"VIO-4","VIO-3","VIO-4","VIO-7","VIO-1"]
["O75",7,5,"VIO-1","VIO-7","VIO-4","VIO-3","VIO-4","VIO-3","VIO-4",null,"VIO-4","VIO-3","VIO-4","VIO-7","VIO-1"]
["O85",8,5,"VIO-1","VIO-7","VIO-4","VIO-3","VIO-4","VIO-3","VIO-4","VIO-7","VIO-2",null,"VIO-4","VIO-7","VIO-4","VIO-7","VIO-1"]
[""]
["O06",0,6,"VIO-2","VIO-7","VIO-4","VIO-3","VIO-4","VIO-7","VIO-1"]
["O16",1,6,"VIO-1",null,"VIO-2","VIO-7","VIO-4","VIO-3","VIO-4","VIO-7","VIO-1"]
["O26",2,6,"VIO-1","VIO-3",null,"VIO-8",null,"VIO-7","VIO-4","VIO-3","VIO-4","VIO-7","VIO-1"]
["O36",3,6,"VIO-1","VIO-7","VIO-4",null,"VIO-2","VIO-7","VIO-4","VIO-3","VIO-4","VIO-7","VIO-1"]
["O46",4,6,"VIO-1","VIO-7","VIO-4","VIO-7",null,"VIO-8",null,"VIO-3","VIO-4","VIO-3","VIO-4","VIO-7","VIO-1"]
[{"$f":"IF(B68<>\"\",\"O\"&B68&C68,\"\")","v":"O56"},5,6,"VIO-1","VIO-7","VIO-4","VIO-3","VIO-4",null,"VIO-2","VIO-7","VIO-4","VIO-3","VIO-4","VIO-7","VIO-1"]
["O66",6,6,"VIO-1","VIO-7","VIO-4","VIO-3","VIO-4","VIO-7",null,"VIO-8",null,"VIO-7","VIO-4","VIO-3","VIO-4","VIO-7","VIO-1"]
["O76",7,6,"VIO-1","VIO-7","VIO-4","VIO-3","VIO-4","VIO-3","VIO-4",null,"VIO-2","VIO-7","VIO-4","VIO-3","VIO-4","VIO-7","VIO-1"]
["O86",8,6,"VIO-1","VIO-7","VIO-4","VIO-3","VIO-4","VIO-3","VIO-4","VIO-7",null,"VIO-8",null,"VIO-7","VIO-4","VIO-3","VIO-4","VIO-7","VIO-1"]
[""]
["O07",0,7,"VIO-4","VIO-3","VIO-4","VIO-3","VIO-4","VIO-7","VIO-1"]
["O17",1,7,"VIO-1",null,"VIO-4","VIO-3","VIO-4","VIO-3","VIO-4","VIO-7","VIO-1"]
["O27",2,7,"VIO-1","VIO-3","VIO-2",null,"VIO-4","VIO-3","VIO-4","VIO-3","VIO-4","VIO-7","VIO-1"]
["O37",3,7,"VIO-1","VIO-7","VIO-4",null,"VIO-4","VIO-3","VIO-4","VIO-3","VIO-4","VIO-7","VIO-1"]
["O47",4,7,"VIO-1","VIO-7","VIO-4","VIO-7","VIO-2",null,"VIO-4","VIO-3","VIO-4","VIO-3","VIO-4","VIO-7","VIO-1"]
["O57",5,7,"VIO-1","VIO-7","VIO-4","VIO-3","VIO-4",null,"VIO-4","VIO-3","VIO-4","VIO-3","VIO-4","VIO-7","VIO-1"]
["O67",6,7,"VIO-1","VIO-7","VIO-4","VIO-3","VIO-4","VIO-7","VIO-2",null,"VIO-4","VIO-3","VIO-4","VIO-3","VIO-4","VIO-7","VIO-1"]
["O77",7,7,"VIO-1","VIO-7","VIO-4","VIO-3","VIO-4","VIO-3","VIO-4",null,"VIO-4","VIO-3","VIO-4","VIO-3","VIO-4","VIO-7","VIO-1"]
["O87",8,7,"VIO-1","VIO-7","VIO-4","VIO-3","VIO-4","VIO-3","VIO-4","VIO-7","VIO-2",null,"VIO-4","VIO-3","VIO-4","VIO-3","VIO-4","VIO-7","VIO-1"]
[""]
["O08",0,8,"VIO-2","VIO-7","VIO-4","VIO-3","VIO-4","VIO-3","VIO-4","VIO-7","VIO-1"]
["O18",1,8,"VIO-1",null,"VIO-2","VIO-7","VIO-4","VIO-3","VIO-4","VIO-3","VIO-4","VIO-7","VIO-1"]
["O28",2,8,"VIO-1","VIO-3",null,"VIO-8",null,"VIO-7","VIO-4","VIO-3","VIO-4","VIO-3","VIO-4","VIO-7","VIO-1"]
["O38",3,8,"VIO-1","VIO-7","VIO-4",null,"VIO-2","VIO-7","VIO-4","VIO-3","VIO-4","VIO-3","VIO-4","VIO-7","VIO-1"]
["O48",4,8,"VIO-1","VIO-7","VIO-4","VIO-7",null,"VIO-8",null,"VIO-7","VIO-4","VIO-3","VIO-4","VIO-3","VIO-4","VIO-7","VIO-1"]
["O58",5,8,"VIO-1","VIO-7","VIO-4","VIO-3","VIO-4",null,"VIO-2","VIO-7","VIO-4","VIO-3","VIO-4","VIO-3","VIO-4","VIO-7","VIO-1"]
["O68",6,8,"VIO-1","VIO-7","VIO-4","VIO-3","VIO-4","VIO-7",null,"VIO-8",null,"VIO-7","VIO-4","VIO-3","VIO-4","VIO-3","VIO-4","VIO-7","VIO-1"]
["O78",7,8,"VIO-1","VIO-7","VIO-4","VIO-3","VIO-4","VIO-3","VIO-4",null,"VIO-2","VIO-7","VIO-4","VIO-3","VIO-4","VIO-3","VIO-4","VIO-7","VIO-1"]
[{"$f":"IF(B91<>\"\",\"O\"&B91&C91,\"\")","v":"O88"},8,8,"VIO-1","VIO-7","VIO-4","VIO-3","VIO-4","VIO-3","VIO-4","VIO-7",null,"VIO-8",null,"VIO-7","VIO-4","VIO-3","VIO-4","VIO-3","VIO-4","VIO-7","VIO-1"]
[]
[]
[]
[]
[]
[]
[]
[null,"INWARD Opening"]
[null,"Doors Left","Doors Right"]
[{"$f":"IF(B101<>\"\",\"I\"&B101&C101,\"\")","v":"I00"},0,0,"","",""]
[{"$f":"IF(B102<>\"\",\"I\"&B102&C102,\"\")","v":"I10"},1,0,"VIO-1"]
["I20",2,0,"VIO-1","VIO-5","VIO-2"]
["I30",3,0,"VIO-1","VIO-6","VIO-4",""]
["I40",4,0,"VIO-1","VIO-6","VIO-4","VIO-6","VIO-2"]
["I50",5,0,"VIO-1","VIO-6","VIO-4","VIO-5","VIO-4",""]
["I60",6,0,"VIO-1","VIO-6","VIO-4","VIO-5","VIO-4","VIO-6","VIO-2"]
["I70",7,0,"VIO-1","VIO-6","VIO-4","VIO-5","VIO-4","VIO-5","VIO-4",""]
["I80",8,0,"VIO-1","VIO-6","VIO-4","VIO-5","VIO-4","VIO-5","VIO-4","VIO-6","VIO-2"]
[""]
["I01",0,1,"VIO-1"]
["I11",1,1,"VIO-1","","VIO-1"]
["I21",2,1,"VIO-1","VIO-5","VIO-2","","VIO-1"]
["I31",3,1,"VIO-1","VIO-6","VIO-4","","VIO-1",""]
["I41",4,1,"VIO-1","VIO-6","VIO-4","VIO-6","VIO-2","","VIO-1"]
["I51",5,1,"VIO-1","VIO-6","VIO-4","VIO-5","VIO-4","","VIO-1"]
["I61",6,1,"VIO-1","VIO-6","VIO-4","VIO-5","VIO-4","VIO-6","VIO-2","","VIO-1"]
["I71",7,1,"VIO-1","VIO-6","VIO-4","VIO-5","VIO-4","VIO-5","VIO-4","","VIO-1"]
["I81",8,1,"VIO-1","VIO-6","VIO-4","VIO-5","VIO-4","VIO-5","VIO-4","VIO-6","VIO-2","VIO-1"]
[""]
["I02",0,2,"VIO-2","VIO-5","VIO-1"]
["I12",1,2,"VIO-1","","VIO-2","VIO-5","VIO-1"]
["I22",2,2,"VIO-1","VIO-5","","VIO-8","","VIO-5","VIO-1"]
["I32",3,2,"VIO-1","VIO-6","VIO-4",null,"VIO-2","VIO-5","VIO-1"]
["I42",4,2,"VIO-1","VIO-6","VIO-4","VIO-6",null,"VIO-8",null,"VIO-5","VIO-1"]
["I52",5,2,"VIO-1","VIO-6","VIO-4","VIO-5","VIO-4",null,"VIO-2","VIO-5","VIO-1"]
["I62",6,2,"VIO-1","VIO-6","VIO-4","VIO-5","VIO-4","VIO-6",null,"VIO-8",null,"VIO-5","VIO-1"]
["I72",7,2,"VIO-1","VIO-6","VIO-4","VIO-5","VIO-4","VIO-5","VIO-4",null,"VIO-2","VIO-5","VIO-1"]
["I82",8,2,"VIO-1","VIO-6","VIO-4","VIO-5","VIO-4","VIO-5","VIO-4","VIO-6",null,"VIO-8",null,"VIO-5","VIO-1"]
[""]
["I03",0,3,"VIO-4","VIO-6","VIO-1"]
["I13",1,3,"VIO-1",null,"VIO-4","VIO-6","VIO-1"]
["I23",2,3,"VIO-1","VIO-5","VIO-2",null,"VIO-4","VIO-6","VIO-1"]
["I33",3,3,"VIO-1","VIO-6","VIO-4",null,"VIO-4","VIO-6","VIO-1"]
["I43",4,3,"VIO-1","VIO-6","VIO-4","VIO-6","VIO-2",null,"VIO-4","VIO-6","VIO-1"]
["I53",5,3,"VIO-1","VIO-6","VIO-4","VIO-5","VIO-4",null,"VIO-4","VIO-6","VIO-1"]
["I63",6,3,"VIO-1","VIO-6","VIO-4","VIO-5","VIO-4","VIO-6","VIO-2",null,"VIO-4","VIO-6","VIO-1"]
["I73",7,3,"VIO-1","VIO-6","VIO-4","VIO-5","VIO-4","VIO-5","VIO-4",null,"VIO-4","VIO-6","VIO-1"]
["I83",8,3,"VIO-1","VIO-6","VIO-4","VIO-5","VIO-4","VIO-5","VIO-4","VIO-6","VIO-2",null,"VIO-4","VIO-6","VIO-1"]
[""]
["I04",0,4,"VIO-2","VIO-6","VIO-4","VIO-6","VIO-1"]
["I14",1,4,"VIO-1",null,"VIO-2","VIO-6","VIO-4","VIO-6","VIO-1"]
["I24",2,4,"VIO-1","VIO-5",null,"VIO-8",null,"VIO-6","VIO-4","VIO-6","VIO-1"]
["I34",3,4,"VIO-1","VIO-6","VIO-4",null,"VIO-2","VIO-6","VIO-4","VIO-6","VIO-1"]
["I44",4,4,"VIO-1","VIO-6","VIO-4","VIO-6",null,"VIO-8",null,"VIO-6","VIO-4","VIO-6","VIO-1"]
["I54",5,4,"VIO-1","VIO-6","VIO-4","VIO-5","VIO-4",null,"VIO-2","VIO-6","VIO-4","VIO-6","VIO-1"]
["I64",6,4,"VIO-1","VIO-6","VIO-4","VIO-5","VIO-4","VIO-6",null,"VIO-8",null,"VIO-6","VIO-4","VIO-6","VIO-1"]
["I74",7,4,"VIO-1","VIO-6","VIO-4","VIO-5","VIO-4","VIO-5","VIO-4",null,"VIO-2","VIO-6","VIO-4","VIO-6","VIO-1"]
["I84",8,4,"VIO-1","VIO-6","VIO-4","VIO-5","VIO-4","VIO-5","VIO-4","VIO-6",null,"VIO-8",null,"VIO-6","VIO-4","VIO-6","VIO-1"]
[""]
["I05",0,5,"VIO-4","VIO-5","VIO-4","VIO-6","VIO-1"]
["I15",1,5,"VIO-1",null,"VIO-4","VIO-5","VIO-4","VIO-6","VIO-1"]
["I25",2,5,"VIO-1","VIO-5","VIO-2",null,"VIO-4","VIO-5","VIO-4","VIO-6","VIO-1"]
["I35",3,5,"VIO-1","VIO-6","VIO-4",null,"VIO-4","VIO-5","VIO-4","VIO-6","VIO-1"]
["I45",4,5,"VIO-1","VIO-6","VIO-4","VIO-6","VIO-2",null,"VIO-4","VIO-5","VIO-4","VIO-6","VIO-1"]
["I55",5,5,"VIO-1","VIO-6","VIO-4","VIO-5","VIO-4",null,"VIO-4","VIO-5","VIO-4","VIO-6","VIO-1"]
["I65",6,5,"VIO-1","VIO-6","VIO-4","VIO-5","VIO-4","VIO-6","VIO-2",null,"VIO-4","VIO-5","VIO-4","VIO-6","VIO-1"]
["I75",7,5,"VIO-1","VIO-6","VIO-4","VIO-5","VIO-4","VIO-5","VIO-4",null,"VIO-4","VIO-5","VIO-4","VIO-6","VIO-1"]
["I85",8,5,"VIO-1","VIO-6","VIO-4","VIO-5","VIO-4","VIO-5","VIO-4","VIO-6","VIO-2",null,"VIO-4","VIO-6","VIO-4","VIO-6","VIO-1"]
[""]
["I06",0,6,"VIO-2","VIO-6","VIO-4","VIO-5","VIO-4","VIO-6","VIO-1"]
["I16",1,6,"VIO-1",null,"VIO-2","VIO-6","VIO-4","VIO-5","VIO-4","VIO-6","VIO-1"]
["I26",2,6,"VIO-1","VIO-5",null,"VIO-8",null,"VIO-6","VIO-4","VIO-5","VIO-4","VIO-6","VIO-1"]
["I36",3,6,"VIO-1","VIO-6","VIO-4",null,"VIO-2","VIO-6","VIO-4","VIO-5","VIO-4","VIO-6","VIO-1"]
["I46",4,6,"VIO-1","VIO-6","VIO-4","VIO-6",null,"VIO-8",null,"VIO-5","VIO-4","VIO-5","VIO-4","VIO-6","VIO-1"]
[{"$f":"IF(B166<>\"\",\"I\"&B166&C166,\"\")","v":"I56"},5,6,"VIO-1","VIO-6","VIO-4","VIO-5","VIO-4",null,"VIO-2","VIO-6","VIO-4","VIO-5","VIO-4","VIO-6","VIO-1"]
["I66",6,6,"VIO-1","VIO-6","VIO-4","VIO-5","VIO-4","VIO-6",null,"VIO-8",null,"VIO-6","VIO-4","VIO-5","VIO-4","VIO-6","VIO-1"]
["I76",7,6,"VIO-1","VIO-6","VIO-4","VIO-5","VIO-4","VIO-5","VIO-4",null,"VIO-2","VIO-6","VIO-4","VIO-5","VIO-4","VIO-6","VIO-1"]
["I86",8,6,"VIO-1","VIO-6","VIO-4","VIO-5","VIO-4","VIO-5","VIO-4","VIO-6",null,"VIO-8",null,"VIO-6","VIO-4","VIO-5","VIO-4","VIO-6","VIO-1"]
[""]
["I07",0,7,"VIO-4","VIO-5","VIO-4","VIO-5","VIO-4","VIO-6","VIO-1"]
["I17",1,7,"VIO-1",null,"VIO-4","VIO-5","VIO-4","VIO-5","VIO-4","VIO-6","VIO-1"]
["I27",2,7,"VIO-1","VIO-5","VIO-2",null,"VIO-4","VIO-5","VIO-4","VIO-5","VIO-4","VIO-6","VIO-1"]
["I37",3,7,"VIO-1","VIO-6","VIO-4",null,"VIO-4","VIO-5","VIO-4","VIO-5","VIO-4","VIO-6","VIO-1"]
["I47",4,7,"VIO-1","VIO-6","VIO-4","VIO-6","VIO-2",null,"VIO-4","VIO-5","VIO-4","VIO-5","VIO-4","VIO-6","VIO-1"]
["I57",5,7,"VIO-1","VIO-6","VIO-4","VIO-5","VIO-4",null,"VIO-4","VIO-5","VIO-4","VIO-5","VIO-4","VIO-6","VIO-1"]
["I67",6,7,"VIO-1","VIO-6","VIO-4","VIO-5","VIO-4","VIO-6","VIO-2",null,"VIO-4","VIO-5","VIO-4","VIO-5","VIO-4","VIO-6","VIO-1"]
["I77",7,7,"VIO-1","VIO-6","VIO-4","VIO-5","VIO-4","VIO-5","VIO-4",null,"VIO-4","VIO-5","VIO-4","VIO-5","VIO-4","VIO-6","VIO-1"]
["I87",8,7,"VIO-1","VIO-6","VIO-4","VIO-5","VIO-4","VIO-5","VIO-4","VIO-6","VIO-2",null,"VIO-4","VIO-5","VIO-4","VIO-5","VIO-4","VIO-6","VIO-1"]
[""]
["I08",0,8,"VIO-2","VIO-6","VIO-4","VIO-5","VIO-4","VIO-5","VIO-4","VIO-6","VIO-1"]
["I18",1,8,"VIO-1",null,"VIO-2","VIO-6","VIO-4","VIO-5","VIO-4","VIO-5","VIO-4","VIO-6","VIO-1"]
["I28",2,8,"VIO-1","VIO-5",null,"VIO-8",null,"VIO-6","VIO-4","VIO-5","VIO-4","VIO-5","VIO-4","VIO-6","VIO-1"]
["I38",3,8,"VIO-1","VIO-6","VIO-4",null,"VIO-2","VIO-6","VIO-4","VIO-5","VIO-4","VIO-5","VIO-4","VIO-6","VIO-1"]
["I48",4,8,"VIO-1","VIO-6","VIO-4","VIO-6",null,"VIO-8",null,"VIO-6","VIO-4","VIO-5","VIO-4","VIO-5","VIO-4","VIO-6","VIO-1"]
["I58",5,8,"VIO-1","VIO-6","VIO-4","VIO-5","VIO-4",null,"VIO-2","VIO-6","VIO-4","VIO-5","VIO-4","VIO-5","VIO-4","VIO-6","VIO-1"]
["I68",6,8,"VIO-1","VIO-6","VIO-4","VIO-5","VIO-4","VIO-6",null,"VIO-8",null,"VIO-6","VIO-4","VIO-5","VIO-4","VIO-5","VIO-4","VIO-6","VIO-1"]
["I78",7,8,"VIO-1","VIO-6","VIO-4","VIO-5","VIO-4","VIO-5","VIO-4",null,"VIO-2","VIO-6","VIO-4","VIO-5","VIO-4","VIO-5","VIO-4","VIO-6","VIO-1"]
["I88",8,8,"VIO-1","VIO-6","VIO-4","VIO-5","VIO-4","VIO-5","VIO-4","VIO-6",null,"VIO-8",null,"VIO-6","VIO-4","VIO-5","VIO-4","VIO-5","VIO-4","VIO-6","VIO-1"]

{"sheet":"OUT-IN Opening","index":3,"n_rows":189,"n_cols":25,"rows_kept":189,"cut":false,"hidden":true,"merged":[[0,1,0,2],[2,23,2,24],[98,1,98,2]]}
[null,"OUTWARD Opening",null,null,null,"Referrrinf to CFFS"]
[null,"Doors Left","Doors Right"]
["TAB ",0,0,"","","",null,null,null,null,null,null,null,null,null,null,null,null,null,null,null,null,null,"Finishes"]
[{"$f":"IF(B4<>\"\",\"O\"&B4&C4,\"\")","v":"O10"},1,0,"VIO-1",null,null,null,null,null,null,null,null,null,null,null,null,null,null,null,null,null,null,null,"SSS","SatinStainless Steel"]
["O20",2,0,"VIO-1","VIO-3","VIO-2",null,null,null,null,null,null,null,null,null,null,null,null,null,null,null,null,null,"PSS","Polished Stainless Steel"]
["O30",3,0,"VIO-1","VIO-7","VIO-4","",null,null,null,null,null,null,null,null,null,null,null,null,null,null,null,null,"BLK","Black Powdercoat"]
["O40",4,0,"VIO-1","VIO-7","VIO-4","VIO-7","VIO-2",null,null,null,null,null,null,null,null,null,null,null,null,null,null,null,"WHT","White Powdercoat"]
["O50",5,0,"VIO-1","VIO-7","VIO-4","VIO-3","VIO-4","",null,null,null,null,null,null,null,null,null,null,null,null,null,null,"PVD","PVD"]
["O60",6,0,"VIO-1","VIO-7","VIO-4","VIO-3","VIO-4","VIO-7","VIO-2"]
["O70",7,0,"VIO-1","VIO-7","VIO-4","VIO-3","VIO-4","VIO-3","VIO-4",""]
["O80",8,0,"VIO-1","VIO-7","VIO-4","VIO-3","VIO-4","VIO-3","VIO-4","VIO-7","VIO-2"]
[""]
["O01",0,1,"VIO-1"]
["O11",1,1,"VIO-1","","VIO-1"]
["O21",2,1,"VIO-1","VIO-3","VIO-2","","VIO-1"]
["O31",3,1,"VIO-1","VIO-7","VIO-4","","VIO-1",""]
["O41",4,1,"VIO-1","VIO-7","VIO-4","VIO-7","VIO-2","","VIO-1"]
["O51",5,1,"VIO-1","VIO-7","VIO-4","VIO-3","VIO-4","","VIO-1"]
["O61",6,1,"VIO-1","VIO-7","VIO-4","VIO-3","VIO-4","VIO-7","VIO-2","","VIO-1"]
["O71",7,1,"VIO-1","VIO-7","VIO-4","VIO-3","VIO-4","VIO-3","VIO-4","","VIO-1"]
["O81",8,1,"VIO-1","VIO-7","VIO-4","VIO-3","VIO-4","VIO-3","VIO-4","VIO-7","VIO-2","VIO-1"]
[""]
["O02",0,2,"VIO-2","VIO-3","VIO-1"]
["O12",1,2,"VIO-1","","VIO-2","VIO-3","VIO-1"]
["O22",2,2,"VIO-1","VIO-3","VIO-2",null,"VIO-2","VIO-3","VIO-1"]
["O32",3,2,"VIO-1","VIO-7","VIO-4",null,"VIO-2","VIO-3","VIO-1"]
["O42",4,2,"VIO-1","VIO-7","VIO-4","VIO-7","VIO-2",null,"VIO-2","VIO-3","VIO-1"]
["O52",5,2,"VIO-1","VIO-7","VIO-4","VIO-3","VIO-4",null,"VIO-2","VIO-3","VIO-1"]
["O62",6,2,"VIO-1","VIO-7","VIO-4","VIO-3","VIO-4","VIO-7","VIO-2",null,"VIO-2","VIO-3","VIO-1"]
["O72",7,2,"VIO-1","VIO-7","VIO-4","VIO-3","VIO-4","VIO-3","VIO-4",null,"VIO-2","VIO-3","VIO-1"]
["O82",8,2,"VIO-1","VIO-7","VIO-4","VIO-3","VIO-4","VIO-3","VIO-4","VIO-7","VIO-2",null,"VIO-2","VIO-3","VIO-1"]
[""]
["O03",0,3,"VIO-4","VIO-7","VIO-1"]
["O13",1,3,"VIO-1",null,"VIO-4","VIO-7","VIO-1"]
["O23",2,3,"VIO-1","VIO-3","VIO-2",null,"VIO-4","VIO-7","VIO-1"]
["O33",3,3,"VIO-1","VIO-7","VIO-4",null,"VIO-4","VIO-7","VIO-1"]
["O43",4,3,"VIO-1","VIO-7","VIO-4","VIO-7","VIO-2",null,"VIO-4","VIO-7","VIO-1"]
["O53",5,3,"VIO-1","VIO-7","VIO-4","VIO-3","VIO-4",null,"VIO-4","VIO-7","VIO-1"]
["O63",6,3,"VIO-1","VIO-7","VIO-4","VIO-3","VIO-4","VIO-7","VIO-2",null,"VIO-4","VIO-7","VIO-1"]
["O73",7,3,"VIO-1","VIO-7","VIO-4","VIO-3","VIO-4","VIO-3","VIO-4",null,"VIO-4","VIO-7","VIO-1"]
["O83",8,3,"VIO-1","VIO-7","VIO-4","VIO-3","VIO-4","VIO-3","VIO-4","VIO-7","VIO-2",null,"VIO-4","VIO-7","VIO-1"]
[""]
["O04",0,4,"VIO-2","VIO-7","VIO-4","VIO-7","VIO-1"]
["O14",1,4,"VIO-1",null,"VIO-2","VIO-7","VIO-4","VIO-7","VIO-1"]
["O24",2,4,"VIO-1","VIO-3","VIO-2",null,"VIO-2","VIO-7","VIO-4","VIO-7","VIO-1"]
["O34",3,4,"VIO-1","VIO-7","VIO-4",null,"VIO-2","VIO-7","VIO-4","VIO-7","VIO-1"]
["O44",4,4,"VIO-1","VIO-7","VIO-4","VIO-7","VIO-2",null,"VIO-2","VIO-7","VIO-4","VIO-7","VIO-1"]
["O54",5,4,"VIO-1","VIO-7","VIO-4","VIO-3","VIO-4",null,"VIO-2","VIO-7","VIO-4","VIO-7","VIO-1"]
["O64",6,4,"VIO-1","VIO-7","VIO-4","VIO-3","VIO-4","VIO-7","VIO-2",null,"VIO-2","VIO-7","VIO-4","VIO-7","VIO-1"]
["O74",7,4,"VIO-1","VIO-7","VIO-4","VIO-3","VIO-4","VIO-3","VIO-4",null,"VIO-2","VIO-7","VIO-4","VIO-7","VIO-1"]
["O84",8,4,"VIO-1","VIO-7","VIO-4","VIO-3","VIO-4","VIO-3","VIO-4","VIO-7","VIO-2",null,"VIO-2","VIO-7","VIO-4","VIO-7","VIO-1"]
[""]
["O05",0,5,"VIO-4","VIO-3","VIO-4","VIO-7","VIO-1"]
["O15",1,5,"VIO-1",null,"VIO-4","VIO-3","VIO-4","VIO-7","VIO-1"]
["O25",2,5,"VIO-1","VIO-3","VIO-2",null,"VIO-4","VIO-3","VIO-4","VIO-7","VIO-1"]
["O35",3,5,"VIO-1","VIO-7","VIO-4",null,"VIO-4","VIO-3","VIO-4","VIO-7","VIO-1"]
["O45",4,5,"VIO-1","VIO-7","VIO-4","VIO-7","VIO-2",null,"VIO-4","VIO-3","VIO-4","VIO-7","VIO-1"]
["O55",5,5,"VIO-1","VIO-7","VIO-4","VIO-3","VIO-4",null,"VIO-4","VIO-3","VIO-4","VIO-7","VIO-1"]
["O65",6,5,"VIO-1","VIO-7","VIO-4","VIO-3","VIO-4","VIO-7","VIO-2",null,"VIO-4","VIO-3","VIO-4","VIO-7","VIO-1"]
["O75",7,5,"VIO-1","VIO-7","VIO-4","VIO-3","VIO-4","VIO-3","VIO-4",null,"VIO-4","VIO-3","VIO-4","VIO-7","VIO-1"]
["O85",8,5,"VIO-1","VIO-7","VIO-4","VIO-3","VIO-4","VIO-3","VIO-4","VIO-7","VIO-2",null,"VIO-4","VIO-7","VIO-4","VIO-7","VIO-1"]
[""]
["O06",0,6,"VIO-2","VIO-7","VIO-4","VIO-3","VIO-4","VIO-7","VIO-1"]
["O16",1,6,"VIO-1",null,"VIO-2","VIO-7","VIO-4","VIO-3","VIO-4","VIO-7","VIO-1"]
["O26",2,6,"VIO-1","VIO-3","VIO-2",null,"VIO-2","VIO-7","VIO-4","VIO-3","VIO-4","VIO-7","VIO-1"]
["O36",3,6,"VIO-1","VIO-7","VIO-4",null,"VIO-2","VIO-7","VIO-4","VIO-3","VIO-4","VIO-7","VIO-1"]
["O46",4,6,"VIO-1","VIO-7","VIO-4","VIO-7","VIO-2",null,"VIO-2","VIO-3","VIO-4","VIO-3","VIO-4","VIO-7","VIO-1"]
[{"$f":"IF(B68<>\"\",\"O\"&B68&C68,\"\")","v":"O56"},5,6,"VIO-1","VIO-7","VIO-4","VIO-3","VIO-4",null,"VIO-2","VIO-7","VIO-4","VIO-3","VIO-4","VIO-7","VIO-1"]
["O66",6,6,"VIO-1","VIO-7","VIO-4","VIO-3","VIO-4","VIO-7","VIO-2",null,"VIO-2","VIO-7","VIO-4","VIO-3","VIO-4","VIO-7","VIO-1"]
["O76",7,6,"VIO-1","VIO-7","VIO-4","VIO-3","VIO-4","VIO-3","VIO-4",null,"VIO-2","VIO-7","VIO-4","VIO-3","VIO-4","VIO-7","VIO-1"]
["O86",8,6,"VIO-1","VIO-7","VIO-4","VIO-3","VIO-4","VIO-3","VIO-4","VIO-7","VIO-2",null,"VIO-2","VIO-7","VIO-4","VIO-3","VIO-4","VIO-7","VIO-1"]
[""]
["O07",0,7,"VIO-4","VIO-3","VIO-4","VIO-3","VIO-4","VIO-7","VIO-1"]
["O17",1,7,"VIO-1",null,"VIO-4","VIO-3","VIO-4","VIO-3","VIO-4","VIO-7","VIO-1"]
["O27",2,7,"VIO-1","VIO-3","VIO-2",null,"VIO-4","VIO-3","VIO-4","VIO-3","VIO-4","VIO-7","VIO-1"]
["O37",3,7,"VIO-1","VIO-7","VIO-4",null,"VIO-4","VIO-3","VIO-4","VIO-3","VIO-4","VIO-7","VIO-1"]
["O47",4,7,"VIO-1","VIO-7","VIO-4","VIO-7","VIO-2",null,"VIO-4","VIO-3","VIO-4","VIO-3","VIO-4","VIO-7","VIO-1"]
["O57",5,7,"VIO-1","VIO-7","VIO-4","VIO-3","VIO-4",null,"VIO-4","VIO-3","VIO-4","VIO-3","VIO-4","VIO-7","VIO-1"]
["O67",6,7,"VIO-1","VIO-7","VIO-4","VIO-3","VIO-4","VIO-7","VIO-2",null,"VIO-4","VIO-3","VIO-4","VIO-3","VIO-4","VIO-7","VIO-1"]
["O77",7,7,"VIO-1","VIO-7","VIO-4","VIO-3","VIO-4","VIO-3","VIO-4",null,"VIO-4","VIO-3","VIO-4","VIO-3","VIO-4","VIO-7","VIO-1"]
["O87",8,7,"VIO-1","VIO-7","VIO-4","VIO-3","VIO-4","VIO-3","VIO-4","VIO-7","VIO-2",null,"VIO-4","VIO-3","VIO-4","VIO-3","VIO-4","VIO-7","VIO-1"]
[""]
["O08",0,8,"VIO-2","VIO-7","VIO-4","VIO-3","VIO-4","VIO-3","VIO-4","VIO-7","VIO-1"]
["O18",1,8,"VIO-1",null,"VIO-2","VIO-7","VIO-4","VIO-3","VIO-4","VIO-3","VIO-4","VIO-7","VIO-1"]
["O28",2,8,"VIO-1","VIO-3","VIO-2",null,"VIO-2","VIO-7","VIO-4","VIO-3","VIO-4","VIO-3","VIO-4","VIO-7","VIO-1"]
["O38",3,8,"VIO-1","VIO-7","VIO-4",null,"VIO-2","VIO-7","VIO-4","VIO-3","VIO-4","VIO-3","VIO-4","VIO-7","VIO-1"]
["O48",4,8,"VIO-1","VIO-7","VIO-4","VIO-7","VIO-2",null,"VIO-2","VIO-7","VIO-4","VIO-3","VIO-4","VIO-3","VIO-4","VIO-7","VIO-1"]
["O58",5,8,"VIO-1","VIO-7","VIO-4","VIO-3","VIO-4",null,"VIO-2","VIO-7","VIO-4","VIO-3","VIO-4","VIO-3","VIO-4","VIO-7","VIO-1"]
["O68",6,8,"VIO-1","VIO-7","VIO-4","VIO-3","VIO-4","VIO-7","VIO-2",null,"VIO-2","VIO-7","VIO-4","VIO-3","VIO-4","VIO-3","VIO-4","VIO-7","VIO-1"]
["O78",7,8,"VIO-1","VIO-7","VIO-4","VIO-3","VIO-4","VIO-3","VIO-4",null,"VIO-2","VIO-7","VIO-4","VIO-3","VIO-4","VIO-3","VIO-4","VIO-7","VIO-1"]
["O88",8,8,"VIO-1","VIO-7","VIO-4","VIO-3","VIO-4","VIO-3","VIO-4","VIO-7","VIO-2",null,"VIO-2","VIO-7","VIO-4","VIO-3","VIO-4","VIO-3","VIO-4","VIO-7","VIO-1"]
[]
[]
[]
[]
[]
[]
[]
[null,"INWARD Opening"]
[null,"Doors Left","Doors Right"]
[{"$f":"IF(B101<>\"\",\"I\"&B101&C101,\"\")","v":"I00"},0,0,"","",""]
[{"$f":"IF(B102<>\"\",\"I\"&B102&C102,\"\")","v":"I10"},1,0,"VIO-1"]
["I20",2,0,"VIO-1","VIO-5","VIO-2"]
["I30",3,0,"VIO-1","VIO-6","VIO-4",""]
["I40",4,0,"VIO-1","VIO-6","VIO-4","VIO-6","VIO-2"]
["I50",5,0,"VIO-1","VIO-6","VIO-4","VIO-5","VIO-4",""]
["I60",6,0,"VIO-1","VIO-6","VIO-4","VIO-5","VIO-4","VIO-6","VIO-2"]
["I70",7,0,"VIO-1","VIO-6","VIO-4","VIO-5","VIO-4","VIO-5","VIO-4",""]
["I80",8,0,"VIO-1","VIO-6","VIO-4","VIO-5","VIO-4","VIO-5","VIO-4","VIO-6","VIO-2"]
[""]
["I01",0,1,"VIO-1"]
["I11",1,1,"VIO-1","","VIO-1"]
["I21",2,1,"VIO-1","VIO-5","VIO-2","","VIO-1"]
["I31",3,1,"VIO-1","VIO-6","VIO-4","","VIO-1",""]
["I41",4,1,"VIO-1","VIO-6","VIO-4","VIO-6","VIO-2","","VIO-1"]
["I51",5,1,"VIO-1","VIO-6","VIO-4","VIO-5","VIO-4","","VIO-1"]
["I61",6,1,"VIO-1","VIO-6","VIO-4","VIO-5","VIO-4","VIO-6","VIO-2","","VIO-1"]
["I71",7,1,"VIO-1","VIO-6","VIO-4","VIO-5","VIO-4","VIO-5","VIO-4","","VIO-1"]
["I81",8,1,"VIO-1","VIO-6","VIO-4","VIO-5","VIO-4","VIO-5","VIO-4","VIO-6","VIO-2","VIO-1"]
[""]
["I02",0,2,"VIO-2","VIO-5","VIO-1"]
["I12",1,2,"VIO-1","","VIO-2","VIO-5","VIO-1"]
["I22",2,2,"VIO-1","VIO-5","VIO-2",null,"VIO-2","VIO-5","VIO-1"]
["I32",3,2,"VIO-1","VIO-6","VIO-4",null,"VIO-2","VIO-5","VIO-1"]
["I42",4,2,"VIO-1","VIO-6","VIO-4","VIO-6","VIO-2",null,"VIO-2","VIO-5","VIO-1"]
["I52",5,2,"VIO-1","VIO-6","VIO-4","VIO-5","VIO-4",null,"VIO-2","VIO-5","VIO-1"]
["I62",6,2,"VIO-1","VIO-6","VIO-4","VIO-5","VIO-4","VIO-6","VIO-2",null,"VIO-2","VIO-5","VIO-1"]
["I72",7,2,"VIO-1","VIO-6","VIO-4","VIO-5","VIO-4","VIO-5","VIO-4",null,"VIO-2","VIO-5","VIO-1"]
["I82",8,2,"VIO-1","VIO-6","VIO-4","VIO-5","VIO-4","VIO-5","VIO-4","VIO-6","VIO-2",null,"VIO-2","VIO-5","VIO-1"]
[""]
["I03",0,3,"VIO-4","VIO-6","VIO-1"]
["I13",1,3,"VIO-1",null,"VIO-4","VIO-6","VIO-1"]
["I23",2,3,"VIO-1","VIO-5","VIO-2",null,"VIO-4","VIO-6","VIO-1"]
["I33",3,3,"VIO-1","VIO-6","VIO-4",null,"VIO-4","VIO-6","VIO-1"]
["I43",4,3,"VIO-1","VIO-6","VIO-4","VIO-6","VIO-2",null,"VIO-4","VIO-6","VIO-1"]
["I53",5,3,"VIO-1","VIO-6","VIO-4","VIO-5","VIO-4",null,"VIO-4","VIO-6","VIO-1"]
["I63",6,3,"VIO-1","VIO-6","VIO-4","VIO-5","VIO-4","VIO-6","VIO-2",null,"VIO-4","VIO-6","VIO-1"]
["I73",7,3,"VIO-1","VIO-6","VIO-4","VIO-5","VIO-4","VIO-5","VIO-4",null,"VIO-4","VIO-6","VIO-1"]
["I83",8,3,"VIO-1","VIO-6","VIO-4","VIO-5","VIO-4","VIO-5","VIO-4","VIO-6","VIO-2",null,"VIO-4","VIO-6","VIO-1"]
[""]
["I04",0,4,"VIO-2","VIO-6","VIO-4","VIO-6","VIO-1"]
["I14",1,4,"VIO-1",null,"VIO-2","VIO-6","VIO-4","VIO-6","VIO-1"]
["I24",2,4,"VIO-1","VIO-5","VIO-2",null,"VIO-2","VIO-6","VIO-4","VIO-6","VIO-1"]
["I34",3,4,"VIO-1","VIO-6","VIO-4",null,"VIO-2","VIO-6","VIO-4","VIO-6","VIO-1"]
["I44",4,4,"VIO-1","VIO-6","VIO-4","VIO-6","VIO-2",null,"VIO-2","VIO-6","VIO-4","VIO-6","VIO-1"]
["I54",5,4,"VIO-1","VIO-6","VIO-4","VIO-5","VIO-4",null,"VIO-2","VIO-6","VIO-4","VIO-6","VIO-1"]
["I64",6,4,"VIO-1","VIO-6","VIO-4","VIO-5","VIO-4","VIO-6","VIO-2",null,"VIO-2","VIO-6","VIO-4","VIO-6","VIO-1"]
["I74",7,4,"VIO-1","VIO-6","VIO-4","VIO-5","VIO-4","VIO-5","VIO-4",null,"VIO-2","VIO-6","VIO-4","VIO-6","VIO-1"]
["I84",8,4,"VIO-1","VIO-6","VIO-4","VIO-5","VIO-4","VIO-5","VIO-4","VIO-6","VIO-2",null,"VIO-2","VIO-6","VIO-4","VIO-6","VIO-1"]
[""]
["I05",0,5,"VIO-4","VIO-5","VIO-4","VIO-6","VIO-1"]
["I15",1,5,"VIO-1",null,"VIO-4","VIO-5","VIO-4","VIO-6","VIO-1"]
["I25",2,5,"VIO-1","VIO-5","VIO-2",null,"VIO-4","VIO-5","VIO-4","VIO-6","VIO-1"]
["I35",3,5,"VIO-1","VIO-6","VIO-4",null,"VIO-4","VIO-5","VIO-4","VIO-6","VIO-1"]
["I45",4,5,"VIO-1","VIO-6","VIO-4","VIO-6","VIO-2",null,"VIO-4","VIO-5","VIO-4","VIO-6","VIO-1"]
["I55",5,5,"VIO-1","VIO-6","VIO-4","VIO-5","VIO-4",null,"VIO-4","VIO-5","VIO-4","VIO-6","VIO-1"]
["I65",6,5,"VIO-1","VIO-6","VIO-4","VIO-5","VIO-4","VIO-6","VIO-2",null,"VIO-4","VIO-5","VIO-4","VIO-6","VIO-1"]
["I75",7,5,"VIO-1","VIO-6","VIO-4","VIO-5","VIO-4","VIO-5","VIO-4",null,"VIO-4","VIO-5","VIO-4","VIO-6","VIO-1"]
["I85",8,5,"VIO-1","VIO-6","VIO-4","VIO-5","VIO-4","VIO-5","VIO-4","VIO-6","VIO-2",null,"VIO-4","VIO-6","VIO-4","VIO-6","VIO-1"]
[""]
["I06",0,6,"VIO-2","VIO-6","VIO-4","VIO-5","VIO-4","VIO-6","VIO-1"]
["I16",1,6,"VIO-1",null,"VIO-2","VIO-6","VIO-4","VIO-5","VIO-4","VIO-6","VIO-1"]
["I26",2,6,"VIO-1","VIO-5","VIO-2",null,"VIO-2","VIO-6","VIO-4","VIO-5","VIO-4","VIO-6","VIO-1"]
["I36",3,6,"VIO-1","VIO-6","VIO-4",null,"VIO-2","VIO-6","VIO-4","VIO-5","VIO-4","VIO-6","VIO-1"]
["I46",4,6,"VIO-1","VIO-6","VIO-4","VIO-6","VIO-2",null,"VIO-2","VIO-5","VIO-4","VIO-5","VIO-4","VIO-6","VIO-1"]
[{"$f":"IF(B166<>\"\",\"I\"&B166&C166,\"\")","v":"I56"},5,6,"VIO-1","VIO-6","VIO-4","VIO-5","VIO-4",null,"VIO-2","VIO-6","VIO-4","VIO-5","VIO-4","VIO-6","VIO-1"]
["I66",6,6,"VIO-1","VIO-6","VIO-4","VIO-5","VIO-4","VIO-6","VIO-2",null,"VIO-2","VIO-6","VIO-4","VIO-5","VIO-4","VIO-6","VIO-1"]
["I76",7,6,"VIO-1","VIO-6","VIO-4","VIO-5","VIO-4","VIO-5","VIO-4",null,"VIO-2","VIO-6","VIO-4","VIO-5","VIO-4","VIO-6","VIO-1"]
["I86",8,6,"VIO-1","VIO-6","VIO-4","VIO-5","VIO-4","VIO-5","VIO-4","VIO-6","VIO-2",null,"VIO-2","VIO-6","VIO-4","VIO-5","VIO-4","VIO-6","VIO-1"]
[""]
["I07",0,7,"VIO-4","VIO-5","VIO-4","VIO-5","VIO-4","VIO-6","VIO-1"]
["I17",1,7,"VIO-1",null,"VIO-4","VIO-5","VIO-4","VIO-5","VIO-4","VIO-6","VIO-1"]
["I27",2,7,"VIO-1","VIO-5","VIO-2",null,"VIO-4","VIO-5","VIO-4","VIO-5","VIO-4","VIO-6","VIO-1"]
["I37",3,7,"VIO-1","VIO-6","VIO-4",null,"VIO-4","VIO-5","VIO-4","VIO-5","VIO-4","VIO-6","VIO-1"]
["I47",4,7,"VIO-1","VIO-6","VIO-4","VIO-6","VIO-2",null,"VIO-4","VIO-5","VIO-4","VIO-5","VIO-4","VIO-6","VIO-1"]
["I57",5,7,"VIO-1","VIO-6","VIO-4","VIO-5","VIO-4",null,"VIO-4","VIO-5","VIO-4","VIO-5","VIO-4","VIO-6","VIO-1"]
["I67",6,7,"VIO-1","VIO-6","VIO-4","VIO-5","VIO-4","VIO-6","VIO-2",null,"VIO-4","VIO-5","VIO-4","VIO-5","VIO-4","VIO-6","VIO-1"]
["I77",7,7,"VIO-1","VIO-6","VIO-4","VIO-5","VIO-4","VIO-5","VIO-4",null,"VIO-4","VIO-5","VIO-4","VIO-5","VIO-4","VIO-6","VIO-1"]
["I87",8,7,"VIO-1","VIO-6","VIO-4","VIO-5","VIO-4","VIO-5","VIO-4","VIO-6","VIO-2",null,"VIO-4","VIO-5","VIO-4","VIO-5","VIO-4","VIO-6","VIO-1"]
[""]
["I08",0,8,"VIO-2","VIO-6","VIO-4","VIO-5","VIO-4","VIO-5","VIO-4","VIO-6","VIO-1"]
["I18",1,8,"VIO-1",null,"VIO-2","VIO-6","VIO-4","VIO-5","VIO-4","VIO-5","VIO-4","VIO-6","VIO-1"]
["I28",2,8,"VIO-1","VIO-5","VIO-2",null,"VIO-2","VIO-6","VIO-4","VIO-5","VIO-4","VIO-5","VIO-4","VIO-6","VIO-1"]
["I38",3,8,"VIO-1","VIO-6","VIO-4",null,"VIO-2","VIO-6","VIO-4","VIO-5","VIO-4","VIO-5","VIO-4","VIO-6","VIO-1"]
["I48",4,8,"VIO-1","VIO-6","VIO-4","VIO-6","VIO-2",null,"VIO-2","VIO-6","VIO-4","VIO-5","VIO-4","VIO-5","VIO-4","VIO-6","VIO-1"]
["I58",5,8,"VIO-1","VIO-6","VIO-4","VIO-5","VIO-4",null,"VIO-2","VIO-6","VIO-4","VIO-5","VIO-4","VIO-5","VIO-4","VIO-6","VIO-1"]
["I68",6,8,"VIO-1","VIO-6","VIO-4","VIO-5","VIO-4","VIO-6","VIO-2",null,"VIO-2","VIO-6","VIO-4","VIO-5","VIO-4","VIO-5","VIO-4","VIO-6","VIO-1"]
["I78",7,8,"VIO-1","VIO-6","VIO-4","VIO-5","VIO-4","VIO-5","VIO-4",null,"VIO-2","VIO-6","VIO-4","VIO-5","VIO-4","VIO-5","VIO-4","VIO-6","VIO-1"]
["I88",8,8,"VIO-1","VIO-6","VIO-4","VIO-5","VIO-4","VIO-5","VIO-4","VIO-6","VIO-2",null,"VIO-2","VIO-6","VIO-4","VIO-5","VIO-4","VIO-5","VIO-4","VIO-6","VIO-1"]

{"sheet":"Product List","index":4,"n_rows":212,"n_cols":8,"rows_kept":212,"cut":false,"hidden":true,"merged":[[203,1,203,2],[146,1,146,2],[3,1,3,2],[25,1,25,2],[72,1,72,2],[155,1,155,2],[169,1,169,2],[191,1,191,2]]}
[]
[null,"Product Code","Description","Finish","Unit","Unit Rate"]
[]
[null,"Tracks & Guide Channels"]
[]
[null,"VT50-20SNA","VIO 50kg Top Track 2000mm","SNA","ea",null,"Satin Natural Anodised","SNA"]
[null,"VT50-30SNA","VIO 50kg Top Track 3000mm","SNA","ea"]
[null,"VT50-40SNA","VIO 50kg Top Track 4000mm","SNA","ea"]
[null,"VT50-50SNA","VIO 50kg Top Track 5000mm","SNA","ea"]
[]
[null,"VT100-20SNA","VIO 100kg Top Track 2000mm","SNA","ea"]
[null,"VT100-30SNA","VIO 100kg Top Track 3000mm","SNA","ea"]
[null,"VT100-40SNA","VIO 100kg Top Track 4000mm","SNA","ea"]
[null,"VT100-50SNA","VIO 100kg Top Track 5000mm","SNA","ea"]
[]
[null,"VGC-20SNA","VIO Guide Channel 2000mm","SNA","ea"]
[null,"VGC-30SNA","VIO Guide Channel 3000mm","SNA","ea"]
[null,"VGC-40SNA","VIO Guide Channel 4000mm","SNA","ea"]
[null,"VGC-50SNA","VIO Guide Channel 5000mm","SNA","ea"]
[]
[null,"VPCI-20BLK","VIO Polypropylene Channel Insert 2000mm","BLK","ea",null,"Black"]
[null,"VPCI-30BLK","VIO Polypropylene Channel Insert 3000mm","BLK","ea"]
[null,"VPCI-40BLK","VIO Polypropylene Channel Insert 4000mm","BLK","ea"]
[null,"VPCI-50BLK","VIO Polypropylene Channel Insert 5000mm","BLK","ea"]
[]
[null,"Hanger & Guide Sets"]
[]
[null,"VIO-1SSS","Pivot Set  L & R","SSS","set",null,"Satin Stainless Steal"]
[null,"VIO-1PSS","Pivot Set  L & R","PSS","set",null,"Polished Stainless Steal"]
[null,"VIO-1BLK","Pivot Set  L & R","BLK","set",null,"Black"]
[null,"VIO-1PVD","Pivot Set  L & R","PVD","set",null,"PVD Gold"]
[]
[null,"VIO-2SSS","End Hanger Set incl Guide L & R","SSS","set"]
[null,"VIO-2PSS","End Hanger Set incl Guide L & R","PSS","set"]
[null,"VIO-2BLK","End Hanger Set incl Guide L & R","BLK","set"]
[null,"VIO-2PVD","End Hanger Set incl Guide L & R","PVD","set"]
[]
[null,"VIO-3SSS","Hinge Handle Set ","SSS","set"]
[null,"VIO-3PSS","Hinge Handle Set ","PSS","set"]
[null,"VIO-3BLK","Hinge Handle Set ","BLK","set"]
[null,"VIO-3PVD","Hinge Handle Set ","PVD","set"]
[]
[null,"VIO-4SSS","Intermediate Hanger Set ","SSS","set"]
[null,"VIO-4PSS","Intermediate Hanger Set ","PSS","set"]
[null,"VIO-4BLK","Intermediate Hanger Set ","BLK","set"]
[null,"VIO-4PVD","Intermediate Hanger Set ","PVD","set"]
[]
[null,"VIO-5SSS","Hinge Set","SSS","set"]
[null,"VIO-5PSS","Hinge Set","PSS","set"]
[null,"VIO-5BLK","Hinge Set","BLK","set"]
[null,"VIO-5PVD","Hinge Set","PVD","set"]
[]
[null,"VIO-6SSS","Offset Hinge Set","SSS","set"]
[null,"VIO-6PSS","Offset Hinge Set","PSS","set"]
[null,"VIO-6BLK","Offset Hinge Set","BLK","set"]
[null,"VIO-6PVD","Offset Hinge Set","PVD","set"]
[]
[null,"VIO-7SSS","Offset Hinge Handle Set","SSS","set"]
[null,"VIO-7PSS","Offset Hinge Handle Set","PSS","set"]
[null,"VIO-7BLK","Offset Hinge Handle Set","BLK","set"]
[null,"VIO-7PVD","Offset Hinge Handle Set","PVD","set"]
[]
[null,"VIO-8SSS","Meeting Stile Hanger Set ","SSS","set"]
[null,"VIO-8PSS","Meeting Stile Hanger Set ","PSS","set"]
[null,"VIO-8BLK","Meeting Stile Hanger Set ","BLK","set"]
[null,"VIO-8PVD","Meeting Stile Hanger Set ","PVD","set"]
[]
[null,"VIO-9SSS","Security Hinge","SSS","set"]
[null,"VIO-9PSS","Security Hinge","PSS","set"]
[null,"VIO-9BLK","Security Hinge","BLK","set"]
[null,"VIO-9PVD","Security Hinge","PVD","set"]
[]
[null,"Flush Bolts"]
[]
[null,"VFB-01SS","Flush Bolt Non-Lockable 200mm","SS","ea",null,"Satin Stainless"]
[null,"VFB-01PS","Flush Bolt Non-Lockable 200mm","PS","ea",null,"Polished Stainless"]
[null,"VFB-01BLK","Flush Bolt Non-Lockable 200mm","BLK","ea",null,"Black"]
[null,"VFB-01SNA","Flush Bolt Non-Lockable 200mm","SNA","ea",null,"Satin Natural Anodised"]
[null,"VFB-01WHT","Flush Bolt Non-Lockable 200mm","WHT","ea",null,"White"]
[]
[null,"VFB-02SS","Flush Bolt Non-Lockable 400mm","SS","ea"]
[null,"VFB-02PS","Flush Bolt Non-Lockable 400mm","PS","ea"]
[null,"VFB-02BLK","Flush Bolt Non-Lockable 400mm","BLK","ea"]
[null,"VFB-02SNA","Flush Bolt Non-Lockable 400mm","SNA","ea"]
[null,"VFB-02WHT","Flush Bolt Non-Lockable 400mm","WHT","ea"]
[]
[null,"VFB-03SS","Flush Bolt Non-Lockable 600mm","SS","ea"]
[null,"VFB-03PS","Flush Bolt Non-Lockable 600mm","PS","ea"]
[null,"VFB-03BLK","Flush Bolt Non-Lockable 600mm","BLK","ea"]
[null,"VFB-03SNA","Flush Bolt Non-Lockable 600mm","SNA","ea"]
[null,"VFB-03WHT","Flush Bolt Non-Lockable 600mm","WHT","ea"]
[]
[null,"VFBL-01SS","Flush Bolt Key Lockable 200mm","SS","ea"]
[null,"VFBL-01PS","Flush Bolt Key Lockable 200mm","PS","ea"]
[null,"VFBL-01BLK","Flush Bolt Key Lockable 200mm","BLK","ea"]
[null,"VFBL-01SNA","Flush Bolt Key Lockable 200mm","SNA","ea"]
[null,"VFBL-01WHT","Flush Bolt Key Lockable 200mm","WHT","ea"]
[]
[null,"VFBL-02SS","Flush Bolt Key Lockable 400mm","SS","ea"]
[null,"VFBL-02PS","Flush Bolt Key Lockable 400mm","PS","ea"]
[null,"VFBL-02BLK","Flush Bolt Key Lockable 400mm","BLK","ea"]
[null,"VFBL-02SNA","Flush Bolt Key Lockable 400mm","SNA","ea"]
[null,"VFBL-02WHT","Flush Bolt Key Lockable 400mm","WHT","ea"]
[]
[null,"VFBL-03SS","Flush Bolt Key Lockable 600mm","SS","ea"]
[null,"VFBL-03PS","Flush Bolt Key Lockable 600mm","PS","ea"]
[null,"VFBL-03BLK","Flush Bolt Key Lockable 600mm","BLK","ea"]
[null,"VFBL-03SNA","Flush Bolt Key Lockable 600mm","SNA","ea"]
[null,"VFBL-03WHT","Flush Bolt Key Lockable 600mm","WHT","ea"]
[]
[null,"VFBO-01SS","Flush Bolt Offset Non-Lockable 200mm","SS","ea"]
[null,"VFBO-01PS","Flush Bolt Offset Non-Lockable 200mm","PS","ea"]
[null,"VFBO-01BLK","Flush Bolt Offset Non-Lockable 200mm","BLK","ea"]
[null,"VFBO-01SNA","Flush Bolt Offset Non-Lockable 200mm","SNA","ea"]
[null,"VFBO-01WHT","Flush Bolt Offset Non-Lockable 200mm","WHT","ea"]
[]
[null,"VFBO-02SS","Flush Bolt Offset Non-Lockable 400mm","SS","ea"]
[null,"VFBO-02PS","Flush Bolt Offset Non-Lockable 400mm","PS","ea"]
[null,"VFBO-02BLK","Flush Bolt Offset Non-Lockable 400mm","BLK","ea"]
[null,"VFBO-02SNA","Flush Bolt Offset Non-Lockable 400mm","SNA","ea"]
[null,"VFBO-02WHT","Flush Bolt Offset Non-Lockable 400mm","WHT","ea"]
[]
[null,"VFBO-03SS","Flush Bolt Offset Non-Lockable 600mm","SS","ea"]
[null,"VFBO-03PS","Flush Bolt Offset Non-Lockable 600mm","PS","ea"]
[null,"VFBO-03BLK","Flush Bolt Offset Non-Lockable 600mm","BLK","ea"]
[null,"VFBO-03SNA","Flush Bolt Offset Non-Lockable 600mm","SNA","ea"]
[null,"VFBO-03WHT","Flush Bolt Offset Non-Lockable 600mm","WHT","ea"]
[]
[null,"VFBOL-01SS","Flush Bolt Offset Key Lockable 200mm","SS","ea"]
[null,"VFBOL-01PS","Flush Bolt Offset Key Lockable 200mm","PS","ea"]
[null,"VFBOL-01BLK","Flush Bolt Offset Key Lockable 200mm","BLK","ea"]
[null,"VFBOL-01SNA","Flush Bolt Offset Key Lockable 200mm","SNA","ea"]
[null,"VFBOL-01WHT","Flush Bolt Offset Key Lockable 200mm","WHT","ea"]
[]
[null,"VFBOL-02SS","Flush Bolt Offset Key Lockable 400mm","SS","ea"]
[null,"VFBOL-02PS","Flush Bolt Offset Key Lockable 400mm","PS","ea"]
[null,"VFBOL-02BLK","Flush Bolt Offset Key Lockable 400mm","BLK","ea"]
[null,"VFBOL-02SNA","Flush Bolt Offset Key Lockable 400mm","SNA","ea"]
[null,"VFBOL-02WHT","Flush Bolt Offset Key Lockable 400mm","WHT","ea"]
[]
[null,"VFBOL-03SS","Flush Bolt Offset Key Lockable 600mm","SS","ea"]
[null,"VFBOL-03PS","Flush Bolt Offset Key Lockable 600mm","PS","ea"]
[null,"VFBOL-03BLK","Flush Bolt Offset Key Lockable 600mm","BLK","ea"]
[null,"VFBOL-03SNA","Flush Bolt Offset Key Lockable 600mm","SNA","ea"]
[null,"VFBOL-03WHT","Flush Bolt Offset Key Lockable 600mm","WHT","ea"]
[]
[null,"Door Seals"]
[null,"AQ21B","Aquamac Frame Seal Brown 20m","BLK","ea"]
[null,"AQ21W","Aquamac Frame Seal White 20m","WHT","ea"]
[]
[null,"AQ48B","Aquamac Door Seal Brown 25m","BLK","ea"]
[null,"AQ48W","Aquamac Door Seal White 25m","WHT","ea"]
[]
[null,"PS13B","Poly-Bond Brush Seal Black 5m","BLK","ea"]
[]
[null,"Euro Mortice Locks"]
[null,"Nil Required"]
[null,"EML30LC-SSS","Euro Mortice Lock 85 x 30mm Backset - Less Cylinder","SSS","ea"]
[null,"EML30LC-PSS","Euro Mortice Lock 85 x 30mm Backset - Less Cylinder","PSS","ea"]
[null,"EML30LC-BLK","Euro Mortice Lock 85 x 30mm Backset - Less Cylinder","BLK","ea"]
[]
[null,"EML40LC-SSS","Euro Mortice Lock 85 x 40mm Backset - Less Cylinder","SSS","ea"]
[null,"EML40LC-PSS","Euro Mortice Lock 85 x 40mm Backset - Less Cylinder","PSS","ea"]
[null,"EML40LC-BLK","Euro Mortice Lock 85 x 34mm Backset - Less Cylinder","BLK","ea"]
[]
[null,"EML60LC-SSS","Euro Mortice Lock 85 x 60mm Backset - Less Cylinder","SSS","ea"]
[null,"EML60LC-PSS","Euro Mortice Lock 85 x 60mm Backset - Less Cylinder","PSS","ea"]
[null,"EML60LC-BLK","Euro Mortice Lock 85 x 60mm Backset - Less Cylinder","BLK","ea"]
[]
[null,"Cylinders"]
[]
[null,"ECYL01SC","Euro Double Cylinder Dual Function C4 - 5 Pin 65mm","SC","ea"]
[null,"ECYL01CP","Euro Double Cylinder Dual Function C4 - 5 Pin 65mm","CP","ea"]
[null,"ECYL01BLK","Euro Double Cylinder Dual Function C4 - 5 Pin 65mm","BLK","ea"]
[]
[null,"ECYL02SC","Euro Double Cylinder Dual Function 5 Pin 70mm","SC","ea"]
[null,"ECYL02CP","Euro Double Cylinder Dual Function 5 Pin 70mm","CP","ea"]
[null,"ECYL02BLK","Euro Double Cylinder Dual Function 5 Pin 70mm","BLK","ea"]
[]
[null,"ECYL03SC","Euro Double Cylinder Dual Function 5 Pin 80mm","SC","ea"]
[null,"ECYL03CP","Euro Double Cylinder Dual Function 5 Pin 80mm","CP","ea"]
[null,"ECYL03BLK","Euro Double Cylinder Dual Function 5 Pin 80mm","BLK","ea"]
[]
[null,"ECYL04SC","Euro Single Cylinder & Turn 5 Pin 60mm","SC","ea"]
[null,"ECYL04CP","Euro Single Cylinder & Turn 5 Pin 60mm","CP","ea"]
[null,"ECYL04BLK","Euro Single Cylinder & Turn 5 Pin 60mm","BLK","ea"]
[]
[null,"ECYL05SC","Euro Single Cylinder & Turn 5 Pin 70mm","SC","ea"]
[null,"ECYL05CP","Euro Single Cylinder & Turn 5 Pin 70mm","CP","ea"]
[null,"ECYL05BLK","Euro Single Cylinder & Turn 5 Pin 70mm","BLK","ea"]
[]
[null,"Handle Lever Sets"]
[]
[null,"P5500-01 SC","Euro Long Plate Entrance - Lever & Snib","SC","set"]
[null,"P5500-01 CP","Euro Long Plate Entrance - Lever & Snib","CP","set"]
[null,"P5500-01 BLK","Euro Long Plate Entrance - Lever & Snib","BLK","set"]
[null,"P5500-01 WHT","Euro Long Plate Entrance - Lever & Snib","WHT","set"]
[]
[null,"P5510-01 SC","Euro Long Plate Entrance - Lever","SC","set"]
[null,"P5510-01 CP","Euro Long Plate Entrance - Lever","CP","set"]
[null,"P5510-01 BLK","Euro Long Plate Entrance - Lever","BLK","set"]
[null,"P5510-01 WHT","Euro Long Plate Entrance - Lever","WHT","set"]
[]
[null,"Magnetic Catches"]
[]
[null,"DS100 SSS","Magnetic Door Holder/Stop 70 x Ø30mm","SSS","ea"]
[null,"DS100 PSS","Magnetic Door Holder/Stop 70 x Ø30mm","PSS","ea"]
[null,"DS100 BLK","Magnetic Door Holder/Stop 70 x Ø30mm","BLK","ea"]
[]
[null,"DS101 SSS","Magnetic Door Holder 25 x Ø30mm","SSS","ea"]
[null,"DS101 PSS","Magnetic Door Holder 25 x Ø30mm","PSS","ea"]
[null,"DS101 BLK","Magnetic Door Holder 25 x Ø30mm","BLK","ea"]

{"sheet":"List","index":5,"n_rows":95,"n_cols":73,"rows_kept":95,"cut":false,"hidden":true,"merged":[[0,34,0,41]]}
["Opening Width","Opening Height",null,"# Left","# Right","Weight KG","Panel Height","Track Depth (TH)","Top Clearance (TC)","Sill Clearanc (BC)","Number of Panels","Jamb-to-Jamb (Opening Width)","Jamb Clearance","Panel-to-Panel Gap","Opening Width","Panel Width",null,"Nom Panel Width","Opening Width",null,"Frame Width","Frame Height","Rough Op Width","Rough Op Height","Jamb Thickness","Head Thickness","Sill Thickness","Framing Side Gap","Framing Top Gap","Jamb Clearance","Panel-to-Panel Gap","Opening Width","Panel Width",null,"Track and Guide",null,null,null,null,null,null,null,null,null,null,null,null,null,null,"Non-Mortice",null,null,"PULLDOWN I32 & I33 = I108","Lock and Door Furniture","I108"]
[null,{"$f":"'Calculator & BOM'!User_Height","v":0},null,{"$f":"'Calculator & BOM'!Num_Left","v":0},{"$f":"'Calculator & BOM'!Num_Right","v":0},null,{"$f":"B2-H2-I2-J2","v":-62},46,7,{"$f":"9","v":9},{"$f":"D2+E2","v":0},{"$f":"IF('Calculator & BOM'!Start_With=\"Panel Width\",'Calculator & BOM'!User_Width,'Calculator & BOM'!User_Width)","v":0},12,3,{"$f":"L2-M2-(N2*D2+N2*E2)","v":-12},{"$f":"O2/K2","v":{"$error":"#DIV/0!"}},null,{"$f":"IF('Calculator & BOM'!$E$11=\"Panel Width\",'Calculator & BOM'!$E$13,\"\")","v":""},{"$f":"IFERROR(R2*K2+M2+(N2*K2),\"\")","v":""},null,null,null,null,null,null,null,null,null,null,null,null,null,null,null,null,null,null,null,null,null,null,null,null,null,null,null,{"$f":"IF('Calculator & BOM'!Start_With=\"Panel Width\",1000,16000)","v":16000},null,null,null,null,null,"No",null,"Not Required"]
["0.01-2000","v"," VT50-20",null,null,50,null,null,null,null,null,null,null,null,null,null,null,null,null,null,null,null,null,null,null,null,null,null,null,null,null,null,null,null,null,null,null,null,null,null,null,null,null,null,null,null,{"$f":"IF('Calculator & BOM'!Start_With=\"Panel Width\",1000,16000)","v":16000},null,null,null,null,null,"Euro Mortice Lock 30mm Backset","Product List B170","EML30LC","SSS","Satin Stainless Steel"]
["2000.01-3000",null," VT50-30",null,null,50,null,null,null,null,null,null,null,null,null,null,null,null,null,null,null,null,null,null,null,null,null,null,null,null,null,null,null,null,null,null,null,"Track","QTY","Guide Channel","QTY","Poly Channel Inset","QTY",null,null,null,null,null,null,"Select",null,null,"Euro Mortice Lock 30mm Backset","Product List B171","EML30LC","PSS","Polished Stainless Steel"]
["3000.01-4000",null," VT50-40",null,null,50,null,null,null,null,null,null,null,null,null,null,null,null,null,null,null,null,null,null,null,null,null,null,null,null,null,null,null,null,0,2000,"0.01-2000","VT50-20",1,"VGC-20",1,"VPCI-20",1,null,null,null,null,null,null,"Outward",null,null,"Euro Mortice Lock 30mm Backset","Product List B172","EML30LC","BLK","Black"]
["4000.01-5000",null," VT50-50",null,null,50,null,null,null,null,null,null,null,null,null,null,null,null,null,null,null,null,null,null,null,null,null,null,null,null,null,null,null,null,2000.01,3000,"2000.01-3000","VT50-30",1,"VGC-30",1,"VPCI-30",1,null,null,null,null,null,null,"Inward",null,null,null,null,null,""]
["5000.01-6000",null," VT50-30 x 2",null,null,50,null,null,null,null,null,null,null,null,null,null,null,null,null,null,null,null,null,null,null,null,null,null,null,null,null,null,null,null,3000.01,4000,"3000.01-4000","VT50-40",1,"VGC-40",1,"VPCI-40",1,null,null,null,null,null,null,null,null,null,"Euro Mortice Lock 40mm Backset","Product List B174","EML40LC","SSS","Satin Stainless Steel"]
["6000.01-7000",null," VT50-30 + VT50-40",null,null,50,null,null,null,null,null,null,null,null,null,null,null,null,null,null,null,null,null,null,null,null,null,null,null,null,null,null,null,null,4000.01,5000,"4000.01-5000","VT50-50",1,"VGC-50",1,"VPCI-50",1,null,null,null,null,null,null,"Select",null,null,"Euro Mortice Lock 40mm Backset","Product List B175","EML40LC","PSS","Polished Stainless Steel"]
["7000.01-8000",null," VT50-40 x 2",null,null,50,null,null,null,null,null,null,null,null,null,null,null,null,null,null,null,null,null,null,null,null,null,null,null,null,null,null,null,null,5000.01,6000,"5000.01-6000","VT50-30",2,"VGC-30",2,"VPCI-30",2,null,null,null,null,null,null,"Yes",null,null,"Euro Mortice Lock 40mm Backset","Product List B176","EML40LC","BLK","Black"]
["8000.01-9000",null," VT50-40 + VT50-50",null,null,50,null,null,null,null,null,null,null,null,null,null,null,null,null,null,null,null,null,null,null,null,null,null,null,null,null,null,null,null,6000.01,7000,"6000.01-7000","VT50-40",2,"VGC-40",2,"VPCI-40",2,null,null,null,null,null,null,"No",null,null,null,null,null,""]
["9000.01-10000",null," VT50-50 x 2",null,null,50,null,null,null,null,null,null,null,null,null,null,null,null,null,null,null,null,null,null,null,null,null,null,null,null,null,null,null,null,7000.01,8000,"7000.01-8000","VT50-40",2,"VGC-40",2,"VPCI-40",2,null,null,null,null,null,null,null,null,null,"Euro Mortice Lock 60mm Backset","Product List B178","EML60LC","SSS","Satin Stainless Steel"]
[null,null,null,null,null,null,null,null,null,null,null,null,null,null,null,null,null,null,null,null,null,null,null,null,null,null,null,null,null,null,null,null,null,null,8000.01,9000,"8000.01-9000","VT50-50",2,"VGC-50",2,"VPCI-50",2,null,null,null,null,null,null,"Select",null,null,"Euro Mortice Lock 60mm Backset","Product List B179","EML60LC","PSS","Polished Stainless Steel"]
[null,null,null,null,null,null,null,null,null,null,null,null,null,null,null,null,null,null,null,null,null,null,null,null,null,null,null,null,null,null,null,null,null,null,9000.01,10000,"9000.01-10000","VT50-50",2,"VGC-50",2,"VPCI-50",2,null,null,null,null,null,null,"Satin Stainless Steel","SSS",null,"Euro Mortice Lock 60mm Backset","Product List B180","EML60LC","BLK","Black"]
[null,{"$f":"'Calculator & BOM'!User_Height","v":0},null,{"$f":"'Calculator & BOM'!Num_Left","v":0},{"$f":"'Calculator & BOM'!Num_Right","v":0},null,{"$f":"B14-H14-I14-J14","v":-66},50,7,{"$f":"9","v":9},{"$f":"D14+E14","v":0},{"$f":"IF('Calculator & BOM'!Start_With=\"Panel Width\",'Calculator & BOM'!User_Width,'Calculator & BOM'!User_Width)","v":0},12,3,{"$f":"L14-M14-(N14*D14+N14*E14)","v":-12},{"$f":"O14/K14","v":{"$error":"#DIV/0!"}},null,{"$f":"IF('Calculator & BOM'!$E$11=\"Panel Width\",'Calculator & BOM'!$E$13,\"\")","v":""},{"$f":"IFERROR(R14*K14+M14+(N14*K14),\"\")","v":""},null,null,null,null,null,null,null,null,null,null,null,null,null,null,null,10000.01,12000,"10000.01-12000","VT50-40",3,"VGC-40",3,"VPCI-40",3,null,null,null,null,null,null,"Polished Stainless Steel","PSS"]
["0.01-2000",null," VT100-20",null,null,100,null,null,null,null,null,null,null,null,null,null,null,null,null,null,null,null,null,null,null,null,null,null,null,null,null,null,null,null,12000.01,15000,"12000.01-15000","VT50-50",3,"VGC-50",3,"VPCI-50",3,null,null,null,null,null,null,"Black","BLK"]
["2000.01-3000",null," VT100-30",null,null,100,null,null,null,null,null,null,null,null,null,null,null,null,null,null,null,null,null,null,null,null,null,null,null,null,null,null,null,null,15000.1,16000,"15000.01-16000","VT50-40",4,"VGC-40",4,"VPCI-40",4,null,null,null,null,null,null,"PVD Gold","PVD",null,"PULLDOWN I34 & I35 = I109",null,null,"I109"]
["3000.01-4000",null," VT100-40",null,null,100,null,null,null,null,null,null,null,null,null,null,null,null,null,null,null,null,null,null,null,null,null,null,null,null,null,null,null,null,null,null,null,null,null,null,null,null,null,null,null,null,null,null,null,null,null,null,"No",null,"Not Required"]
["4000.01-5000",null," VT100-50",null,null,100,null,null,null,null,null,null,null,null,null,null,null,null,null,null,null,null,null,null,null,null,null,null,null,null,null,null,null,null,null,null,null,null,null,null,null,null,null,null,null,null,null,null,null,"Satin Natural Anodised","SNA",null,"Double Cylinder 5 Pin 65mm","Product List B184","ECYL01","SC","Satin Chrome"]
["5000.01-6000",null," VT100-30 x 2",null,null,100,null,null,null,null,null,null,null,null,null,null,null,null,null,null,null,null,null,null,null,null,null,null,null,null,null,null,null,null,null,null,null,"Track","QTY","Guide Channel","QTY","Poly Channel Inset","QTY",null,null,null,null,null,null,"Mill Finish","MIL",null,"Double Cylinder 5 Pin 65mm","Product List B185",{"$f":"BC18","v":"ECYL01"},"CP","Chrome Plate"]
["6000.01-7000",null," VT100-30 + VT100-40",null,null,100,null,null,null,null,null,null,null,null,null,null,null,null,null,null,null,null,null,null,null,null,null,null,null,null,null,null,null,null,0,2000,"0.01-2000","VT100-20",1,"VGC-20",1,"VPCI-20",1,null,null,null,null,null,null,null,null,null,"Double Cylinder 5 Pin 65mm","Product List B186","ECYL01","BLK","Black"]
["7000.01-8000",null," VT100-40 x 2",null,null,100,null,null,null,null,null,null,null,null,null,null,null,null,null,null,null,null,null,null,null,null,null,null,null,null,null,null,null,null,2000.01,3000,"2000.01-3000","VT100-30",1,"VGC-30",1,"VPCI-30",1,null,null,null,null,null,null,"Support Channel & Poly Insert"]
["8000.01-9000",null," VT100-40 + VT100-50",null,null,100,null,null,null,null,null,null,null,null,null,null,null,null,null,null,null,null,null,null,null,null,null,null,null,null,null,null,null,null,3000.01,4000,"3000.01-4000","VT100-40",1,"VGC-40",1,"VPCI-40",1,null,null,null,null,null,null,"Black Polypropylene Insert only",null,null,"Double Cylinder 5 Pin 70mm","Product List B188","ECYL02","SC","Satin Chrome"]
["9000.01-10000",null," VT100-50 x 2",null,null,100,null,null,null,null,null,null,null,null,null,null,null,null,null,null,null,null,null,null,null,null,null,null,null,null,null,null,null,null,4000.01,5000,"4000.01-5000","VT100-50",1,"VGC-50",1,"VPCI-50",1,null,null,null,null,null,null,null,null,null,"Double Cylinder 5 Pin 70mm","Product List B189",{"$f":"BC22","v":"ECYL02"},"CP","Chrome Plate"]
[null,null,null,null,null,null,null,null,null,null,null,null,null,null,null,null,null,null,null,null,null,null,null,null,null,null,null,null,null,null,null,null,null,null,5000.01,6000,"5000.01-6000","VT100-30",2,"VGC-30",2,"VPCI-30",2,null,null,null,null,null,null,"Select",null,null,"Double Cylinder 5 Pin 70mm","Product List B190","ECYL02","BLK","Black"]
[null,null,null,null,null,null,null,null,null,null,null,null,null,null,null,null,null,null,null,null,null,null,null,null,null,null,null,null,null,null,null,null,null,null,6000.01,7000,"6000.01-7000","VT100-40",2,"VGC-40",2,"VPCI-40",2,null,null,null,null,null,null,"Brown","BRN"]
[null,{"$f":"IF('Calculator & BOM'!$E$17=50,List!B2,IF('Calculator & BOM'!$E$17=100,List!B14,\"\"))","v":""},null,{"$f":"IF('Calculator & BOM'!$E$17=50,List!D2,IF('Calculator & BOM'!$E$17=100,List!D14,\"\"))","v":""},{"$f":"IF('Calculator & BOM'!$E$17=50,List!E2,IF('Calculator & BOM'!$E$17=100,List!E14,\"\"))","v":""},null,{"$f":"IF('Calculator & BOM'!$E$17=50,List!G2,IF('Calculator & BOM'!$E$17=100,List!G14,\"\"))","v":""},{"$f":"IF('Calculator & BOM'!$E$17=50,List!H2,IF('Calculator & BOM'!$E$17=100,List!H14,\"\"))","v":""},{"$f":"IF('Calculator & BOM'!$E$17=50,List!I2,IF('Calculator & BOM'!$E$17=100,List!I14,\"\"))","v":""},{"$f":"IF('Calculator & BOM'!$E$17=50,List!J2,IF('Calculator & BOM'!$E$17=100,List!J14,\"\"))","v":""},{"$f":"IF('Calculator & BOM'!$E$17=50,List!K2,IF('Calculator & BOM'!$E$17=100,List!K14,\"\"))","v":""},{"$f":"IF('Calculator & BOM'!$E$17=50,List!L2,IF('Calculator & BOM'!$E$17=100,List!L14,\"\"))","v":""},{"$f":"IF('Calculator & BOM'!$E$17=50,List!M2,IF('Calculator & BOM'!$E$17=100,List!M14,\"\"))","v":""},{"$f":"IF('Calculator & BOM'!$E$17=50,List!N2,IF('Calculator & BOM'!$E$17=100,List!N14,\"\"))","v":""},{"$f":"IF('Calculator & BOM'!$E$17=50,List!O2,IF('Calculator & BOM'!$E$17=100,List!O14,\"\"))","v":""},{"$f":"IF('Calculator & BOM'!$E$17=50,List!P2,IF('Calculator & BOM'!$E$17=100,List!P14,\"\"))","v":""},null,{"$f":"IF('Calculator & BOM'!$E$17=50,List!R2,IF('Calculator & BOM'!$E$17=100,List!R14,\"\"))","v":""},{"$f":"IF('Calculator & BOM'!$E$17=50,List!S2,IF('Calculator & BOM'!$E$17=100,List!S14,\"\"))","v":""},null,null,null,null,null,null,null,null,null,null,null,null,null,null,null,7000.01,8000,"7000.01-8000","VT100-40",2,"VGC-40",2,"VPCI-40",2,null,null,null,null,null,null,"White","WHT",null,"Double Cylinder 5 Pin 80mm","Product List B192","ECYL03","SC","Satin Chrome"]
[null,null,null,null,null,null,null,null,null,null,null,null,null,null,null,null,null,null,null,null,null,null,null,null,null,null,null,null,null,null,null,null,null,null,8000.01,9000,"8000.01-9000","VT100-50",2,"VGC-50",2,"VPCI-50",2,null,null,null,null,null,null,null,null,null,"Double Cylinder 5 Pin 80mm","Product List B193",{"$f":"BC26","v":"ECYL03"},"CP","Chrome Plate"]
[null,null,null,null,null,null,null,null,null,null,null,null,null,null,null,null,null,null,null,null,null,null,null,null,null,null,null,null,null,null,null,null,null,null,9000.01,10000,"9000.01-10000","VT100-50",2,"VGC-50",2,"VPCI-50",2,null,null,null,null,null,null,"Flush Bolts",null,null,"Double Cylinder 5 Pin 80mm","Product List B194","ECYL03","BLK","Black"]
[null,null,null,null,null,null,null,null,null,null,null,null,null,null,null,null,null,null,null,null,null,null,null,null,null,null,null,null,null,null,null,null,null,null,10000.01,12000,"10000.01-12000","VT100-40",3,"VGC-40",3,"VPCI-40",3,null,null,null,null,null,null,"Nil"]
[null,null,null,null,null,null,null,null,null,null,null,null,null,null,null,null,null,null,null,null,null,null,null,null,null,null,null,null,null,null,null,null,null,null,12000.01,15000,"12000.01-15000","VT100-50",3,"VGC-50",3,"VPCI-50",3,null,null,null,null,null,null,null,null,null,"Cylinder & Turn 5 Pin 60mm","Product List B196","ECYL04","SC","Satin Chrome"]
[null,null,null,null,null,null,null,null,null,null,null,null,null,null,null,null,null,null,null,null,null,null,null,null,null,null,null,null,null,null,null,null,null,null,15000.1,16000,"15000.01-16000","VT100-40",4,"VGC-40",4,"VPCI-40",4,null,null,null,null,null,null,"Select",null,null,"Cylinder & Turn 5 Pin 60mm","Product List B197",{"$f":"BC30","v":"ECYL04"},"CP","Chrome Plate"]
[null,null,null,null,null,null,null,null,null,null,null,null,null,null,null,null,null,null,null,null,null,null,null,null,null,null,null,null,null,null,null,null,null,null,null,null,null,null,null,null,null,null,null,null,null,null,null,null,null,"Top 200mm / Bottom 200mm",null,null,"Cylinder & Turn 5 Pin 60mm","Product List B198","ECYL04","BLK","Black"]
[null,null,null,null,null,null,null,null,null,null,null,null,null,null,null,null,null,null,null,null,null,null,null,null,null,null,null,null,null,null,null,null,null,null,null,null,null,null,null,null,null,null,null,null,null,null,null,null,null,"Top 400mm / Bottom 200mm"]
[null,null,null,null,null,null,null,null,null,null,null,null,null,null,null,null,null,null,null,null,null,null,null,null,null,null,null,null,null,null,null,null,null,null,null,null,null,null,null,null,null,null,null,null,null,null,null,null,null,"Top 600mm / Bottom 200mm",null,null,"Cylinder & Turn 5 Pin 70mm","Product List B200","ECYL05","SC","Satin Chrome"]
[null,null,null,null,null,null,null,null,null,null,null,null,null,null,null,null,null,null,null,null,null,null,null,null,null,null,null,null,null,null,null,null,null,null,null,null,null,null,null,null,null,null,null,null,null,null,null,null,null,null,null,null,"Cylinder & Turn 5 Pin 70mm","Product List B201",{"$f":"BC34","v":"ECYL05"},"CP","Chrome Plate"]
[null,null,null,null,null,null,null,null,null,null,null,null,null,null,null,null,null,null,null,null,null,null,null,null,null,null,null,null,null,null,null,null,null,null,0,{"$f":"AI37-0.01","v":24999.99},1,null,null,null,null,null,null,null,null,null,null,null,null,"Satin Stainless Steel","SS",null,"Cylinder & Turn 5 Pin 70mm","Product List B202","ECYL05","BLK","Black"]
[null,null,null,null,null,null,null,null,null,null,null,null,null,null,null,null,null,null,null,null,null,null,null,null,null,null,null,null,null,null,null,null,null,null,25000,{"$f":"AI38-0.01","v":49999.99},2,null,null,null,null,null,null,null,null,null,null,null,null,"Polished Stainless Steel","PS"]
[null,null,null,null,null,null,null,null,null,null,null,null,null,null,null,null,null,null,null,null,null,null,null,null,null,null,null,null,null,null,null,null,null,null,50000,{"$f":"AI39-0.01","v":74999.990000000005},3,null,null,null,null,null,null,null,null,null,null,null,null,"Black","BLK",null,"PULLDOWN I36 & I37 = I110",null,"I110"]
[null,null,null,null,null,null,null,null,null,null,null,null,null,null,null,null,null,null,null,null,null,null,null,null,null,null,null,null,null,null,null,null,null,null,75000,5000000,4,null,null,null,null,null,null,null,null,null,null,null,null,"Satin Natural Anodised","SNA",null,"No",null,"Not Required"]
[null,null,null,null,null,null,null,null,null,null,null,null,null,null,null,null,null,null,null,null,null,null,null,null,null,null,null,null,null,null,null,null,null,null,null,null,null,null,null,null,null,null,null,null,null,null,null,null,null,"White Powdercoat","WHT",null,"Long Plate Entrance - Lever & Snib","Product List B206","P5500-01","SC","Satin Chrome"]
[null,null,null,null,null,null,null,null,null,null,null,null,null,null,null,null,null,null,null,null,null,null,null,null,null,null,null,null,null,null,null,null,null,null,null,null,null,null,null,null,null,null,null,null,null,null,null,null,null,null,null,null,"Long Plate Entrance - Lever & Snib","Product List B207",{"$f":"BC40","v":"P5500-01"},"CP","Chrome Plate"]
[null,null,null,null,null,null,null,null,null,null,null,null,null,null,null,null,null,null,null,null,null,null,null,null,null,null,null,null,null,null,null,null,null,null,null,null,null,null,null,null,null,null,null,null,null,null,null,null,null,"Select",null,null,"Long Plate Entrance - Lever & Snib","Product List B208","P5500-01","BLK","Black"]
[null,null,null,null,null,null,null,null,null,null,null,null,null,null,null,null,null,null,null,null,null,null,null,null,null,null,null,null,null,null,null,null,null,null,null,null,null,null,null,null,null,null,null,null,null,null,null,null,null,"Top Bolt Key Lockable",null,null,"Long Plate Entrance - Lever & Snib","Product List B209","P5500-01"]
[null,null,null,null,null,null,null,null,null,null,null,null,null,null,null,null,null,null,null,null,null,null,null,null,null,null,null,null,null,null,null,null,null,null,null,null,null,null,null,null,null,null,null,null,null,null,null,null,null,"Bottom Bolt Key Lockable"]
[null,null,null,null,null,null,null,null,null,null,null,null,null,null,null,null,null,null,null,null,null,null,null,null,null,null,null,null,null,null,null,null,null,null,null,null,null,null,null,null,null,null,null,null,null,null,null,null,null,"Both Bolts Non-Lockable",null,null,"Long Plate Entrance - Lever","Product List B211","P5510-01","SC","Satin Chrome"]
[null,null,null,null,null,null,null,null,null,null,null,null,null,null,null,null,null,null,null,null,null,null,null,null,null,null,null,null,null,null,null,null,null,null,null,null,null,null,null,null,null,null,null,null,null,null,null,null,null,"Both Bolts Key Lockable",null,null,{"$f":"BA45","v":"Long Plate Entrance - Lever"},"Product List B212",{"$f":"BC45","v":"P5510-01"},"CP","Chrome Plate"]
[null,null,null,null,null,null,null,null,null,null,null,null,null,null,null,null,null,null,null,null,null,null,null,null,null,null,null,null,null,null,null,null,null,null,null,null,null,null,null,null,null,null,null,null,null,null,null,null,null,null,null,null,"Long Plate Entrance - Lever","Product List B213","P5510-01","BLK","Black"]
[null,null,null,null,null,null,null,null,null,null,null,null,null,null,null,null,null,null,null,null,null,null,null,null,null,null,null,null,null,null,null,null,null,null,null,null,null,null,null,null,null,null,null,null,null,null,null,null,null,"Select",null,null,"Long Plate Entrance - Lever","Product List B214","P5510-01"]
[null,null,null,null,null,null,null,null,null,null,null,null,null,null,null,null,null,null,null,null,null,null,null,null,null,null,null,null,null,null,null,null,null,null,null,null,null,null,null,null,null,null,null,null,null,null,null,null,null,"Nil"]
[null,null,null,null,null,null,null,null,null,null,null,null,null,null,null,null,null,null,null,null,null,null,null,null,null,null,null,null,null,null,null,null,null,null,null,null,null,null,null,null,null,null,null,null,null,null,null,null,null,"Euro Mortice Lock 30mm Backset",null,null,"PULLDOWN I38 & I39 = I114",null,"I114"]
[null,null,null,null,null,null,null,null,null,null,null,null,null,null,null,null,null,null,null,null,null,null,null,null,null,null,null,null,null,null,null,null,null,null,null,null,null,null,null,null,null,null,null,null,null,null,null,null,null,"Euro Mortice Lock 40mm Backset",null,null,"No",null,"Not Required"]
[null,null,null,null,null,null,null,null,null,null,null,null,null,null,null,null,null,null,null,null,null,null,null,null,null,null,null,null,null,null,null,null,null,null,null,null,null,null,null,null,null,null,null,null,null,null,null,null,null,"Euro Mortice Lock 60mm Backset",null,null,"Mag Door Holder 70mm","Product List B218","DS100","SSS","Satin Stainless Steel"]
[null,null,null,null,null,null,null,null,null,null,null,null,null,null,null,null,null,null,null,null,null,null,null,null,null,null,null,null,null,null,null,null,null,null,null,null,null,null,null,null,null,null,null,null,null,null,null,null,null,null,null,null,{"$f":"BA52","v":"Mag Door Holder 70mm"},"Product List B219",{"$f":"BC52","v":"DS100"},"PSS","Polished Stainless Steel"]
[null,null,null,null,null,null,null,null,null,null,null,null,null,null,null,null,null,null,null,null,null,null,null,null,null,null,null,null,null,null,null,null,null,null,null,null,null,null,null,null,null,null,null,null,null,null,null,null,null,"No","SSS",null,"Mag Door Holder 70mm","Product List B220",{"$f":"BC53","v":"DS100"},"BLK","Black"]
[null,null,null,null,null,null,null,null,null,null,null,null,null,null,null,null,null,null,null,null,null,null,null,null,null,null,null,null,null,null,null,null,null,null,null,null,null,null,null,null,null,null,null,null,null,null,null,null,null,"Satin Stainless Steel","PSS"]
[null,null,null,null,null,null,null,null,null,null,null,null,null,null,null,null,null,null,null,null,null,null,null,null,null,null,null,null,null,null,null,null,null,null,null,null,null,null,null,null,null,null,null,null,null,null,null,null,null,"Polished Stainless Steel","BLK",null,"Mag Door Holder 25mm","Product List B222","DS101","SSS","Satin Stainless Steel"]
[null,null,null,null,null,null,null,null,null,null,null,null,null,null,null,null,null,null,null,null,null,null,null,null,null,null,null,null,null,null,null,null,null,null,null,null,null,null,null,null,null,null,null,null,null,null,null,null,null,"Black",null,null,{"$f":"BA56","v":"Mag Door Holder 25mm"},"Product List B223",{"$f":"BC56","v":"DS101"},"PSS","Polished Stainless Steel"]
[null,null,null,null,null,null,null,null,null,null,null,null,null,null,null,null,null,null,null,null,null,null,null,null,null,null,null,null,null,null,null,null,null,null,null,null,null,null,null,null,null,null,null,null,null,null,null,null,null,null,null,null,"Mag Door Holder 25mm","Product List B224",{"$f":"BC57","v":"DS101"},"BLK","Black"]
[null,null,null,null,null,null,null,null,null,null,null,null,null,null,null,null,null,null,null,null,null,null,null,null,null,null,null,null,null,null,null,null,null,null,null,null,null,null,null,null,null,null,null,null,null,null,null,null,null,"Select"]
[null,null,null,null,null,null,null,null,null,null,null,null,null,null,null,null,null,null,null,null,null,null,null,null,null,null,null,null,null,null,null,null,null,null,null,null,null,null,null,null,null,null,null,null,null,null,null,null,null,"Nil",null,null,"PULLDOWN I27 = I102",null,"I102",null,"QTY"]
[null,null,null,null,null,null,null,null,null,null,null,null,null,null,null,null,null,null,null,null,null,null,null,null,null,null,null,null,null,null,null,null,null,null,null,null,null,null,null,null,null,null,null,null,null,null,null,null,null,"Double Cylinder 5 Pin 65mm",null,null,"Brown","Product List B160","AQ21B",null,"EQ's Opening width x 2 + Opening Height x 2  eg 4000 x 2 = 8000 + 2100 x 2= 12200 = QTY 1  or  8000 x 2 = 16000 + 3000 x 2= 22000 = QTY 2",null,null,null,null,null,null,null,null,null,null,null,null,null,"Under 20000 = 1",null,"Over 20k =2"]
[null,null,null,null,null,null,null,null,null,null,null,null,null,null,null,null,null,null,null,null,null,null,null,null,null,null,null,null,null,null,null,null,null,null,null,null,null,null,null,null,null,null,null,null,null,null,null,null,null,"Double Cylinder 5 Pin 80mm",null,null,"White","Product List B161","AQ21W",null,"EQ's Opening width x 2 + Opening Height x 2  eg 4000 x 2 = 8000 + 2100 x 2= 12200 = QTY 1  or  8000 x 2 = 16000 + 3000 x 2= 22000 = QTY 2"]
[null,null,null,null,null,null,null,null,null,null,null,null,null,null,null,null,null,null,null,null,null,null,null,null,null,null,null,null,null,null,null,null,null,null,null,null,null,null,null,null,null,null,null,null,null,null,null,null,null,"Cylinder & Turn 5 Pin 60mm"]
[null,null,null,null,null,null,null,null,null,null,null,null,null,null,null,null,null,null,null,null,null,null,null,null,null,null,null,null,null,null,null,null,null,null,null,null,null,null,null,null,null,null,null,null,null,null,null,null,null,"Cylinder & Turn 5 Pin 70mm",null,null,"PULLDOWN I27 = I103"]
[null,null,null,null,null,null,null,null,null,null,null,null,null,null,null,null,null,null,null,null,null,null,null,null,null,null,null,null,null,null,null,null,null,null,null,null,null,null,null,null,null,null,null,null,null,null,null,null,null,null,null,null,"Brown","Product List B163","AQ48B",null,"EQ's Panel/Door Height x 2 x number of Panels/doors eg  2034 x 2 x 5 = 20340 = QTY 1 or 2034 x 2 x 10 = 40680 = QTY 2",null,null,null,null,null,null,null,null,null,null,null,null,null,"Under 25000= 1",null,"Door Height*2 and then times number of doors"]
[null,null,null,null,null,null,null,null,null,null,null,null,null,null,null,null,null,null,null,null,null,null,null,null,null,null,null,null,null,null,null,null,null,null,null,null,null,null,null,null,null,null,null,null,null,null,null,null,"Satin Stainless Steel",null,"SC",null,"White","Product List B164","AQ48W",null,"EQ's Panel/Door Height x 2 x number of Panels/doors eg  2034 x 2 x 5 = 20340 = QTY 1 or 2034 x 2 x 10 = 40680 = QTY 2"]
[null,null,null,null,null,null,null,null,null,null,null,null,null,null,null,null,null,null,null,null,null,null,null,null,null,null,null,null,null,null,null,null,null,null,null,null,null,null,null,null,null,null,null,null,null,null,null,null,"Polished Stainless Steel","No","CP"]
[null,null,null,null,null,null,null,null,null,null,null,null,null,null,null,null,null,null,null,null,null,null,null,null,null,null,null,null,null,null,null,null,null,null,null,null,null,null,null,null,null,null,null,null,null,null,null,null,"Black","Satin Chrome","BLK",null,"PULLDOWN I27 = I104"]
[null,null,null,null,null,null,null,null,null,null,null,null,null,null,null,null,null,null,null,null,null,null,null,null,null,null,null,null,null,null,null,null,null,null,null,null,null,null,null,null,null,null,null,null,null,null,null,null,null,"Chrome Plate",null,null,"Brown","Product List B166","PS13B",null,"EQ's Track length x 2  eg   4000 x 2 = 8000 = QTY 2  or  6000 x 2 = 12000 = QTY 3",null,null,null,null,null,null,null,null,null,null,null,null,null,"Under 5000 =2, Over = 3"]
[null,null,null,null,null,null,null,null,null,null,null,null,null,null,null,null,null,null,null,null,null,null,null,null,null,null,null,null,null,null,null,null,null,null,null,null,null,null,null,null,null,null,null,null,null,null,null,null,null,"Black",null,null,"White","Product List B166","PS13B",null,"EQ's Track length x 2  eg   4000 x 2 = 8000 = QTY 2  or  6000 x 2 = 12000 = QTY 3",null,null,null,null,null,null,null,null,null,null,null,null,null,"Under 5000 =2, Over = 3"]
[]
[null,null,null,null,null,null,null,null,null,null,null,null,null,null,null,null,null,null,null,null,null,null,null,null,null,null,null,null,null,null,null,null,null,null,null,null,null,null,null,null,null,null,null,null,null,null,null,null,null,"Select"]
[null,null,null,null,null,null,null,null,null,null,null,null,null,null,null,null,null,null,null,null,null,null,null,null,null,null,null,null,null,null,null,null,null,null,null,null,null,null,null,null,null,null,null,null,null,null,null,null,null,"Nil"]
[null,null,null,null,null,null,null,null,null,null,null,null,null,null,null,null,null,null,null,null,null,null,null,null,null,null,null,null,null,null,null,null,null,null,null,null,null,null,null,null,null,null,null,null,null,null,null,null,null,"Long Plate Entrance - Lever & Snib",null,null,"Satin Natural Anodised"]
[null,null,null,null,null,null,null,null,null,null,null,null,null,null,null,null,null,null,null,null,null,null,null,null,null,null,null,null,null,null,null,null,null,null,null,null,null,null,null,null,null,null,null,null,null,null,null,null,null,"Long Plate Entrance - Lever","SC",null,"Support Channel & Poly Insert"]
[null,null,null,null,null,null,null,null,null,null,null,null,null,null,null,null,null,null,null,null,null,null,null,null,null,null,null,null,null,null,null,null,null,null,null,null,null,null,null,null,null,null,null,null,null,null,null,null,null,null,"CP"]
[null,null,null,null,null,null,null,null,null,null,null,null,null,null,null,null,null,null,null,null,null,null,null,null,null,null,null,null,null,null,null,null,null,null,null,null,null,null,null,null,null,null,null,null,null,null,null,null,null,"No","BLK"]
[null,null,null,null,null,null,null,null,null,null,null,null,null,null,null,null,null,null,null,null,null,null,null,null,null,null,null,null,null,null,null,null,null,null,null,null,null,null,null,null,null,null,null,null,null,null,null,null,null,"Satin Chrome"]
[null,null,null,null,null,null,null,null,null,null,null,null,null,null,null,null,null,null,null,null,null,null,null,null,null,null,null,null,null,null,null,null,null,null,null,null,null,null,null,null,null,null,null,null,null,null,null,null,null,"Chrome Plate"]
[null,null,null,null,null,null,null,null,null,null,null,null,null,null,null,null,null,null,null,null,null,null,null,null,null,null,null,null,null,null,null,null,null,null,null,null,null,null,null,null,null,null,null,null,null,null,null,null,null,"Black"]
[]
[null,null,null,null,null,null,null,null,null,null,null,null,null,null,null,null,null,null,null,null,null,null,null,null,null,null,null,null,null,null,null,null,null,null,null,null,null,null,null,null,null,null,null,null,null,null,null,null,null,"Select"]
[null,null,null,null,null,null,null,null,null,null,null,null,null,null,null,null,null,null,null,null,null,null,null,null,null,null,null,null,null,null,null,null,null,null,null,null,null,null,null,null,null,null,null,null,null,null,null,null,null,"Nil"]
[null,null,null,null,null,null,null,null,null,null,null,null,null,null,null,null,null,null,null,null,null,null,null,null,null,null,null,null,null,null,null,null,null,null,null,null,null,null,null,null,null,null,null,null,null,null,null,null,null,"Mag Door Holder 25mm","SSS"]
[null,null,null,null,null,null,null,null,null,null,null,null,null,null,null,null,null,null,null,null,null,null,null,null,null,null,null,null,null,null,null,null,null,null,null,null,null,null,null,null,null,null,null,null,null,null,null,null,null,"Mag Door Holder 70mm","PSS"]
[null,null,null,null,null,null,null,null,null,null,null,null,null,null,null,null,null,null,null,null,null,null,null,null,null,null,null,null,null,null,null,null,null,null,null,null,null,null,null,null,null,null,null,null,null,null,null,null,null,null,"BLK"]
[null,null,null,null,null,null,null,null,null,null,null,null,null,null,null,null,null,null,null,null,null,null,null,null,null,null,null,null,null,null,null,null,null,null,null,null,null,null,null,null,null,null,null,null,null,null,null,null,null,"No","PVD"]
[null,null,null,null,null,null,null,null,null,null,null,null,null,null,null,null,null,null,null,null,null,null,null,null,null,null,null,null,null,null,null,null,null,null,null,null,null,null,null,null,null,null,null,null,null,null,null,null,null,"Satin Stainless Steel"]
[null,null,null,null,null,null,null,null,null,null,null,null,null,null,null,null,null,null,null,null,null,null,null,null,null,null,null,null,null,null,null,null,null,null,null,null,null,null,null,null,null,null,null,null,null,null,null,null,null,"Polished Stainless Steel"]
[null,null,null,null,null,null,null,null,null,null,null,null,null,null,null,null,null,null,null,null,null,null,null,null,null,null,null,null,null,null,null,null,null,null,null,null,null,null,null,null,null,null,null,null,null,null,null,null,null,"Black"]
[null,null,null,null,null,null,null,null,null,null,null,null,null,null,null,null,null,null,null,null,null,null,null,null,null,null,null,null,null,null,null,null,null,null,null,null,null,null,null,null,null,null,null,null,null,null,null,null,null,"PVD Gold"]
[]
[null,null,null,null,null,null,null,null,null,null,null,null,null,null,null,null,null,null,null,null,null,null,null,null,null,null,null,null,null,null,null,null,null,null,null,null,null,null,null,null,null,null,null,null,null,null,null,null,null,"Select"]
[null,null,null,null,null,null,null,null,null,null,null,null,null,null,null,null,null,null,null,null,null,null,null,null,null,null,null,null,null,null,null,null,null,null,null,null,null,null,null,null,null,null,null,null,null,null,null,null,null,"Yes"]
[null,null,null,null,null,null,null,null,null,null,null,null,null,null,null,null,null,null,null,null,null,null,null,null,null,null,null,null,null,null,null,null,null,null,null,null,null,null,null,null,null,null,null,null,null,null,null,null,null,"No"]

{"sheet":"Working","index":6,"n_rows":86,"n_cols":13,"rows_kept":86,"cut":false,"hidden":true,"merged":[]}
["Metric",{"$f":"Dimensions=\"Metric\"","v":true},null,null,"19mm Black Polypropylene","P","",null,"Finish","Part Number"]
["Conversion",{"$f":"IF(Metric,1,1/25.4)","v":1},null,null,"26mm Channel, Gold Aluminium","G","",null,"None","N/A"]
["Proprietary Metric",true,null,null,"26mm Channel, Satin Aluminium","N","",null,"Black Finish Door Catch","DCAOL"]
["Proprietary Conversion",{"$f":"IF(Proprietary_Metric,1,1/25.4)","v":1},null,null,"26mm Channel, Solid Brass","B","",null,"PVD Brass Finish Door Catch","DCATG"]
["Start with Door Size",{"$f":"Start_With=\"Panel Size\"","v":true},null,null,"Black","L","",null,"Stainless Finish Door Catch","DCAS"]
["Start with Frame Size",{"$f":"Start_With=\"Frame Size\"","v":false},null,null,"Black Anodised","L",""]
["Start with Opening",{"$f":"Start_With=\"Rough Opening\"","v":false},null,null,"Black Powdercoat","BLK","BLK",null,"Locking System"]
["Frame Width Allowance",{"$f":"Jamb_Thickness*2+IF(Start_with_Frame_Size,0,Frame_Side_Clearance*2)","v":{"$error":"#REF!"}},null,null,"Bright Chrome","C","",null,"Twinpoint"]
["Total Horizonal Allowance",{"$f":"Jamb_Thickness*2+Jamb_Clearance*2+(Total_Num_of_Panels-1)*Panel_Clearance+IF(Rebated,-Rebate_Overlap,0)","v":{"$error":"#REF!"}},null,null,"Bright Gold","G","GG",null,"Flush Bolts"]
["Total Vertical Allowance",{"$f":"Head_Thickness+Sill_Thickness+Head_Clearance+Sill_Clearance","v":{"$error":"#REF!"}},null,null,"Bronze Anodised","R",""]
["Air Gap",{"$f":"(Total_Num_of_Panels-1)*Panel_Clearance+Jamb_Clearance*2","v":{"$error":"#REF!"}},null,null,"Brown","B","",null,"Panel Catch Arrangements"]
["Panel Difference",{"$f":"SUM(D50:D65)*Conversion","v":0},null,null,"Brushed Metallic","X","",null,"None"]
["Insert Gap",{"$f":"IF(AND(Num_Left>0,Num_Right>0),1,0)","v":0},null,null,"Draining Sill, Bronze no Timber","R","",null,"Between Panels Only"]
["Panel Height",{"$f":"IF(Start_with_Door_Size,User_Height,IF(Start_with_Frame_Size,User_Height-Total_Vertical_Allowance,IF(Start_with_Opening,User_Height-Total_Vertical_Allowance-Frame_Top_Clearance,\"#Error#\")))","v":0},"<-",null,"Draining Sill, Bronze with Timber","RT","",null,"Panels and Free Panels"]
["Nominal Panel Width",{"$f":"IF(Start_with_Door_Size,User_Width,IF(Start_with_Frame_Size,(User_Width-Total_Horizontal_Allowance-IF(Rebated,(Rebate_Depth-Rebate_Hardware_Offset)*2,0))/Total_Num_of_Panels,IF(Start_with_Opening,(User_Width-Total_Horizontal_Allowance-IF(Rebated,(Rebate_Depth-Rebate_Hardware_Offset)*2,0)-Frame_Side_Clearance*2)/Total_Num_of_Panels,\"#Error#\")))","v":0},"<-",null,"Draining Sill, Bronze+Timber","RKWL","",null,"Free Panels Only"]
["Jamb_Jamb",{"$f":"(Total_Num_of_Panels-IF(Rebated,2,0))*Nominal_Panel_Width+(IF(Rebated,2,0)*Rebate_Panel_Width)+IF(Rebated,-Rebate_Overlap,Panel_Clearance)+(Total_Num_of_Panels-2)*Panel_Clearance+Jamb_Clearance*2","v":{"$error":"#REF!"}},"<-",null,"Draining Sill, Satin no Timber","N",""]
["Rebate Panel Width",{"$f":"Nominal_Panel_Width+Rebate_Depth-Rebate_Hardware_Offset","v":{"$error":"#REF!"}},null,null,"Draining Sill, Satin with Timber","NT",""]
["Track Length",{"$f":"Jamb_Jamb","v":{"$error":"#REF!"}},null,null,"Draining Sill, Satin+Timber","NKWL","",null,"CatchPartNumber","DS100"]
["Channel Length",{"$f":"Jamb_Jamb","v":{"$error":"#REF!"}},null,null,"Gold Anodised","G","GG",null,"IsOddLeft",{"$f":"IF(MOD(Num_Left,2)>0,TRUE,FALSE)","v":false}]
["Head Length",{"$f":"Jamb_Jamb + (Jamb_Thickness*2)","v":{"$error":"#REF!"}},null,null,"Gold Anodized","G","GG",null,"IsOddRight",{"$f":"IF(MOD(Num_Right,2)>0,TRUE,FALSE)","v":false}]
["Sill Length",{"$f":"Channel_Length","v":{"$error":"#REF!"}},null,null,"Mahogany Pcoat","M","MM",null,"BothSetsEven",{"$f":"IF(AND(NOT(IsOddLeft),NOT(IsOddRight)),TRUE,FALSE)","v":true}]
["Jamb_Height",{"$f":"Panel_Height+Sill_Thickness+Sill_Clearance+Track_Height+Head_Clearance","v":{"$error":"#NAME?"}},null,null,"Mill Finish","","",null,"BothSetsOdd",{"$f":"IF(AND(IsOddLeft,IsOddRight),TRUE,FALSE)","v":false}]
["Hardware Finish Code",{"$f":"LOOKUP(Hardware_Finish,Working!$E$1:$E$46,Working!$F$1:$F$46)","v":"SS"},null,null,"Narrow Sill, Concealed, Mill no Timber","","",null,"NumPanelCatchesLeft",{"$f":"INDEX(I31:J40,MATCH(Num_Left,I31:I40,0),2)","v":0}]
["Hinge Finish Code",{"$f":"LOOKUP(Hardware_Finish,Working!$E$1:$E$46,Working!$G$1:$G$46)","v":"SS"},null,null,"Narrow Sill, Concealed, Satin no Timber","N","",null,"NumPanelCatchesRight",{"$f":"INDEX(I31:J40,MATCH(Num_Right,I31:I40,0),2)","v":0}]
["Flush Bolt Finish Code",{"$f":"LOOKUP(Dropbolt_Finish,Working!$E$1:$E$46,Working!$F$1:$F$46)","v":"SS"},null,null,"Oil Rubbed Bronze","O","O",null,"OrderPanelCatch",{"$f":"IF(AND(OrderPanelCatches=\"Yes\",SUM(J23:J24)>0),TRUE,FALSE)","v":false}]
["Track Finish Code",{"$f":"LOOKUP(Track_Finish,Working!$E$1:$E$46,Working!$F$1:$F$46)","v":"SNA"},null,null,"Polished Chrome","C","",null,"NumDoorCatchesLeft",{"$f":"IF(AND(IsOddRight,RightDoorCatch<>\"None\"),1,0)","v":0}]
["Channel Finish Code",{"$f":"IF(Channel_Finish=\"19mm Black Poly+Retainer\",Track_Finish_Code,LOOKUP(Channel_Finish,Working!$E$1:$E$46,Working!$F$1:$F$46))","v":{"$error":"#NAME?"}},null,null,"Polished Stainless Steel","PSS","PSS",null,"NumDoorCatchesRight",{"$f":"IF(AND(IsOddLeft,LeftDoorCatch<>\"None\"),1,0)","v":0}]
["Seal Colour Code",{"$f":"LOOKUP(Seal_Colour,Working!$E$1:$E$46,Working!$F$1:$F$46)","v":"W"},null,null,"Satin Natural","SNA","SNA"]
["Row Offset",6,null,null,"Solid Brass","B","B"]
["Keyed",{"$f":"IF(ISERROR(SEARCH(\"Non-Keyed\",Dropbolt_Option)),\"Keyed\",\"Non-Keyed\")","v":"Keyed"},null,null,"Stainless Steel","SS","SS"]
["Cups",{"$f":"ISERROR(SEARCH(\"No Cup\",Dropbolt_Option))","v":true},null,null,"Ti-Gold Stainless","TG","TG",null,"Panels","No. Panel Catches"]
["Flush Bolt_Prefix",null,null,null,"White","W","",null,0,0]
["Astragals",null,null,null,"White Pcoat","W","WW",null,1,0]
["Outward",{"$f":"Door_Open=\"Outward\"","v":true},null,null,null,null,null,null,2,0]
["StraightGuide",{"$f":"Floor_Guide_Type=\"Straight\"","v":false},null,null,null,null,null,null,3,1]
["FastFixHinge",{"$f":"OR(Hinge_Type=\"FastFix\",MorticedEnds)","v":true},null,null,null,null,null,null,4,1]
["MorticedEnds",{"$f":"Hinge_Type=\"FastFix, Morticed End Carriers\"","v":false},null,null,null,null,null,null,5,2]
["Rebatable",{"$f":"OR(Num_Left=1,Num_Left=3,Num_Left=5,Num_Left=7,Num_Right=1,Num_Right=3,Num_Right=5,Num_Right=7)","v":false},null,null,null,null,null,null,6,2]
["Rebated",{"$f":"LEFT(Rebate_Ends,3)=\"Yes\"","v":false},null,null,null,null,null,null,7,3]
["No Orders Array",false,null,null,null,null,null,null,8,3]
["OrderHardware",true]
["OrderTrack",true,"Careful"]
["OrderChannel",true,"NoOrder"]
["OrderSeal",true,"Range"]
["OrderDropBolt",true,"Here"]
["HardwareSheet",{"$f":"IF(StraightGuide,\"S\",\"C\")&IF(FastFixHinge,\"F\",\"M\")&IF(Rebated,\"R\",\"F\")&IF(AND(FastFixHinge,NOT(Rebated)),IF(ISNA(MATCH(Hardware_Finish_Code,{\"N\",\"G\",\"L\",\"W\",\"M\"},0)),\"S\",\"A\"),\"\")","v":"CFFS"}]
["Custom Sill",{"$f":"ISNA(MATCH(Channel_Finish,DoorCalc!R31:R33,0))","v":false}]
[]
["Hardware","Index","Sided","Difference",null,"Layout","Difference","Size"]
[null,1,{"$f":"IF(B50<=Total_Num_of_Panels,IF(B50<=Num_Left,B50,Total_Num_of_Panels-B50+1),\"\")","v":""},{"$f":"IF(B50<=Total_Num_of_Panels,INDEX(#REF!,IF(B50<=Num_Left,Num_Left,Num_Right),C50+1),\"\")","v":""},null,{"$f":"IF(B50<=Total_Num_of_Panels+Insert_Gap,IF(B50<=Num_Left,B50,IF(B50=Num_Left+Insert_Gap,\"\",B50-Insert_Gap)),\"\")","v":""},{"$f":"IF(F50<>\"\",INDEX($B$50:$D$70,F50,3)*Conversion,\"\")","v":""},{"$f":"IF(G50<>\"\",Nominal_Panel_Width+Working!G50,\"\")","v":""}]
[null,2,{"$f":"IF(B51<=Total_Num_of_Panels,IF(B51<=Num_Left,B51,Total_Num_of_Panels-B51+1),\"\")","v":""},{"$f":"IF(B51<=Total_Num_of_Panels,INDEX(#REF!,IF(B51<=Num_Left,Num_Left,Num_Right),C51+1),\"\")","v":""},null,{"$f":"IF(B51<=Total_Num_of_Panels+Insert_Gap,IF(B51<=Num_Left,B51,IF(B51=Num_Left+Insert_Gap,\"\",B51-Insert_Gap)),\"\")","v":""},"",{"$f":"IF(G51<>\"\",Nominal_Panel_Width+Working!G51,\"\")","v":""}]
[null,3,"",{"$f":"IF(B52<=Total_Num_of_Panels,INDEX(#REF!,IF(B52<=Num_Left,Num_Left,Num_Right),C52+1),\"\")","v":""},null,"","",{"$f":"IF(G52<>\"\",Nominal_Panel_Width+Working!G52,\"\")","v":""}]
[null,4,"",{"$f":"IF(B53<=Total_Num_of_Panels,INDEX(#REF!,IF(B53<=Num_Left,Num_Left,Num_Right),C53+1),\"\")","v":""},null,"",{"$f":"IF(F53<>\"\",INDEX($B$50:$D$70,F53,3)*Conversion,\"\")","v":""},{"$f":"IF(G53<>\"\",Nominal_Panel_Width+Working!G53,\"\")","v":""}]
[null,5,"",{"$f":"IF(B54<=Total_Num_of_Panels,INDEX(#REF!,IF(B54<=Num_Left,Num_Left,Num_Right),C54+1),\"\")","v":""},null,{"$f":"IF(B54<=Total_Num_of_Panels+Insert_Gap,IF(B54<=Num_Left,B54,IF(B54=Num_Left+Insert_Gap,\"\",B54-Insert_Gap)),\"\")","v":""},{"$f":"IF(F54<>\"\",INDEX($B$50:$D$70,F54,3)*Conversion,\"\")","v":""},{"$f":"IF(G54<>\"\",Nominal_Panel_Width+Working!G54,\"\")","v":""}]
[null,6,"",{"$f":"IF(B55<=Total_Num_of_Panels,INDEX(#REF!,IF(B55<=Num_Left,Num_Left,Num_Right),C55+1),\"\")","v":""},null,{"$f":"IF(B55<=Total_Num_of_Panels+Insert_Gap,IF(B55<=Num_Left,B55,IF(B55=Num_Left+Insert_Gap,\"\",B55-Insert_Gap)),\"\")","v":""},{"$f":"IF(F55<>\"\",INDEX($B$50:$D$70,F55,3)*Conversion,\"\")","v":""},{"$f":"IF(G55<>\"\",Nominal_Panel_Width+Working!G55,\"\")","v":""}]
[null,7,"",{"$f":"IF(B56<=Total_Num_of_Panels,INDEX(#REF!,IF(B56<=Num_Left,Num_Left,Num_Right),C56+1),\"\")","v":""},null,"","",{"$f":"IF(G56<>\"\",Nominal_Panel_Width+Working!G56,\"\")","v":""}]
[null,8,"",{"$f":"IF(B57<=Total_Num_of_Panels,INDEX(#REF!,IF(B57<=Num_Left,Num_Left,Num_Right),C57+1),\"\")","v":""},null,"","",{"$f":"IF(G57<>\"\",Nominal_Panel_Width+Working!G57,\"\")","v":""}]
[null,9,"",{"$f":"IF(B58<=Total_Num_of_Panels,INDEX(#REF!,IF(B58<=Num_Left,Num_Left,Num_Right),C58+1),\"\")","v":""},null,"","",{"$f":"IF(G58<>\"\",Nominal_Panel_Width+Working!G58,\"\")","v":""}]
[null,10,"",{"$f":"IF(B59<=Total_Num_of_Panels,INDEX(#REF!,IF(B59<=Num_Left,Num_Left,Num_Right),C59+1),\"\")","v":""},null,"","",{"$f":"IF(G59<>\"\",Nominal_Panel_Width+Working!G59,\"\")","v":""}]
[null,11,"",{"$f":"IF(B60<=Total_Num_of_Panels,INDEX(#REF!,IF(B60<=Num_Left,Num_Left,Num_Right),C60+1),\"\")","v":""},null,"","",{"$f":"IF(G60<>\"\",Nominal_Panel_Width+Working!G60,\"\")","v":""}]
[null,12,"",{"$f":"IF(B61<=Total_Num_of_Panels,INDEX(#REF!,IF(B61<=Num_Left,Num_Left,Num_Right),C61+1),\"\")","v":""},null,"","",{"$f":"IF(G61<>\"\",Nominal_Panel_Width+Working!G61,\"\")","v":""}]
[null,13,"",{"$f":"IF(B62<=Total_Num_of_Panels,INDEX(#REF!,IF(B62<=Num_Left,Num_Left,Num_Right),C62+1),\"\")","v":""},null,"","",{"$f":"IF(G62<>\"\",Nominal_Panel_Width+Working!G62,\"\")","v":""}]
[null,14,"",{"$f":"IF(B63<=Total_Num_of_Panels,INDEX(#REF!,IF(B63<=Num_Left,Num_Left,Num_Right),C63+1),\"\")","v":""},null,"","",{"$f":"IF(G63<>\"\",Nominal_Panel_Width+Working!G63,\"\")","v":""}]
[null,15,"",{"$f":"IF(B64<=Total_Num_of_Panels,INDEX(#REF!,IF(B64<=Num_Left,Num_Left,Num_Right),C64+1),\"\")","v":""},null,"","",{"$f":"IF(G64<>\"\",Nominal_Panel_Width+Working!G64,\"\")","v":""}]
[null,16,"",{"$f":"IF(B65<=Total_Num_of_Panels,INDEX(#REF!,IF(B65<=Num_Left,Num_Left,Num_Right),C65+1),\"\")","v":""},null,"","",{"$f":"IF(G65<>\"\",Nominal_Panel_Width+Working!G65,\"\")","v":""}]
[null,17,"",{"$f":"IF(B66<=Total_Num_of_Panels,INDEX(#REF!,IF(B66<=Num_Left,Num_Left,Num_Right),C66+1),\"\")","v":""},null,"","",{"$f":"IF(G66<>\"\",Nominal_Panel_Width+Working!G66,\"\")","v":""}]
[null,18,"",null,null,"",""]
[null,19,"",null,null,"",""]
[null,20,"",null,null,"",""]
[null,21,"",null,null,"",""]
[null,null,null,null,null,null,""]
[]
[null,null,null,null,null,2,4,8]
[{"$f":"DoorCalc!I53","v":"Jamb Thickness"},{"$f":"DoorCalc!K53","v":{"$error":"#REF!"}},{"$f":"FLOOR(B74,1)","v":{"$error":"#REF!"}},{"$f":"B74-C74","v":{"$error":"#REF!"}},{"$f":"IF(C74>0,TEXT(C74,\"0\"),\"\")&IF(AND(C74>0,L74>0),\" \",\"\")&IF(L74>0,TEXT(L74,\"0\")&\"/\"&TEXT(M74,\"0\"),\"\")&\"\"\"\"","v":{"$error":"#REF!"}},{"$f":"ABS(ROUND($D74*F$73,0)/F$73-$D74)","v":{"$error":"#REF!"}},{"$error":"#REF!"},{"$f":"ABS(ROUND($D74*H$73,0)/H$73-$D74)","v":{"$error":"#REF!"}},null,null,{"$f":"MIN(F81:J81)","v":{"$error":"#REF!"}},{"$f":"ROUND(D74*M74,0)","v":{"$error":"#REF!"}},{"$f":"INDEX($F$80:$J$80,MATCH(K74,F81:J81,0))","v":{"$error":"#REF!"}}]
[{"$f":"DoorCalc!I54","v":"Head Thickness"},{"$f":"DoorCalc!K54","v":{"$error":"#REF!"}},{"$f":"FLOOR(B75,1)","v":{"$error":"#REF!"}},{"$f":"B75-C75","v":{"$error":"#REF!"}},{"$error":"#REF!"},{"$error":"#REF!"},{"$error":"#REF!"},{"$error":"#REF!"},null,null,{"$error":"#REF!"},{"$error":"#REF!"},{"$f":"INDEX($F$80:$J$80,MATCH(K75,F82:J82,0))","v":{"$error":"#REF!"}}]
[{"$f":"DoorCalc!I55","v":"Sill Thickness"},{"$f":"DoorCalc!K55","v":{"$error":"#NAME?"}},{"$error":"#NAME?"},{"$error":"#NAME?"},{"$error":"#NAME?"},{"$error":"#NAME?"},{"$error":"#NAME?"},{"$error":"#NAME?"},null,null,{"$error":"#REF!"},{"$error":"#NAME?"},{"$f":"INDEX($F$80:$J$80,MATCH(K76,F83:J83,0))","v":{"$error":"#REF!"}}]
[{"$f":"DoorCalc!I56","v":"Framing Side Gap"},{"$f":"DoorCalc!K56","v":{"$error":"#REF!"}},{"$error":"#REF!"},{"$error":"#REF!"},{"$error":"#REF!"},{"$error":"#REF!"},{"$error":"#REF!"},{"$error":"#REF!"},16,32,{"$error":"#REF!"},{"$error":"#REF!"},{"$error":"#REF!"}]
[{"$f":"DoorCalc!I57","v":"Framing Top Gap"},{"$f":"DoorCalc!K57","v":{"$error":"#REF!"}},{"$error":"#REF!"},{"$error":"#REF!"},{"$error":"#REF!"},{"$error":"#REF!"},{"$error":"#REF!"},{"$error":"#REF!"},{"$f":"ABS(ROUND($D74*I$77,0)/I$77-$D74)","v":{"$error":"#REF!"}},{"$error":"#REF!"},{"$error":"#REF!"},{"$error":"#REF!"},{"$error":"#REF!"}]
[{"$f":"DoorCalc!I58","v":"Jamb Clearance"},{"$f":"DoorCalc!K58","v":{"$error":"#REF!"}},{"$error":"#REF!"},{"$error":"#REF!"},{"$error":"#REF!"},{"$error":"#REF!"},{"$error":"#REF!"},{"$error":"#REF!"},{"$error":"#REF!"},{"$error":"#REF!"},{"$error":"#REF!"},{"$error":"#REF!"},{"$error":"#REF!"}]
[{"$f":"DoorCalc!I59","v":"Head Clearance"},{"$f":"DoorCalc!K59","v":{"$error":"#REF!"}},{"$error":"#REF!"},{"$error":"#REF!"},{"$error":"#REF!"},{"$error":"#REF!"},{"$error":"#REF!"},{"$error":"#REF!"},{"$error":"#NAME?"},{"$error":"#NAME?"},0,{"$error":"#REF!"},{"$error":"#N/A"}]
[{"$f":"DoorCalc!I60","v":"Sill Clearance"},{"$f":"DoorCalc!K60","v":{"$error":"#REF!"}},{"$f":"FLOOR(B81,1)","v":{"$error":"#REF!"}},{"$f":"B81-C81","v":{"$error":"#REF!"}},{"$error":"#REF!"},{"$error":"#REF!"},{"$error":"#REF!"},{"$error":"#REF!"},{"$error":"#REF!"},{"$error":"#REF!"},0,{"$error":"#REF!"},{"$error":"#N/A"}]
[{"$f":"DoorCalc!I61","v":"Panel-to-Panel Gap"},{"$f":"DoorCalc!K61","v":{"$error":"#REF!"}},{"$error":"#REF!"},{"$error":"#REF!"},{"$error":"#REF!"},{"$error":"#REF!"},{"$error":"#REF!"},{"$error":"#REF!"},{"$error":"#REF!"},{"$error":"#REF!"},0,{"$error":"#REF!"},{"$error":"#N/A"}]
[null,null,null,null,null,null,null,null,{"$error":"#REF!"},{"$error":"#REF!"}]
[null,null,null,null,null,null,null,null,{"$error":"#REF!"},{"$error":"#REF!"}]
[null,null,null,null,null,null,null,null,{"$error":"#REF!"},{"$error":"#REF!"}]
[null,null,null,null,null,null,null,null,{"$error":"#REF!"},{"$error":"#REF!"}]

{"sheet":"DoorCalc","index":7,"n_rows":123,"n_cols":21,"rows_kept":123,"cut":false,"hidden":true,"merged":[[15,4,15,6],[14,4,14,6],[14,0,14,1],[15,0,15,1],[16,0,16,1],[16,4,16,6],[12,4,12,6],[6,0,6,1],[7,0,7,1],[8,0,8,1],[9,0,9,1],[2,0,3,7],[7,4,7,6],[6,4,6,6],[8,4,8,6],[5,4,5,7],[35,4,35,7],[95,11,95,12],[71,11,71,12],[72,11,72,12],[76,11,76,12],[77,11,77,12],[89,11,89,12],[82,11,82,12],[83,11,83,12],[54,4,54,5],[55,4,55,5],[53,4,53,5],[58,4,58,5],[56,4,56,5],[57,4,57,5],[33,4,33,7],[34,4,34,7],[32,4,32,7],[20,4,20,7],[26,4,26,7],[29,4,29,7],[31,4,31,7],[30,4,30,7],[27,4,27,7],[22,4,22,7],[25,4,25,7],[24,4,24,7],[23,4,23,7],[105,5,105,7],[59,4,59,5],[60,4,60,5],[61,4,61,5],[105,2,105,3],[31,0,31,1],[32,0,32,1],[35,0,35,1],[33,0,33,2],[34,0,34,2],[30,0,30,1],[19,0,19,1],[20,0,20,1],[25,0,25,1],[29,0,29,1],[21,0,21,1],[22,0,22,1],[23,0,23,1],[24,0,24,1],[2,8,2,9],[1,8,1,9],[26,0,26,1],[27,0,27,1],[28,0,28,1],[10,0,10,1],[11,0,11,1],[12,0,12,1],[13,0,13,1],[21,4,21,7],[13,4,13,6],[28,4,28,7],[19,4,19,7],[9,4,9,6],[10,4,10,6],[11,4,11,6]]}
["McCallum",null,null,null,null,null,null,null,null,null,null,null,null,"Ext",null,{"$f":"180*12","v":2160}]
["VIO Folding Door Hardware Calculator V1",null,null,null,null,null,null,null,"Purchase Order",null,null,null,null,null,null,{"$f":"P1*1.1","v":2376}]
[{"$f":"IF(Hardware_Finish=\"Oil Rubbed Bronze\",\"Please Note: Oil Rubbed Bronze Hardware is not available in Australia\",\"\")","v":""},null,null,null,null,null,null,null,{"$f":"\"To: \"&#REF!","v":{"$error":"#REF!"}},null,null,null,{"$f":"\"Fax \"&INDEX(#REF!,MATCH(#REF!,#REF!,0))","v":{"$error":"#REF!"}}]
[null,null,null,null,null,null,null,null,null,null,null,null,null,{"$f":"SUM(N5:N45)","v":{"$error":"#REF!"}}]
["Job information",null,null,null,null,null,null,null,"Lineals"]
[null,null,null,null,{"$f":"IF(COUNTA(C13:C14)-COUNTBLANK(C13:C14)>0,\"Red items below are incorrect\",\"\")","v":""},null,null,null,"Description",null,null,null,null,null,null,"Flush Bolt Style","Flush Bolt Style","Outwards-Straight","Inwards-Straight","Outwards-Concealed","Inwards-Concealed"]
["Manufacturer",null,null,null,"Company Name",null,null,null,{"$f":"IF(LOOKUP(ROW()-Row_Offset,#REF!)=ROW()-Row_Offset,LOOKUP(ROW()-Row_Offset,#REF!,#REF!),\"\")","v":{"$error":"#REF!"}},{"$f":"IF(I7<>\"\",LOOKUP(ROW()-Row_Offset,#REF!,#REF!),\"\")","v":{"$error":"#REF!"}},{"$f":"IF(AND(J7<>\"\",Total_Num_of_Panels<>0),LOOKUP(ROW()-Row_Offset,#REF!,#REF!),\"\")","v":{"$error":"#REF!"}},{"$f":"IF(LOOKUP(ROW()-Row_Offset,#REF!)=ROW()-Row_Offset,LOOKUP(ROW()-Row_Offset,#REF!,#REF!),\"\")","v":{"$error":"#REF!"}},{"$f":"IF(K7<>\"\",IF(INDEX(Order,VLOOKUP(J7,PriceTable,7,FALSE)+1),1,-1)*VLOOKUP(J7,PriceTable,6,FALSE),0)","v":{"$error":"#REF!"}},{"$f":"IF(M7>0,M7*K7,0)","v":{"$error":"#REF!"}},null,"<>FALSE",{"$f":"IF(Outward,IF(StraightGuide,R7,T7),IF(StraightGuide,S7,U7))","v":"Radius, 200"},"Round, 200","Round, 200","Radius, 200","Radius, 200"]
["Customer ID",null,null,null,"CN-0000123",null,null,null,{"$f":"IF(LOOKUP(ROW()-Row_Offset,#REF!)=ROW()-Row_Offset,LOOKUP(ROW()-Row_Offset,#REF!,#REF!),\"\")","v":{"$error":"#REF!"}},{"$f":"IF(I8<>\"\",LOOKUP(ROW()-Row_Offset,#REF!,#REF!),\"\")","v":{"$error":"#REF!"}},{"$f":"IF(AND(J8<>\"\",Total_Num_of_Panels<>0),LOOKUP(ROW()-Row_Offset,#REF!,#REF!),\"\")","v":{"$error":"#REF!"}},{"$f":"IF(LOOKUP(ROW()-Row_Offset,#REF!)=ROW()-Row_Offset,LOOKUP(ROW()-Row_Offset,#REF!,#REF!),\"\")","v":{"$error":"#REF!"}},{"$error":"#REF!"},{"$error":"#REF!"},null,null,"Radius, 200/200","Round, 200/400","Round, 200/400","Radius, 200/200","Radius, 200/200"]
["Start With",null,null,null,"Panel Size",null,null,null,{"$f":"IF(LOOKUP(ROW()-Row_Offset,#REF!)=ROW()-Row_Offset,LOOKUP(ROW()-Row_Offset,#REF!,#REF!),\"\")","v":{"$error":"#REF!"}},{"$f":"IF(I9<>\"\",LOOKUP(ROW()-Row_Offset,#REF!,#REF!),\"\")","v":{"$error":"#REF!"}},{"$f":"IF(AND(J9<>\"\",Total_Num_of_Panels<>0),LOOKUP(ROW()-Row_Offset,#REF!,#REF!),\"\")","v":{"$error":"#REF!"}},{"$f":"IF(LOOKUP(ROW()-Row_Offset,#REF!)=ROW()-Row_Offset,LOOKUP(ROW()-Row_Offset,#REF!,#REF!),\"\")","v":{"$error":"#REF!"}},{"$error":"#REF!"},{"$error":"#REF!"},null,null,"Radius, 400/200","Round, 200/600","Round, 200/600","Radius, 400/200","Radius, 400/200"]
["Dimensions",null,null,null,"Metric",null,null,{"$f":"IF(Metric,\"(mm)\",\"(inches)\")","v":"(mm)"},{"$f":"IF(LOOKUP(ROW()-Row_Offset,#REF!)=ROW()-Row_Offset,LOOKUP(ROW()-Row_Offset,#REF!,#REF!),\"\")","v":{"$error":"#REF!"}},{"$f":"IF(I10<>\"\",LOOKUP(ROW()-Row_Offset,#REF!,#REF!),\"\")","v":{"$error":"#REF!"}},{"$f":"IF(AND(J10<>\"\",Total_Num_of_Panels<>0),LOOKUP(ROW()-Row_Offset,#REF!,#REF!),\"\")","v":{"$error":"#REF!"}},{"$f":"IF(LOOKUP(ROW()-Row_Offset,#REF!)=ROW()-Row_Offset,LOOKUP(ROW()-Row_Offset,#REF!,#REF!),\"\")","v":{"$error":"#REF!"}},{"$error":"#REF!"},{"$error":"#REF!"},null,null,"Radius, 600/200","Round, 200/1000","Round, 200/1000","Radius, 600/200","Radius, 600/200"]
["Job ID",null,null,null,"Job Site 1",null,null,null,{"$f":"IF(LOOKUP(ROW()-Row_Offset,#REF!)=ROW()-Row_Offset,LOOKUP(ROW()-Row_Offset,#REF!,#REF!),\"\")","v":{"$error":"#REF!"}},{"$f":"IF(I11<>\"\",LOOKUP(ROW()-Row_Offset,#REF!,#REF!),\"\")","v":{"$error":"#REF!"}},{"$f":"IF(AND(J11<>\"\",Total_Num_of_Panels<>0),LOOKUP(ROW()-Row_Offset,#REF!,#REF!),\"\")","v":{"$error":"#REF!"}},{"$f":"IF(LOOKUP(ROW()-Row_Offset,#REF!)=ROW()-Row_Offset,LOOKUP(ROW()-Row_Offset,#REF!,#REF!),\"\")","v":{"$error":"#REF!"}},{"$error":"#REF!"},{"$error":"#REF!"},null,null,0,"Square, 200",false]
["Purchase ID",null,null,null,"PO/1",null,null,null,{"$f":"IF(LOOKUP(ROW()-Row_Offset,#REF!)=ROW()-Row_Offset,LOOKUP(ROW()-Row_Offset,#REF!,#REF!),\"\")","v":{"$error":"#REF!"}},{"$f":"IF(I12<>\"\",LOOKUP(ROW()-Row_Offset,#REF!,#REF!),\"\")","v":{"$error":"#REF!"}},{"$f":"IF(AND(J12<>\"\",Total_Num_of_Panels<>0),LOOKUP(ROW()-Row_Offset,#REF!,#REF!),\"\")","v":{"$error":"#REF!"}},{"$f":"IF(LOOKUP(ROW()-Row_Offset,#REF!)=ROW()-Row_Offset,LOOKUP(ROW()-Row_Offset,#REF!,#REF!),\"\")","v":{"$error":"#REF!"}},{"$error":"#REF!"},{"$error":"#REF!"},null,null,0,"Square, 200/400",false]
[{"$f":"IF(Start_with_Opening,\"Opening Width\",IF(Start_with_Door_Size,\"Panel Width\",\"Frame Width\"))","v":"Panel Width"},null,{"$f":"IF(Nominal_Panel_Width>IF(Metric,1000,39),\"è\",\"\")","v":""},null,820,null,null,{"$f":"IF(Nominal_Panel_Width>IF(Metric,1000,39),\"Panel too wide\",\"\")","v":""},{"$f":"IF(LOOKUP(ROW()-Row_Offset,#REF!)=ROW()-Row_Offset,LOOKUP(ROW()-Row_Offset,#REF!,#REF!),\"\")","v":{"$error":"#REF!"}},{"$f":"IF(I13<>\"\",LOOKUP(ROW()-Row_Offset,#REF!,#REF!),\"\")","v":{"$error":"#REF!"}},{"$f":"IF(AND(J13<>\"\",Total_Num_of_Panels<>0),LOOKUP(ROW()-Row_Offset,#REF!,#REF!),\"\")","v":{"$error":"#REF!"}},{"$f":"IF(LOOKUP(ROW()-Row_Offset,#REF!)=ROW()-Row_Offset,LOOKUP(ROW()-Row_Offset,#REF!,#REF!),\"\")","v":{"$error":"#REF!"}},{"$error":"#REF!"},{"$error":"#REF!"}]
[{"$f":"IF(Start_with_Opening,\"Opening Height\",IF(Start_with_Door_Size,\"Panel Height\",\"Frame Height\"))","v":"Panel Height"},null,{"$f":"IF(Panel_Height>IF(Metric,3000,118),\"è\",\"\")","v":""},null,2100,null,null,{"$f":"IF(Panel_Height>IF(Metric,3000,118),\"Panel too high\",\"\")","v":""},{"$f":"IF(LOOKUP(ROW()-Row_Offset,#REF!)=ROW()-Row_Offset,LOOKUP(ROW()-Row_Offset,#REF!,#REF!),\"\")","v":{"$error":"#REF!"}},{"$f":"IF(I14<>\"\",LOOKUP(ROW()-Row_Offset,#REF!,#REF!),\"\")","v":{"$error":"#REF!"}},{"$f":"IF(AND(J14<>\"\",Total_Num_of_Panels<>0),LOOKUP(ROW()-Row_Offset,#REF!,#REF!),\"\")","v":{"$error":"#REF!"}},{"$f":"IF(LOOKUP(ROW()-Row_Offset,#REF!)=ROW()-Row_Offset,LOOKUP(ROW()-Row_Offset,#REF!,#REF!),\"\")","v":{"$error":"#REF!"}},{"$error":"#REF!"},{"$error":"#REF!"}]
["# Left",null,null,null,3,null,null,{"$f":"IF(Outward,\"(from outside)\",\"(from INSIDE)\")","v":"(from outside)"},{"$f":"IF(LOOKUP(ROW()-Row_Offset,#REF!)=ROW()-Row_Offset,LOOKUP(ROW()-Row_Offset,#REF!,#REF!),\"\")","v":{"$error":"#REF!"}},{"$f":"IF(I15<>\"\",LOOKUP(ROW()-Row_Offset,#REF!,#REF!),\"\")","v":{"$error":"#REF!"}},{"$f":"IF(AND(J15<>\"\",Total_Num_of_Panels<>0),LOOKUP(ROW()-Row_Offset,#REF!,#REF!),\"\")","v":{"$error":"#REF!"}},{"$f":"IF(LOOKUP(ROW()-Row_Offset,#REF!)=ROW()-Row_Offset,LOOKUP(ROW()-Row_Offset,#REF!,#REF!),\"\")","v":{"$error":"#REF!"}},{"$error":"#REF!"},{"$error":"#REF!"},null,"Flush Bolt Finishes","Flush Bolt Finishes"]
["# Right",null,null,null,1,null,null,{"$f":"IF(Outward,\"(from outside)\",\"(from INSIDE)\")","v":"(from outside)"},{"$f":"IF(LOOKUP(ROW()-Row_Offset,#REF!)=ROW()-Row_Offset,LOOKUP(ROW()-Row_Offset,#REF!,#REF!),\"\")","v":{"$error":"#REF!"}},{"$f":"IF(I16<>\"\",LOOKUP(ROW()-Row_Offset,#REF!,#REF!),\"\")","v":{"$error":"#REF!"}},{"$f":"IF(AND(J16<>\"\",Total_Num_of_Panels<>0),LOOKUP(ROW()-Row_Offset,#REF!,#REF!),\"\")","v":{"$error":"#REF!"}},{"$f":"IF(LOOKUP(ROW()-Row_Offset,#REF!)=ROW()-Row_Offset,LOOKUP(ROW()-Row_Offset,#REF!,#REF!),\"\")","v":{"$error":"#REF!"}},{"$error":"#REF!"},{"$error":"#REF!"},null,"<>FALSE",{"$f":"INDEX(#REF!,MATCH(Door_Open&Floor_Guide_Type&Dropbolt_Style,#REF!,0))","v":{"$error":"#REF!"}}]
["Weight KG",null,null,null,null,null,null,null,{"$f":"IF(LOOKUP(ROW()-Row_Offset,#REF!)=ROW()-Row_Offset,LOOKUP(ROW()-Row_Offset,#REF!,#REF!),\"\")","v":{"$error":"#REF!"}},{"$f":"IF(I17<>\"\",LOOKUP(ROW()-Row_Offset,#REF!,#REF!),\"\")","v":{"$error":"#REF!"}},{"$f":"IF(AND(J17<>\"\",Total_Num_of_Panels<>0),LOOKUP(ROW()-Row_Offset,#REF!,#REF!),\"\")","v":{"$error":"#REF!"}},{"$f":"IF(LOOKUP(ROW()-Row_Offset,#REF!)=ROW()-Row_Offset,LOOKUP(ROW()-Row_Offset,#REF!,#REF!),\"\")","v":{"$error":"#REF!"}},{"$error":"#REF!"},{"$error":"#REF!"},null,null,{"$f":"INDEX(#REF!,MATCH(Door_Open&Floor_Guide_Type&Dropbolt_Style,#REF!,0))","v":{"$error":"#REF!"}}]
["Options & Finishes",null,null,null,null,null,null,null,{"$f":"IF(LOOKUP(ROW()-Row_Offset,#REF!)=ROW()-Row_Offset,LOOKUP(ROW()-Row_Offset,#REF!,#REF!),\"\")","v":{"$error":"#REF!"}},{"$f":"IF(I18<>\"\",LOOKUP(ROW()-Row_Offset,#REF!,#REF!),\"\")","v":{"$error":"#REF!"}},{"$f":"IF(AND(J18<>\"\",Total_Num_of_Panels<>0),LOOKUP(ROW()-Row_Offset,#REF!,#REF!),\"\")","v":{"$error":"#REF!"}},{"$f":"IF(LOOKUP(ROW()-Row_Offset,#REF!)=ROW()-Row_Offset,LOOKUP(ROW()-Row_Offset,#REF!,#REF!),\"\")","v":{"$error":"#REF!"}},{"$error":"#REF!"},{"$error":"#REF!"},null,null,{"$f":"INDEX(#REF!,MATCH(Door_Open&Floor_Guide_Type&Dropbolt_Style,#REF!,0))","v":{"$error":"#REF!"}}]
[null,null,null,"Order (Y/N)",{"$f":"IF(OR(HardwareSheet=\"SMR\",HardwareSheet=\"SMF\",Dropbolt_Finish=\"\",COUNTA(C20:C32)-COUNTBLANK(C20:C32)>0),\" Red options below are incorrect\",\"\")","v":" Red options below are incorrect"},null,null,null,{"$f":"IF(LOOKUP(ROW()-Row_Offset,#REF!)=ROW()-Row_Offset,LOOKUP(ROW()-Row_Offset,#REF!,#REF!),\"\")","v":{"$error":"#REF!"}},{"$f":"IF(I19<>\"\",LOOKUP(ROW()-Row_Offset,#REF!,#REF!),\"\")","v":{"$error":"#REF!"}},{"$f":"IF(AND(J19<>\"\",Total_Num_of_Panels<>0),LOOKUP(ROW()-Row_Offset,#REF!,#REF!),\"\")","v":{"$error":"#REF!"}},{"$f":"IF(LOOKUP(ROW()-Row_Offset,#REF!)=ROW()-Row_Offset,LOOKUP(ROW()-Row_Offset,#REF!,#REF!),\"\")","v":{"$error":"#REF!"}},{"$error":"#REF!"},{"$error":"#REF!"},null,null,{"$f":"INDEX(#REF!,MATCH(Door_Open&Floor_Guide_Type&Dropbolt_Style,#REF!,0))","v":{"$error":"#REF!"}}]
["Floor Guide",null,{"$f":"IF(OR(HardwareSheet=\"SMR\",HardwareSheet=\"SMF\",Floor_Guide_Type=\"\"),\"è\",\"\")","v":""},null,"Concealed",null,null,null,null,null,null,null,null,{"$f":"IF(M21>0,M21*K21,0)","v":0},null,null,{"$f":"INDEX(#REF!,MATCH(Door_Open&Floor_Guide_Type&Dropbolt_Style,#REF!,0))","v":{"$error":"#REF!"}}]
["Hinge Type",null,{"$f":"IF(OR(HardwareSheet=\"SMR\",HardwareSheet=\"SMF\",Hinge_Type=\"\"),\"è\",\"\")","v":""},null,"FastFix",null,null,null,"Hardware",null,null,null,{"$f":"IF(K21<>\"\",IF(INDEX(Order,VLOOKUP(J21,PriceTable,7,FALSE)+1),1,-1)*VLOOKUP(J21,PriceTable,6,FALSE),0)","v":0},{"$error":"#REF!"}]
["Rebate Ends",null,{"$f":"IF(OR(HardwareSheet=\"SMR\",HardwareSheet=\"SMF\",Rebate_Ends=\"\",AND(Rebated,NOT(Rebatable))),\"è\",\"\")","v":""},null,"No",null,null,null,null,{"$f":"#REF!","v":{"$error":"#REF!"}},{"$f":"IF(J22<>\"\",1,\"\")","v":{"$error":"#REF!"}},{"$f":"IF(K22<>\"\",\"set\",\"\")","v":{"$error":"#REF!"}},{"$error":"#REF!"},{"$error":"#REF!"}]
["Door Open",null,{"$f":"IF(Door_Open=\"\",\"è\",\"\")","v":""},null,"Outward",null,null,null,null,{"$f":"#REF!","v":{"$error":"#REF!"}},{"$error":"#REF!"},{"$error":"#REF!"},{"$error":"#REF!"},{"$error":"#REF!"}]
["Hardware",null,{"$f":"IF(ISNA(MATCH(Hardware_Finish,HardwareFinishes,0)),\"è\",\"\")","v":"è"},null,"Stainless Steel",null,null,null,null,{"$f":"#REF!","v":{"$error":"#REF!"}},{"$error":"#REF!"},{"$error":"#REF!"},{"$error":"#REF!"},{"$error":"#REF!"},null,null,"Track Finishes"]
["Track",null,{"$f":"IF(Track_Finish=\"\",\"è\",\"\")","v":""},null,"Satin Natural",null,null,null,null,{"$f":"#REF!","v":{"$error":"#REF!"}},{"$error":"#REF!"},{"$error":"#REF!"},{"$error":"#REF!"},{"$error":"#REF!"},null,null,"Satin Natural"]
["Sill/Channel",null,{"$f":"IF(ISNA(MATCH(Channel_Finish,SillChannel,0)),\"è\",\"\")","v":""},null,"19mm Black Poly+Retainer",null,null,null,null,{"$f":"#REF!","v":{"$error":"#REF!"}},{"$error":"#REF!"},{"$error":"#REF!"},{"$error":"#REF!"},{"$error":"#REF!"},null,null,"Gold Anodised"]
["Door Thickness",null,{"$f":"IF(ISNA(MATCH(Door_Thickness,DoorThickness,0)),\"è\",\"\")","v":""},null,"N/A",null,null,null,null,{"$f":"#REF!","v":{"$error":"#REF!"}},{"$error":"#REF!"},{"$error":"#REF!"},{"$error":"#REF!"},{"$error":"#REF!"},null,null,""]
["Seal Colour",null,{"$f":"IF(ISNA(MATCH(Seal_Colour,SealColour,0)),\"è\",\"\")","v":"è"},null,"White",null,null,null,null,{"$f":"#REF!","v":{"$error":"#REF!"}},{"$error":"#REF!"},{"$error":"#REF!"},{"$error":"#REF!"},{"$error":"#REF!"},null,"Sill/Channel","Sill/Channel","Concealed","Straight","Centor Sill Height"]
["Locking System",null,null,null,"Flush Bolts",null,null,null,null,{"$f":"#REF!","v":{"$error":"#REF!"}},{"$error":"#REF!"},{"$error":"#REF!"},{"$error":"#REF!"},{"$error":"#REF!"},null,"<>FALSE",{"$f":"IF(NOT(StraightGuide),R29,S29)","v":"19mm Black Poly+Retainer"},"19mm Black Poly+Retainer","26mm Channel, Gold Aluminium"]
["Flush Bolts",null,{"$f":"IF(ISNA(MATCH(Dropbolt_Style,DropboltStyles,0)),\"è\",\"\")","v":"è"},null,"Round, 210/450",null,null,null,null,{"$f":"#REF!","v":{"$error":"#REF!"}},{"$error":"#REF!"},{"$error":"#REF!"},{"$error":"#REF!"},{"$error":"#REF!"},null,null,{"$f":"IF(NOT(StraightGuide),R30,S30)","v":"19mm Black Polypropylene"},"19mm Black Polypropylene","26mm Channel, Satin Aluminium"]
["Flush Bolt Finish",null,{"$f":"IF(ISNA(MATCH(Dropbolt_Finish,Dropbolt_Finishes,0)),\"è\",\"\")","v":"è"},null,"Stainless Steel",null,null,null,null,{"$f":"#REF!","v":{"$error":"#REF!"}},{"$error":"#REF!"},{"$error":"#REF!"},{"$error":"#REF!"},{"$error":"#REF!"},null,null,{"$f":"IF(NOT(StraightGuide),R31,S31)","v":"Draining Sill, Satin+Timber"},"Draining Sill, Satin+Timber","26mm Channel, Solid Brass",32]
["Keying & Cups",null,{"$f":"IF(Dropbolt_Option=\"\",\"è\",\"\")","v":""},null,"Lower Bolt Keyed",null,null,null,null,{"$f":"#REF!","v":{"$error":"#REF!"}},{"$error":"#REF!"},{"$error":"#REF!"},{"$error":"#REF!"},{"$error":"#REF!"},null,null,{"$f":"IF(NOT(StraightGuide),IF(Door_Open = \"Outward\",R32,FALSE),S32)","v":"Draining Sill, Bronze+Timber"},"Draining Sill, Bronze+Timber","Draining Sill, Bronze no Timber",32]
["Handles",null,null,null,"Yes",null,null,null,null,{"$f":"#REF!","v":{"$error":"#REF!"}},{"$error":"#REF!"},{"$error":"#REF!"},{"$error":"#REF!"},{"$error":"#REF!"},null,null,{"$f":"IF(NOT(StraightGuide),IF(Door_Open = \"Outward\",R33,FALSE),S33)","v":"Narrow Sill, Satin no Timber"},"Narrow Sill, Satin no Timber","Draining Sill, Bronze with Timber",27]
["Left Active Door Catch",null,null,null,"Black Finish Door Catch",null,null,null,null,{"$f":"#REF!","v":{"$error":"#REF!"}},{"$error":"#REF!"},{"$error":"#REF!"},{"$error":"#REF!"},{"$error":"#REF!"},null,null,{"$f":"IF(NOT(StraightGuide),FALSE,S34)","v":false},null,"Draining Sill, Satin no Timber"]
["Right Active Door Catch",null,null,null,"Black Finish Door Catch",null,null,null,null,{"$f":"#REF!","v":{"$error":"#REF!"}},{"$error":"#REF!"},{"$error":"#REF!"},{"$error":"#REF!"},{"$error":"#REF!"},null,null,{"$f":"IF(NOT(StraightGuide),FALSE,S35)","v":false},null,"Draining Sill, Satin with Timber"]
["Panel Catches",null,null,null,"Yes",null,null,null,null,{"$f":"#REF!","v":{"$error":"#REF!"}},{"$error":"#REF!"},{"$error":"#REF!"},{"$error":"#REF!"},{"$error":"#REF!"}]
[null,null,null,null,null,null,null,{"$f":"IF(AND(BothSetsOdd,LeftDoorCatch<>RightDoorCatch,LeftDoorCatch<>\"None\",RightDoorCatch<>\"None\"),\"Door Catch finishes do not match. Please correct your selection\",\"\")","v":""},null,{"$f":"#REF!","v":{"$error":"#REF!"}},{"$error":"#REF!"},{"$error":"#REF!"},{"$error":"#REF!"},{"$error":"#REF!"}]
["Clearances",null,null,null,null,null,null,null,null,{"$f":"#REF!","v":{"$error":"#REF!"}},{"$error":"#REF!"},{"$error":"#REF!"},{"$error":"#REF!"},{"$error":"#REF!"},null,"Seal Colour","Seal Colour","Sill Type","Available Colour"]
[null,null,null,null,null,null,null,null,null,{"$f":"#REF!","v":{"$error":"#REF!"}},{"$error":"#REF!"},{"$error":"#REF!"},{"$error":"#REF!"},{"$error":"#REF!"},null,"<>FALSE",{"$f":"S39","v":"Brown"},{"$f":"IF(#REF!<>\"\",#REF!,IF(#REF!<>\"\",#REF!,IF(#REF!<>\"\",#REF!)))","v":{"$error":"#REF!"}},"Brown"]
[null,null,null,null,null,null,null,null,null,{"$f":"#REF!","v":{"$error":"#REF!"}},{"$error":"#REF!"},{"$error":"#REF!"},{"$error":"#REF!"},0,null,null,{"$f":"IF(R40=\"AQ21\",S40,IF(R40=\"E4QLS\",S40,FALSE))","v":{"$error":"#REF!"}},{"$f":"IF(#REF!<>\"\",#REF!,IF(#REF!<>\"\",#REF!,IF(#REF!<>\"\",#REF!)))","v":{"$error":"#REF!"}},"White"]
[null,null,null,null,null,null,null,null,null,null,null,null,0,0,null,null,{"$f":"IF(R41=\"AQ21\",S41,FALSE)","v":{"$error":"#REF!"}},{"$f":"IF(#REF!<>\"\",#REF!,IF(#REF!<>\"\",#REF!,IF(#REF!<>\"\",#REF!)))","v":{"$error":"#REF!"}},"Black"]
[null,null,null,null,null,null,null,null,"Dropbolts & Accessories",null,null,null,0,{"$error":"#REF!"}]
[null,null,null,null,null,null,{"$f":"IF(Rebated,\"Not End Panels\",\"\")","v":""},null,"Top Bolts",{"$f":"#REF!","v":{"$error":"#REF!"}},{"$f":"COUNTIF($F$105:$H$121,\"Dropbolts\")","v":0},{"$f":"IF(K43>0,\"pcs\",\"\")","v":""},{"$error":"#REF!"},{"$error":"#REF!"},null,"DoorThickness","DoorThickness","Thickness"]
[null,null,null,null,null,null,{"$f":"IF(Rebated,\"Both End Panels only\",\"\")","v":""},null,"Bottom Bolts",{"$f":"#REF!","v":{"$error":"#REF!"}},{"$f":"COUNTIF($F$105:$H$121,\"Dropbolts\")","v":0},{"$f":"IF(K44>0,\"pcs\",\"\")","v":""},{"$error":"#REF!"},0,null,"<>FALSE",{"$f":"IF(AND(LEFT(Channel_Finish,2)<>\"19\",Floor_Guide_Type=\"Concealed\"),R44,\"N/A\")","v":{"$error":"#NAME?"}},"38mm"]
[null,null,null,null,null,null,null,null,"Cups",{"$f":"IF(Cups,\"DBC\"&IF(Dropbolt_Finish=\"Bright Gold\",\"B\",\"S\"),\"\")","v":"DBCS"},{"$f":"IF(J45<>\"\",K44,\"\")","v":0},{"$f":"IF(K45<>\"\",\"pcs\",\"\")","v":"pcs"},0,0,null,null,{"$f":"IF(AND(LEFT(Channel_Finish,2)<>\"19\",Floor_Guide_Type=\"Concealed\"),R45,FALSE)","v":{"$error":"#NAME?"}},"40mm"]
[null,null,null,null,null,null,null,null,"Handles",{"$f":"IF(AND(NOT(Outward),LEFT(Handles,3)=\"Yes\"),\"E22EH\"&Hardware_Finish_Code,\"\")","v":""},{"$f":"IF(J46<>\"\",K44,\"\")","v":""},{"$f":"IF(K46<>\"\",\"pcs\",\"\")","v":""},0,null,null,null,{"$f":"IF(AND(LEFT(Channel_Finish,2)<>\"19\",Floor_Guide_Type=\"Concealed\"),R46,FALSE)","v":{"$error":"#NAME?"}},"42mm"]
[null,null,null,null,null,null,null,null,{"$f":"IF(E29=\"Twinpoint\",\"Refer to Lockcalc for Twinpoint Specification\",\"\")","v":""}]
[null,null,null,null,null,null,null,null,"Catches",null,null,null,null,null,null,"Hardware Finishes","Hardware Finishes",{"$f":"HardwareSheet","v":"CFFS"}]
[null,null,null,null,null,null,null,null,"Door Catch",{"$f":"CatchPartNumber","v":"DS100"},{"$f":"IF(J49<>\"\",SUM(NumDoorCatchesLeft,NumDoorCatchesRight),\"\")","v":0},{"$f":"IF(J49<>\"\",\"pcs\",\"\")","v":"pcs"},null,null,null,"<>FALSE",{"$f":"IF(INDIRECT(ADDRESS(ROW()-ROW(Q46),27,1,TRUE,HardwareSheet))=\"\",FALSE,INDIRECT(ADDRESS(ROW()-ROW(Q46),27,1,TRUE,HardwareSheet)))","v":{"$error":"#REF!"}}]
[null,null,null,null,null,null,null,null,"Panel Catch",{"$f":"IF(OrderPanelCatch,\"DS101\",\"\")","v":""},{"$f":"IF(OrderPanelCatch,SUM(NumPanelCatchesLeft,NumPanelCatchesRight),\"\")","v":""},{"$f":"IF(OrderPanelCatch,\"pcs\",\"\")","v":""},null,null,null,null,{"$f":"IF(INDIRECT(ADDRESS(ROW()-ROW(Q46),27,1,TRUE,HardwareSheet))=\"\",FALSE,INDIRECT(ADDRESS(ROW()-ROW(Q46),27,1,TRUE,HardwareSheet)))","v":{"$error":"#REF!"}}]
[null,null,null,null,null,null,null,null,null,null,null,null,null,null,null,null,{"$f":"IF(INDIRECT(ADDRESS(ROW()-ROW(Q46),27,1,TRUE,HardwareSheet))=\"\",FALSE,INDIRECT(ADDRESS(ROW()-ROW(Q46),27,1,TRUE,HardwareSheet)))","v":{"$error":"#REF!"}}]
[null,null,null,null,null,null,null,null,null,null,null,null,null,null,null,null,{"$f":"IF(INDIRECT(ADDRESS(ROW()-ROW(Q46),27,1,TRUE,HardwareSheet))=\"\",FALSE,INDIRECT(ADDRESS(ROW()-ROW(Q46),27,1,TRUE,HardwareSheet)))","v":{"$error":"#REF!"}}]
["Information",null,null,null,null,null,null,null,"Jamb Thickness",null,{"$f":"#REF!/Proprietary_Conversion*Conversion","v":{"$error":"#REF!"}},{"$f":"IF(NOT(Metric),Working!E74,\"\")","v":""},null,null,null,null,{"$f":"IF(INDIRECT(ADDRESS(ROW()-ROW(Q46),27,1,TRUE,HardwareSheet))=\"\",FALSE,INDIRECT(ADDRESS(ROW()-ROW(Q46),27,1,TRUE,HardwareSheet)))","v":{"$error":"#REF!"}}]
["Panel Width (Nom)",null,null,null,{"$f":"Nominal_Panel_Width","v":0},null,null,null,"Head Thickness",null,{"$f":"#REF!/Proprietary_Conversion*Conversion","v":{"$error":"#REF!"}},{"$f":"IF(NOT(Metric),Working!E75,\"\")","v":""},null,null,null,null,{"$f":"IF(INDIRECT(ADDRESS(ROW()-ROW(Q46),27,1,TRUE,HardwareSheet))=\"\",FALSE,INDIRECT(ADDRESS(ROW()-ROW(Q46),27,1,TRUE,HardwareSheet)))","v":{"$error":"#REF!"}}]
[{"$f":"IF(Rebated,\"Panel Width (Rebated)\",\"\")","v":""},null,null,null,{"$f":"IF(Rebated,Rebate_Panel_Width,\"\")","v":""},null,null,null,"Sill Thickness",null,{"$f":"IF(Custom_Sill,#REF!/Proprietary_Conversion*Conversion,INDEX(T28:T35,MATCH(Channel_Finish,R28:R35,0)))","v":{"$error":"#NAME?"}},{"$f":"IF(NOT(Metric),Working!E76,\"\")","v":""},null,null,null,null,{"$f":"IF(INDIRECT(ADDRESS(ROW()-ROW(Q46),27,1,TRUE,HardwareSheet))=\"\",FALSE,INDIRECT(ADDRESS(ROW()-ROW(Q46),27,1,TRUE,HardwareSheet)))","v":{"$error":"#REF!"}}]
["Panel Height",null,null,null,{"$f":"Panel_Height","v":0},null,null,null,"Framing Side Gap",null,{"$f":"#REF!/Proprietary_Conversion*Conversion","v":{"$error":"#REF!"}},{"$f":"IF(NOT(Metric),Working!E77,\"\")","v":""},null,null,null,null,{"$f":"IF(INDIRECT(ADDRESS(ROW()-ROW(Q46),27,1,TRUE,HardwareSheet))=\"\",FALSE,INDIRECT(ADDRESS(ROW()-ROW(Q46),27,1,TRUE,HardwareSheet)))","v":{"$error":"#REF!"}}]
["Jamb-to-Jamb",null,null,null,{"$f":"Working!B16","v":{"$error":"#REF!"}},null,null,null,"Framing Top Gap",null,{"$f":"#REF!/Proprietary_Conversion*Conversion","v":{"$error":"#REF!"}},{"$f":"IF(NOT(Metric),Working!E78,\"\")","v":""}]
["Frame Width",null,null,null,{"$f":"Jamb_Jamb+2*Jamb_Thickness","v":{"$error":"#REF!"}},null,null,null,"Jamb Clearance",null,{"$f":"#REF!*Conversion","v":{"$error":"#REF!"}},{"$f":"IF(NOT(Metric),Working!E79,\"\")","v":""}]
["Frame Height",null,null,null,{"$f":"Panel_Height+Total_Vertical_Allowance","v":{"$error":"#REF!"}},null,null,null,"Head Clearance",null,{"$f":"#REF!*Conversion","v":{"$error":"#REF!"}},{"$f":"IF(NOT(Metric),Working!E80,\"\")","v":""}]
["Rough Op Width",null,null,null,{"$f":"Jamb_Jamb+Jamb_Thickness*2+Jamb_Clearance*2","v":{"$error":"#REF!"}},null,null,null,"Sill Clearance",null,{"$f":"IF(StraightGuide,#REF!*Conversion,#REF!*Conversion)","v":{"$error":"#REF!"}},{"$f":"IF(NOT(Metric),Working!E81,\"\")","v":""}]
["Rough Op Height",null,null,null,{"$f":"Panel_Height+Total_Vertical_Allowance+#REF!","v":{"$error":"#REF!"}},null,null,null,"Panel-to-Panel Gap",null,{"$f":"#REF!*Conversion","v":{"$error":"#REF!"}},{"$f":"IF(NOT(Metric),Working!E82,\"\")","v":""},null,null,null,null,"Flush Bolt Options"]
[{"$f":"IF(Rebated,\"Rebate Depth\",\"\")","v":""},null,null,null,{"$f":"IF(Rebated,Rebate_Depth,\"\")","v":""},null,null,null,null,null,null,null,"© Centor Products Pty Ltd 2002-11",null,null,null,"Lower Bolt Keyed"]
[{"$f":"A1","v":"McCallum"},null,null,null,null,null,null,null,null,null,null,null,null,null,null,null,"Both Non-Keyed"]
[{"$f":"A2","v":"VIO Folding Door Hardware Calculator V1"},null,null,null,null,null,null,null,null,null,null,null,null,null,null,null,"Lower Bolt Keyed - No Cups"]
[null,null,null,null,null,null,null,null,null,null,null,null,null,null,null,null,"Both Non-Keyed - No Cups"]
[{"$f":"A11","v":"Job ID"},null,null,null,null,{"$f":"E11","v":"Job Site 1"},null,null,"Outside Framing",{"$f":"TEXT(Frame_Width,\"0\") & \"w x \" & TEXT(Frame_Height,\"0\") &\"h\"","v":{"$error":"#REF!"}}]
[{"$f":"A12","v":"Purchase ID"},null,null,null,null,{"$f":"E12","v":"PO/1"},null,null,null,null,null,null,null,null,null,"Special Criteria","Special Drop Down Values"]
[{"$f":"IF(Start_with_Opening,\"Rough Opening Height\",\"Panel Height\")","v":"Panel Height"},null,null,null,null,{"$f":"Panel_Height","v":0}]
[{"$f":"IF(Start_with_Opening,\"Rough Opening Width\",\"Panel Width (Nominal)\")","v":"Panel Width (Nominal)"},null,null,null,null,{"$f":"Nominal_Panel_Width","v":0},null,null,null,null,null,null,null,null,null,"OptionErrors","Floor Guide Type"]
["Framing",null,null,null,null,null,null,null,null,null,null,null,null,null,null,"<>\"\"","Straight"]
[null,null,null,null,null,null,null,null,null,null,null,null,null,null,null,null,"Concealed"]
[null,null,null,null,null,null,null,null,null,null,null,"Head"]
[null,null,null,null,null,null,null,null,null,null,null,{"$f":"TEXT(Head_Length/Conversion,\"0\")&IF(Metric,\"mm\",\"\"\"\")","v":{"$error":"#REF!"}},null,null,null,null,"Hinge Type"]
[null,null,null,null,null,null,null,null,null,null,null,null,null,null,null,null,"FastFix"]
[null,null,null,null,null,null,null,null,null,null,null,null,null,null,null,null,"Morticed"]
[null,null,null,null,null,null,null,null,null,null,null,null,null,null,null,null,"FastFix, Morticed End Carriers"]
[null,null,null,null,null,null,null,null,null,null,null,"Track"]
[null,null,null,null,null,null,null,null,null,null,null,{"$f":"TEXT(Track_Length/Conversion,\"0\")&IF(Metric,\"mm\",\"\"\"\")","v":{"$error":"#REF!"}},null,null,null,"Rebated Panels","Rebated Panels","Rebatable","Not Rebatable"]
[null,null,null,null,null,null,null,null,null,null,null,null,null,null,null,"<>FALSE",{"$f":"IF(Rebatable,R79,S79)","v":"No"},"Yes (rebated panels are wider)","No"]
[null,null,null,null,null,null,null,null,null,null,null,null,null,null,null,null,{"$f":"IF(Rebatable,R80,S80)","v":false},"No",false]
[]
[null,null,null,null,null,null,null,null,null,null,null,null,null,null,null,null,"Door Open"]
[null,null,null,null,null,null,null,null,null,null,null,"Jamb",null,null,null,null,"Outward"]
[null,null,null,null,null,null,null,null,null,null,null,{"$f":"Working!B22","v":{"$error":"#NAME?"}},null,null,null,null,"Inward"]
[]
[null,null,null,null,null,null,null,null,null,null,null,null,null,null,null,null,"Start with"]
[null,null,null,null,null,null,null,null,null,null,null,null,null,null,null,null,"Panel Size"]
[null,null,null,null,null,null,null,null,null,null,null,null,null,null,null,null,"Frame Size"]
[null,null,null,null,null,null,null,null,null,null,null,"Channel",null,null,null,null,"Rough Opening"]
[null,null,null,null,null,null,null,null,null,null,null,{"$f":"TEXT(Sill_Length/Conversion,\"0\")&IF(Metric,\"mm\",\"\"\"\")","v":{"$error":"#REF!"}}]
[null,null,null,null,null,null,null,null,null,null,null,null,null,null,null,null,"Measurements"]
[null,null,null,null,null,null,null,null,null,null,null,null,null,null,null,null,"Metric"]
[null,null,null,null,null,null,null,null,null,null,null,null,null,null,null,null,"Imperial"]
[]
[null,null,null,null,null,null,null,null,null,null,null,"Sill",null,null,null,null,"Handles"]
[null,null,null,null,null,null,null,null,null,null,null,{"$f":"TEXT(Sill_Length/Conversion,\"0\")&IF(Metric,\"mm\",\"\"\"\")","v":{"$error":"#REF!"}},null,null,null,null,"Yes"]
[null,null,null,null,null,null,null,null,null,null,null,null,null,null,null,null,"No"]
[]
[]
[]
[]
[]
[]
[]
[]
["Total # of Panels",null,{"$f":"E15+E16","v":4},null,null,{"$f":"\"handing as viewed \"&IF(Outward,\"(from outside)\",\"(from INSIDE)\")","v":"handing as viewed (from outside)"},null,null,"End Panel Options"]
[{"$f":"IF(Working!F50<>\"\",IF(Working!F50<=Num_Left,\"Left\",\"Right\")&\" Door #\"&Working!F50,\"\")","v":""},null,null,{"$f":"IF(F107=\"\",IF(D108=\"\",\"\",\" \"),IF(Working!F50<=Num_Left,IF(MOD(Working!F50,2)=0,\"\\\",\"/\"),IF(MOD(Total_Num_of_Panels-Working!F50,2)=0,\"\\\",\"/\")))","v":""},null,{"$f":"Working!H50","v":""},{"$f":"IF(F107=\"\",\"\",IF(AND(Working!F50<>Num_Left,Working!F50<>Total_Num_of_Panels-Num_Right+1),IF(Working!F50<=Num_Left,IF(MOD(Working!F50,2)=0,\"\",\"Dropbolts\"),IF(MOD(Total_Num_of_Panels-Working!F50,2)=0,\"Dropbolts\",\"\")),IF(AND(Working!F50=Num_Left,MOD(Num_Left,2)=1,MOD(Num_Right,2)=1),\"Dropbolts\",\"\")))","v":""}]
[{"$f":"IF(Working!F51<>\"\",IF(Working!F51<=Num_Left,\"Left\",\"Right\")&\" Door #\"&Working!F51,\"\")","v":""},null,null,{"$f":"IF(F108=\"\",IF(D109=\"\",\"\",\" \"),IF(Working!F51<=Num_Left,IF(MOD(Working!F51,2)=0,\"\\\",\"/\"),IF(MOD(Total_Num_of_Panels-Working!F51,2)=0,\"\\\",\"/\")))","v":""},null,{"$f":"Working!H51","v":""},{"$f":"IF(F108=\"\",\"\",IF(AND(Working!F51<>Num_Left,Working!F51<>Total_Num_of_Panels-Num_Right+1),IF(Working!F51<=Num_Left,IF(MOD(Working!F51,2)=0,\"\",\"Dropbolts\"),IF(MOD(Total_Num_of_Panels-Working!F51,2)=0,\"Dropbolts\",\"\")),IF(AND(Working!F51=Num_Left,MOD(Num_Left,2)=1,MOD(Num_Right,2)=1),\"Dropbolts\",\"\")))","v":""}]
[{"$f":"IF(Working!F52<>\"\",IF(Working!F52<=Num_Left,\"Left\",\"Right\")&\" Door #\"&Working!F52,\"\")","v":""},null,null,{"$f":"IF(F109=\"\",IF(D110=\"\",\"\",\" \"),IF(Working!F52<=Num_Left,IF(MOD(Working!F52,2)=0,\"\\\",\"/\"),IF(MOD(Total_Num_of_Panels-Working!F52,2)=0,\"\\\",\"/\")))","v":""},null,{"$f":"Working!H52","v":""},{"$f":"IF(F109=\"\",\"\",IF(AND(Working!F52<>Num_Left,Working!F52<>Total_Num_of_Panels-Num_Right+1),IF(Working!F52<=Num_Left,IF(MOD(Working!F52,2)=0,\"\",\"Dropbolts\"),IF(MOD(Total_Num_of_Panels-Working!F52,2)=0,\"Dropbolts\",\"\")),IF(AND(Working!F52=Num_Left,MOD(Num_Left,2)=1,MOD(Num_Right,2)=1),\"Dropbolts\",\"\")))","v":""}]
[{"$f":"IF(Working!F53<>\"\",IF(Working!F53<=Num_Left,\"Left\",\"Right\")&\" Door #\"&Working!F53,\"\")","v":""},null,null,{"$f":"IF(F110=\"\",IF(D111=\"\",\"\",\" \"),IF(Working!F53<=Num_Left,IF(MOD(Working!F53,2)=0,\"\\\",\"/\"),IF(MOD(Total_Num_of_Panels-Working!F53,2)=0,\"\\\",\"/\")))","v":""},null,{"$f":"Working!H53","v":""},{"$f":"IF(F110=\"\",\"\",IF(AND(Working!F53<>Num_Left,Working!F53<>Total_Num_of_Panels-Num_Right+1),IF(Working!F53<=Num_Left,IF(MOD(Working!F53,2)=0,\"\",\"Dropbolts\"),IF(MOD(Total_Num_of_Panels-Working!F53,2)=0,\"Dropbolts\",\"\")),IF(AND(Working!F53=Num_Left,MOD(Num_Left,2)=1,MOD(Num_Right,2)=1),\"Dropbolts\",\"\")))","v":""}]
[{"$f":"IF(Working!F54<>\"\",IF(Working!F54<=Num_Left,\"Left\",\"Right\")&\" Door #\"&Working!F54,\"\")","v":""},null,null,{"$f":"IF(F111=\"\",IF(D112=\"\",\"\",\" \"),IF(Working!F54<=Num_Left,IF(MOD(Working!F54,2)=0,\"\\\",\"/\"),IF(MOD(Total_Num_of_Panels-Working!F54,2)=0,\"\\\",\"/\")))","v":""},null,{"$f":"Working!H54","v":""},{"$f":"IF(F111=\"\",\"\",IF(AND(Working!F54<>Num_Left,Working!F54<>Total_Num_of_Panels-Num_Right+1),IF(Working!F54<=Num_Left,IF(MOD(Working!F54,2)=0,\"\",\"Dropbolts\"),IF(MOD(Total_Num_of_Panels-Working!F54,2)=0,\"Dropbolts\",\"\")),IF(AND(Working!F54=Num_Left,MOD(Num_Left,2)=1,MOD(Num_Right,2)=1),\"Dropbolts\",\"\")))","v":""}]
[{"$f":"IF(Working!F55<>\"\",IF(Working!F55<=Num_Left,\"Left\",\"Right\")&\" Door #\"&Working!F55,\"\")","v":""},null,null,{"$f":"IF(F112=\"\",IF(D113=\"\",\"\",\" \"),IF(Working!F55<=Num_Left,IF(MOD(Working!F55,2)=0,\"\\\",\"/\"),IF(MOD(Total_Num_of_Panels-Working!F55,2)=0,\"\\\",\"/\")))","v":""},null,{"$f":"Working!H55","v":""},{"$f":"IF(F112=\"\",\"\",IF(AND(Working!F55<>Num_Left,Working!F55<>Total_Num_of_Panels-Num_Right+1),IF(Working!F55<=Num_Left,IF(MOD(Working!F55,2)=0,\"\",\"Dropbolts\"),IF(MOD(Total_Num_of_Panels-Working!F55,2)=0,\"Dropbolts\",\"\")),IF(AND(Working!F55=Num_Left,MOD(Num_Left,2)=1,MOD(Num_Right,2)=1),\"Dropbolts\",\"\")))","v":""}]
[{"$f":"IF(Working!F56<>\"\",IF(Working!F56<=Num_Left,\"Left\",\"Right\")&\" Door #\"&Working!F56,\"\")","v":""},null,null,{"$f":"IF(F113=\"\",IF(D114=\"\",\"\",\" \"),IF(Working!F56<=Num_Left,IF(MOD(Working!F56,2)=0,\"\\\",\"/\"),IF(MOD(Total_Num_of_Panels-Working!F56,2)=0,\"\\\",\"/\")))","v":""},null,{"$f":"Working!H56","v":""},{"$f":"IF(F113=\"\",\"\",IF(AND(Working!F56<>Num_Left,Working!F56<>Total_Num_of_Panels-Num_Right+1),IF(Working!F56<=Num_Left,IF(MOD(Working!F56,2)=0,\"\",\"Dropbolts\"),IF(MOD(Total_Num_of_Panels-Working!F56,2)=0,\"Dropbolts\",\"\")),IF(AND(Working!F56=Num_Left,MOD(Num_Left,2)=1,MOD(Num_Right,2)=1),\"Dropbolts\",\"\")))","v":""}]
[{"$f":"IF(Working!F57<>\"\",IF(Working!F57<=Num_Left,\"Left\",\"Right\")&\" Door #\"&Working!F57,\"\")","v":""},null,null,{"$f":"IF(F114=\"\",IF(D115=\"\",\"\",\" \"),IF(Working!F57<=Num_Left,IF(MOD(Working!F57,2)=0,\"\\\",\"/\"),IF(MOD(Total_Num_of_Panels-Working!F57,2)=0,\"\\\",\"/\")))","v":""},null,{"$f":"Working!H57","v":""},{"$f":"IF(F114=\"\",\"\",IF(AND(Working!F57<>Num_Left,Working!F57<>Total_Num_of_Panels-Num_Right+1),IF(Working!F57<=Num_Left,IF(MOD(Working!F57,2)=0,\"\",\"Dropbolts\"),IF(MOD(Total_Num_of_Panels-Working!F57,2)=0,\"Dropbolts\",\"\")),IF(AND(Working!F57=Num_Left,MOD(Num_Left,2)=1,MOD(Num_Right,2)=1),\"Dropbolts\",\"\")))","v":""}]
[{"$f":"IF(Working!F58<>\"\",IF(Working!F58<=Num_Left,\"Left\",\"Right\")&\" Door #\"&Working!F58,\"\")","v":""},null,null,{"$f":"IF(F115=\"\",IF(D116=\"\",\"\",\" \"),IF(Working!F58<=Num_Left,IF(MOD(Working!F58,2)=0,\"\\\",\"/\"),IF(MOD(Total_Num_of_Panels-Working!F58,2)=0,\"\\\",\"/\")))","v":""},null,{"$f":"Working!H58","v":""},{"$f":"IF(F115=\"\",\"\",IF(AND(Working!F58<>Num_Left,Working!F58<>Total_Num_of_Panels-Num_Right+1),IF(Working!F58<=Num_Left,IF(MOD(Working!F58,2)=0,\"\",\"Dropbolts\"),IF(MOD(Total_Num_of_Panels-Working!F58,2)=0,\"Dropbolts\",\"\")),IF(AND(Working!F58=Num_Left,MOD(Num_Left,2)=1,MOD(Num_Right,2)=1),\"Dropbolts\",\"\")))","v":""}]
[{"$f":"IF(Working!F59<>\"\",IF(Working!F59<=Num_Left,\"Left\",\"Right\")&\" Door #\"&Working!F59,\"\")","v":""},null,null,{"$f":"IF(F116=\"\",IF(D117=\"\",\"\",\" \"),IF(Working!F59<=Num_Left,IF(MOD(Working!F59,2)=0,\"\\\",\"/\"),IF(MOD(Total_Num_of_Panels-Working!F59,2)=0,\"\\\",\"/\")))","v":""},null,{"$f":"Working!H59","v":""},{"$f":"IF(F116=\"\",\"\",IF(AND(Working!F59<>Num_Left,Working!F59<>Total_Num_of_Panels-Num_Right+1),IF(Working!F59<=Num_Left,IF(MOD(Working!F59,2)=0,\"\",\"Dropbolts\"),IF(MOD(Total_Num_of_Panels-Working!F59,2)=0,\"Dropbolts\",\"\")),IF(AND(Working!F59=Num_Left,MOD(Num_Left,2)=1,MOD(Num_Right,2)=1),\"Dropbolts\",\"\")))","v":""}]
[{"$f":"IF(Working!F60<>\"\",IF(Working!F60<=Num_Left,\"Left\",\"Right\")&\" Door #\"&Working!F60,\"\")","v":""},null,null,{"$f":"IF(F117=\"\",IF(D118=\"\",\"\",\" \"),IF(Working!F60<=Num_Left,IF(MOD(Working!F60,2)=0,\"\\\",\"/\"),IF(MOD(Total_Num_of_Panels-Working!F60,2)=0,\"\\\",\"/\")))","v":""},null,{"$f":"Working!H60","v":""},{"$f":"IF(F117=\"\",\"\",IF(AND(Working!F60<>Num_Left,Working!F60<>Total_Num_of_Panels-Num_Right+1),IF(Working!F60<=Num_Left,IF(MOD(Working!F60,2)=0,\"\",\"Dropbolts\"),IF(MOD(Total_Num_of_Panels-Working!F60,2)=0,\"Dropbolts\",\"\")),IF(AND(Working!F60=Num_Left,MOD(Num_Left,2)=1,MOD(Num_Right,2)=1),\"Dropbolts\",\"\")))","v":""}]
[{"$f":"IF(Working!F61<>\"\",IF(Working!F61<=Num_Left,\"Left\",\"Right\")&\" Door #\"&Working!F61,\"\")","v":""},null,null,{"$f":"IF(F118=\"\",IF(D119=\"\",\"\",\" \"),IF(Working!F61<=Num_Left,IF(MOD(Working!F61,2)=0,\"\\\",\"/\"),IF(MOD(Total_Num_of_Panels-Working!F61,2)=0,\"\\\",\"/\")))","v":""},null,{"$f":"Working!H61","v":""},{"$f":"IF(F118=\"\",\"\",IF(AND(Working!F61<>Num_Left,Working!F61<>Total_Num_of_Panels-Num_Right+1),IF(Working!F61<=Num_Left,IF(MOD(Working!F61,2)=0,\"\",\"Dropbolts\"),IF(MOD(Total_Num_of_Panels-Working!F61,2)=0,\"Dropbolts\",\"\")),IF(AND(Working!F61=Num_Left,MOD(Num_Left,2)=1,MOD(Num_Right,2)=1),\"Dropbolts\",\"\")))","v":""}]
[{"$f":"IF(Working!F62<>\"\",IF(Working!F62<=Num_Left,\"Left\",\"Right\")&\" Door #\"&Working!F62,\"\")","v":""},null,null,{"$f":"IF(F119=\"\",IF(D120=\"\",\"\",\" \"),IF(Working!F62<=Num_Left,IF(MOD(Working!F62,2)=0,\"\\\",\"/\"),IF(MOD(Total_Num_of_Panels-Working!F62,2)=0,\"\\\",\"/\")))","v":""},null,{"$f":"Working!H62","v":""},{"$f":"IF(F119=\"\",\"\",IF(AND(Working!F62<>Num_Left,Working!F62<>Total_Num_of_Panels-Num_Right+1),IF(Working!F62<=Num_Left,IF(MOD(Working!F62,2)=0,\"\",\"Dropbolts\"),IF(MOD(Total_Num_of_Panels-Working!F62,2)=0,\"Dropbolts\",\"\")),IF(AND(Working!F62=Num_Left,MOD(Num_Left,2)=1,MOD(Num_Right,2)=1),\"Dropbolts\",\"\")))","v":""}]
[{"$f":"IF(Working!F63<>\"\",IF(Working!F63<=Num_Left,\"Left\",\"Right\")&\" Door #\"&Working!F63,\"\")","v":""},null,null,{"$f":"IF(F120=\"\",IF(D121=\"\",\"\",\" \"),IF(Working!F63<=Num_Left,IF(MOD(Working!F63,2)=0,\"\\\",\"/\"),IF(MOD(Total_Num_of_Panels-Working!F63,2)=0,\"\\\",\"/\")))","v":""},null,{"$f":"Working!H63","v":""},{"$f":"IF(F120=\"\",\"\",IF(AND(Working!F63<>Num_Left,Working!F63<>Total_Num_of_Panels-Num_Right+1),IF(Working!F63<=Num_Left,IF(MOD(Working!F63,2)=0,\"\",\"Dropbolts\"),IF(MOD(Total_Num_of_Panels-Working!F63,2)=0,\"Dropbolts\",\"\")),IF(AND(Working!F63=Num_Left,MOD(Num_Left,2)=1,MOD(Num_Right,2)=1),\"Dropbolts\",\"\")))","v":""}]
[{"$f":"IF(Working!F64<>\"\",IF(Working!F64<=Num_Left,\"Left\",\"Right\")&\" Door #\"&Working!F64,\"\")","v":""},null,null,{"$f":"IF(F121=\"\",IF(D122=\"\",\"\",\" \"),IF(Working!F64<=Num_Left,IF(MOD(Working!F64,2)=0,\"\\\",\"/\"),IF(MOD(Total_Num_of_Panels-Working!F64,2)=0,\"\\\",\"/\")))","v":""},null,{"$f":"Working!H64","v":""},{"$f":"IF(F121=\"\",\"\",IF(AND(Working!F64<>Num_Left,Working!F64<>Total_Num_of_Panels-Num_Right+1),IF(Working!F64<=Num_Left,IF(MOD(Working!F64,2)=0,\"\",\"Dropbolts\"),IF(MOD(Total_Num_of_Panels-Working!F64,2)=0,\"Dropbolts\",\"\")),IF(AND(Working!F64=Num_Left,MOD(Num_Left,2)=1,MOD(Num_Right,2)=1),\"Dropbolts\",\"\")))","v":""}]
[{"$f":"IF(Working!F65<>\"\",IF(Working!F65<=Num_Left,\"Left\",\"Right\")&\" Door #\"&Working!F65,\"\")","v":""},null,null,{"$f":"IF(F122=\"\",IF(D123=\"\",\"\",\" \"),IF(Working!F65<=Num_Left,IF(MOD(Working!F65,2)=0,\"\\\",\"/\"),IF(MOD(Total_Num_of_Panels-Working!F65,2)=0,\"\\\",\"/\")))","v":""},null,{"$f":"Working!H65","v":""},{"$f":"IF(F122=\"\",\"\",IF(AND(Working!F65<>Num_Left,Working!F65<>Total_Num_of_Panels-Num_Right+1),IF(Working!F65<=Num_Left,IF(MOD(Working!F65,2)=0,\"\",\"Dropbolts\"),IF(MOD(Total_Num_of_Panels-Working!F65,2)=0,\"Dropbolts\",\"\")),IF(AND(Working!F65=Num_Left,MOD(Num_Left,2)=1,MOD(Num_Right,2)=1),\"Dropbolts\",\"\")))","v":""}]
[{"$f":"IF(Working!F66<>\"\",IF(Working!F66<=Num_Left,\"Left\",\"Right\")&\" Door #\"&Working!F66,\"\")","v":""},null,null,{"$f":"IF(F123=\"\",IF(D124=\"\",\"\",\" \"),IF(Working!F66<=Num_Left,IF(MOD(Working!F66,2)=0,\"\\\",\"/\"),IF(MOD(Total_Num_of_Panels-Working!F66,2)=0,\"\\\",\"/\")))","v":""},null,{"$f":"Working!H66","v":""},{"$f":"IF(F123=\"\",\"\",IF(AND(Working!F66<>Num_Left,Working!F66<>Total_Num_of_Panels-Num_Right+1),IF(Working!F66<=Num_Left,IF(MOD(Working!F66,2)=0,\"\",\"Dropbolts\"),IF(MOD(Total_Num_of_Panels-Working!F66,2)=0,\"Dropbolts\",\"\")),IF(AND(Working!F66=Num_Left,MOD(Num_Left,2)=1,MOD(Num_Right,2)=1),\"Dropbolts\",\"\")))","v":""},null,null,null,null,null,{"$f":"M62","v":"© Centor Products Pty Ltd 2002-11"}]

{"sheet":"Pricing","index":8,"n_rows":359,"n_cols":7,"rows_kept":359,"cut":false,"hidden":true,"merged":[]}
[]
[null,null,"Trade Discount",null,null,0]
[null,null,"Price List",null,null,"List"]
[]
["Product Code","Unit","Description","Trade","SLP","Pricing","Category"]
[null,null,null,"ExGst","ExGst","Inc Gst"]
[]
["Pivot Sets"]
["E22PSN","ea","Pivot set natural",50,0,{"$f":"IF(D9<>\"\",ROUND(IF($F$3=\"SLP\",IF(E9<>\"\",E9,D9),D9)*1.1,2),\"\")","v":55},1]
["E22PSG","ea","Pivot set gold",55,0,60.5,1]
["E22PSL","ea","Pivot set black",55,0,60.5,1]
["E22PSW","ea","Pivot set white",0,0,0,1]
["E22PSM","ea","Pivot set mahogony",0,0,0,1]
["E22PSS","ea","Pivot set stainless",0,0,0,1]
["E22PSSP","ea","Pivot set stainless polished",0,0,0,1]
["E22PSTG","ea","Pivot set Ti gold",0,0,0,1]
["E22PSPC","ea","Pivot set custom powdercoat",0,0,0,1]
[null,null,null,0,0]
["Intermediate Carrier Sets",null,null,0,0]
["E22ICSN","ea","Intermediate carrier set natural",0,0,{"$f":"IF(D20<>\"\",ROUND(IF($F$3=\"SLP\",IF(E20<>\"\",E20,D20),D20)*1.1,2),\"\")","v":0},1]
["E22ICSG","ea","Intermediate carrier set gold",0,0,0,1]
["E22ICSL","ea","Intermediate carrier set black",0,0,0,1]
["E22ICSW","ea","Intermediate carrier set white",0,0,0,1]
["E22ICSM","ea","Intermediate carrier set mahogony",0,0,0,1]
["E22ICSS","ea","Intermediate carrier set stainless",0,0,0,1]
["E22ICSSP","ea","Intermediate carrier set stainless polished",0,0,0,1]
["E22ICSTG","ea","Intermediate carrier set Ti gold",0,0,0,1]
["E22ICSPC","ea","Intermediate carrier set custom powdercoat",0,0,0,1]
[null,null,null,0,0]
["Left Hand Carrier Sets",null,null,0,0]
["E22LCSN","ea","Left hand carrier set natural",0,0,{"$f":"IF(D31<>\"\",ROUND(IF($F$3=\"SLP\",IF(E31<>\"\",E31,D31),D31)*1.1,2),\"\")","v":0},1]
["E22LCSG","ea","Left hand carrier set gold",0,0,0,1]
["E22LCSL","ea","Left hand carrier set black",0,0,0,1]
["E22LCSW","ea","Left hand carrier set white",0,0,0,1]
["E22LCSM","ea","Left hand carrier set mahogony",0,0,0,1]
["E22LCSS","ea","Left hand carrier set stainless",0,0,0,1]
["E22LCSSP","ea","Left hand carrier set stainless polished",0,0,0,1]
["E22LCSTG","ea","Left hand carrier set Ti gold",0,0,0,1]
["E22LCSPC","ea","Left hand carrier set custom powdercoat",0,0,0,1]
[null,null,null,0,0]
["Right Hand Carrier Sets",null,null,0,0]
["E22RCSN","ea","Right hand carrier set natural",0,0,{"$f":"IF(D42<>\"\",ROUND(IF($F$3=\"SLP\",IF(E42<>\"\",E42,D42),D42)*1.1,2),\"\")","v":0},1]
["E22RCSG","ea","Right hand carrier set gold",0,0,0,1]
["E22RCSL","ea","Right hand carrier set black",0,0,0,1]
["E22RCSW","ea","Right hand carrier set white",0,0,0,1]
["E22RCSM","ea","Right hand carrier set mahogony",0,0,0,1]
["E22RCSS","ea","Right hand carrier set stainless",0,0,0,1]
["E22RCSSP","ea","Right hand carrier set stainless polished",0,0,0,1]
["E22RCSTG","ea","Right hand carrier set Ti gold",0,0,0,1]
["E22RCSPC","ea","Right hand carrier set custom powdercoat",0,0,0,1]
[null,null,null,0,0]
["Meeting Carrier Sets",null,null,0,0]
["E22MCSN","ea","Meeting carrier set natural",0,0,{"$f":"IF(D53<>\"\",ROUND(IF($F$3=\"SLP\",IF(E53<>\"\",E53,D53),D53)*1.1,2),\"\")","v":0},1]
["E22MCSG","ea","Meeting carrier set gold",0,0,0,1]
["E22MCSL","ea","Meeting carrier set black",0,0,0,1]
["E22MCSW","ea","Meeting carrier set white",0,0,0,1]
["E22MCSM","ea","Meeting carrier set mahogony",0,0,0,1]
["E22MCSS","ea","Meeting carrier set stainless",0,0,0,1]
["E22MCSSP","ea","Meeting carrier set stainless polished",0,0,0,1]
["E22MCSTG","ea","Meeting carrier set Ti gold",0,0,0,1]
["E22MCSPC","ea","Meeting carrier set custom powdercoat",0,0,0,1]
[null,null,null,0,0]
["Hinge Sets",null,null,0,0]
["E22HSNN","ea","Hinge set natural natural",0,0,{"$f":"IF(D64<>\"\",ROUND(IF($F$3=\"SLP\",IF(E64<>\"\",E64,D64),D64)*1.1,2),\"\")","v":0},1]
["E22HSNL","ea","Hinge set natural black",0,0,0,1]
["E22HSGG","ea","Hinge set gold gold",0,0,0,1]
["E22HSGL","ea","Hinge set gold black",0,0,0,1]
["E22HSLL","ea","Hinge set black black",0,0,0,1]
["E22HSWW","ea","Hinge set white white",0,0,0,1]
["E22HSMM","ea","Hinge set mahogony mahogony",0,0,0,1]
["E22HSS","ea","Hinge set stainless",0,0,0,1]
["E22HSSP","ea","Hinge set stainless polished",0,0,0,1]
["E22HSTG","ea","Hinge set Ti gold",0,0,0,1]
["E22HSPC","ea","Hinge set custom powdercoat",0,0,0,1]
[null,null,null,0,0]
["No Handle Hinge Sets",null,null,0,0]
["E22HNHSN","ea","No handle hinge set natural",0,0,{"$f":"IF(D77<>\"\",ROUND(IF($F$3=\"SLP\",IF(E77<>\"\",E77,D77),D77)*1.1,2),\"\")","v":0},1]
["E22HNHSG","ea","No handle hinge set gold",0,0,0,1]
["E22HNHSL","ea","No handle hinge set black",0,0,0,1]
["E22HNHSW","ea","No handle hinge set white",0,0,0,1]
["E22HNHSM","ea","No handle hinge set mahogony",0,0,0,1]
["E22HNHSS","ea","No handle hinge set stainless",0,0,0,1]
["E22HNHSSP","ea","No handle hinge set stainless polished",0,0,0,1]
["E22HNHSTG","ea","No handle hinge set Ti gold",0,0,0,1]
["E22HNHSPC","ea","No handle hinge set custom powdercoat",0,0,0,1]
[null,null,null,0,0]
["Half Offset Hinge Sets (for equal sized panels)",null,null,0,0]
["E22HHSN","ea","Half offset hinge set natural",0,0,{"$f":"IF(D88<>\"\",ROUND(IF($F$3=\"SLP\",IF(E88<>\"\",E88,D88),D88)*1.1,2),\"\")","v":0},1]
["E22HHSG","ea","Half offset hinge set gold",0,0,0,1]
["E22HHSL","ea","Half offset hinge set black",0,0,0,1]
["E22HHSW","ea","Half offset hinge set white",0,0,0,1]
["E22HHSM","ea","Half offset hinge set mahogony",0,0,0,1]
["E22HHSS","ea","Half offset hinge set stainless",0,0,0,1]
["E22HHSSP","ea","Half offset hinge set stainless polished",0,0,0,1]
["E22HHSTG","ea","Half offset hinge set Ti gold",0,0,0,1]
["E22HHSPC","ea","Half offset hinge set custom powdercoat",0,0,0,1]
[null,null,null,0,0]
["No Handle Half Offset Hinge Sets (for equal sized panels)",null,null,0,0]
["E22HHNHSN","ea","Half offset hinge set no handle natural",0,0,{"$f":"IF(D99<>\"\",ROUND(IF($F$3=\"SLP\",IF(E99<>\"\",E99,D99),D99)*1.1,2),\"\")","v":0},1]
["E22HHNHSG","ea","Half offset hinge set no handle gold",0,0,0,1]
["E22HHNHSL","ea","Half offset hinge set no handle black",0,0,0,1]
["E22HHNHSW","ea","Half offset hinge set no handle white",0,0,0,1]
["E22HHNHSM","ea","Half offset hinge set no handle mahogony",0,0,0,1]
["E22HHNHSS","ea","Half offset hinge set no handle stainless",0,0,0,1]
["E22HHNHSSP","ea","Half offset hinge set no handle stainless polished",0,0,0,1]
["E22HHNHSTG","ea","Half offset hinge set no handle Ti gold",0,0,0,1]
["E22HHNHSPC","ea","Half offset hinge set no handle custom powdercoat",0,0,0,1]
[null,null,null,0,0]
["Concealed Pivot Sets",null,null,0,0]
["E2CPSN","ea","Concealed pivot set natural",0,0,{"$f":"IF(D110<>\"\",ROUND(IF($F$3=\"SLP\",IF(E110<>\"\",E110,D110),D110)*1.1,2),\"\")","v":0},1]
["E2CPSG","ea","Concealed pivot set gold",0,0,0,1]
["E2CPSL","ea","Concealed pivot set black",0,0,0,1]
["E2CPSW","ea","Concealed pivot set white",0,0,0,1]
["E2CPSM","ea","Concealed pivot set mahogony",0,0,0,1]
["E2CPSS","ea","Concealed pivot set stainless",0,0,0,1]
["E2CPSSP","ea","Concealed pivot set stainless polished",0,0,0,1]
["E2CPSTG","ea","Concealed pivot set Ti gold",0,0,0,1]
["E2CPSPC","ea","Concealed pivot set custom powdercoat",0,0,0,1]
[null,null,null,0,0]
["Concealed Intermediate Carrier Sets",null,null,0,0]
["E2CICSN","ea","Concealed intermediate carrier set natural",0,0,{"$f":"IF(D121<>\"\",ROUND(IF($F$3=\"SLP\",IF(E121<>\"\",E121,D121),D121)*1.1,2),\"\")","v":0},1]
["E2CICSG","ea","Concealed intermediate carrier set gold",0,0,0,1]
["E2CICSL","ea","Concealed intermediate carrier set black",0,0,0,1]
["E2CICSW","ea","Concealed intermediate carrier set white",0,0,0,1]
["E2CICSM","ea","Concealed intermediate carrier set mahogony",0,0,0,1]
["E2CICSS","ea","Concealed intermediate carrier set stainless",0,0,0,1]
["E2CICSSP","ea","Concealed intermediate carrier set stainless polished",0,0,0,1]
["E2CICSTG","ea","Concealed intermediate carrier set Ti gold",0,0,0,1]
["E2CICSPC","ea","Concealed intermediate carrier set custom powdercoat",0,0,0,1]
[null,null,null,0,0]
["Concealed Left Hand Carrier Sets",null,null,0,0]
["E2CLCSN","ea","Concealed left hand carrier set natural",0,0,{"$f":"IF(D132<>\"\",ROUND(IF($F$3=\"SLP\",IF(E132<>\"\",E132,D132),D132)*1.1,2),\"\")","v":0},1]
["E2CLCSG","ea","Concealed left hand carrier set gold",0,0,0,1]
["E2CLCSL","ea","Concealed left hand carrier set black",0,0,0,1]
["E2CLCSW","ea","Concealed left hand carrier set white",0,0,0,1]
["E2CLCSM","ea","Concealed left hand carrier set mahogony",0,0,0,1]
["E2CLCSS","ea","Concealed left hand carrier set stainless",0,0,0,1]
["E2CLCSSP","ea","Concealed left hand carrier set stainless polished",0,0,0,1]
["E2CLCSTG","ea","Concealed left hand carrier set Ti gold",0,0,0,1]
["E2CLCSPC","ea","Concealed left hand carrier set custom powdercoat",0,0,0,1]
[null,null,null,0,0]
["Concealed Right Hand Carrier Sets",null,null,0,0]
["E2CRCSN","ea","Concealed right hand carrier set natural",0,0,{"$f":"IF(D143<>\"\",ROUND(IF($F$3=\"SLP\",IF(E143<>\"\",E143,D143),D143)*1.1,2),\"\")","v":0},1]
["E2CRCSG","ea","Concealed right hand carrier set gold",0,0,0,1]
["E2CRCSL","ea","Concealed right hand carrier set black",0,0,0,1]
["E2CRCSW","ea","Concealed right hand carrier set white",0,0,0,1]
["E2CRCSM","ea","Concealed right hand carrier set mahogony",0,0,0,1]
["E2CRCSS","ea","Concealed right hand carrier set stainless",0,0,0,1]
["E2CRCSSP","ea","Concealed right hand carrier set stainless polished",0,0,0,1]
["E2CRCSTG","ea","Concealed right hand carrier set Ti gold",0,0,0,1]
["E2CRCSPC","ea","Concealed right hand carrier set custom powdercoat",0,0,0,1]
[null,null,null,0,0]
["Concealed Meeting Carrier Sets",null,null,0,0]
["E2CMCSN","ea","Concealed meeting carrier set natural",0,0,{"$f":"IF(D154<>\"\",ROUND(IF($F$3=\"SLP\",IF(E154<>\"\",E154,D154),D154)*1.1,2),\"\")","v":0},1]
["E2CMCSG","ea","Concealed meeting carrier set gold",0,0,0,1]
["E2CMCSL","ea","Concealed meeting carrier set black",0,0,0,1]
["E2CMCSW","ea","Concealed meeting carrier set white",0,0,0,1]
["E2CMCSM","ea","Concealed meeting carrier set mahogony",0,0,0,1]
["E2CMCSS","ea","Concealed meeting carrier set stainless",0,0,0,1]
["E2CMCSSP","ea","Concealed meeting carrier set stainless polished",0,0,0,1]
["E2CMCSTG","ea","Concealed meeting carrier set Ti gold",0,0,0,1]
["E2CMCSPC","ea","Concealed meeting carrier set custom powdercoat",0,0,0,1]
[null,null,null,0,0]
["Rebated Left Carrier Sets",null,null,0,0]
["E22RLCSS","ea","Rebated left hand carrier set stainless",0,0,{"$f":"IF(D165<>\"\",ROUND(IF($F$3=\"SLP\",IF(E165<>\"\",E165,D165),D165)*1.1,2),\"\")","v":0},1]
["E22RLCSSP","ea","Rebated left hand carrier set stainless polished",0,0,0,1]
["E22RLCSTG","ea","Rebated left hand carrier set Ti gold",0,0,0,1]
[null,null,null,0,0,0,1]
["Rebated Right Carrier Sets",null,null,0,0,0,1]
["E22RRCSS","ea","Rebated right hand carrier set stainless",0,0,0,1]
["E22RRCSSP","ea","Rebated right hand carrier set stainless polished",0,0,0,1]
["E22RRCSTG","ea","rebated right hand carrier set Ti gold",0,0,0,1]
[null,null,null,0,0]
["Concealed Guide Rebated Left Carrier Sets",null,null,0,0]
["E2CRLCSS","ea","Concealed rebated left hand carrier set stainless",0,0,{"$f":"IF(D175<>\"\",ROUND(IF($F$3=\"SLP\",IF(E175<>\"\",E175,D175),D175)*1.1,2),\"\")","v":0},1]
["E2CRLCSSP","ea","Concealed rebated left hand carrier set stainless polished",0,0,{"$f":"IF(D176<>\"\",ROUND(IF($F$3=\"SLP\",IF(E176<>\"\",E176,D176),D176)*1.1,2),\"\")","v":0},1]
["E2CRLCSTG","ea","Concealed rebated left hand carrier set Ti gold",0,0,{"$f":"IF(D177<>\"\",ROUND(IF($F$3=\"SLP\",IF(E177<>\"\",E177,D177),D177)*1.1,2),\"\")","v":0},1]
[null,null,null,0,0]
["Concealed Guide Rebated Right Carrier Sets",null,null,0,0]
["E2CRRCSS","ea","Concealed rebated right hand carrier set stainless",0,0,{"$f":"IF(D180<>\"\",ROUND(IF($F$3=\"SLP\",IF(E180<>\"\",E180,D180),D180)*1.1,2),\"\")","v":0},1]
["E2CRRCSSP","ea","Concealed rebated right hand carrier set stainless polished",0,0,{"$f":"IF(D181<>\"\",ROUND(IF($F$3=\"SLP\",IF(E181<>\"\",E181,D181),D181)*1.1,2),\"\")","v":0},1]
["E2CRRCSTG","ea","Concealed rebated right hand carrier set Ti gold",0,0,{"$f":"IF(D182<>\"\",ROUND(IF($F$3=\"SLP\",IF(E182<>\"\",E182,D182),D182)*1.1,2),\"\")","v":0},1]
[null,null,null,0,0]
["Mortised Hinges",null,null,0,0]
["E22MHSS","ea"," Mortised hinge set stainless",0,0,{"$f":"IF(D185<>\"\",ROUND(IF($F$3=\"SLP\",IF(E185<>\"\",E185,D185),D185)*1.1,2),\"\")","v":0},1]
["E22MHSSP","ea"," Mortised hinge set stainless polished",0,0,{"$f":"IF(D186<>\"\",ROUND(IF($F$3=\"SLP\",IF(E186<>\"\",E186,D186),D186)*1.1,2),\"\")","v":0},1]
["E22MHSTG","ea"," Mortised hinge set Ti gold",0,0,{"$f":"IF(D187<>\"\",ROUND(IF($F$3=\"SLP\",IF(E187<>\"\",E187,D187),D187)*1.1,2),\"\")","v":0},1]
[null,null,null,0,0]
["No Handle Mortised Hinge Sets",null,null,0,0]
["E22MHNHSS","ea","Mortised hinge no handle set stainless",0,0,{"$f":"IF(D190<>\"\",ROUND(IF($F$3=\"SLP\",IF(E190<>\"\",E190,D190),D190)*1.1,2),\"\")","v":0},1]
["E22MHNHSSP","ea","Mortised hinge no handle set stainless polished",0,0,{"$f":"IF(D191<>\"\",ROUND(IF($F$3=\"SLP\",IF(E191<>\"\",E191,D191),D191)*1.1,2),\"\")","v":0},1]
["E22MHNHSTG","ea","Mortised hinge no handle set Ti gold",0,0,{"$f":"IF(D192<>\"\",ROUND(IF($F$3=\"SLP\",IF(E192<>\"\",E192,D192),D192)*1.1,2),\"\")","v":0},1]
[null,null,null,0,0]
["Half Offset Mortised Hinges (for equal sized panels)",null,null,0,0]
["E22MHHSS","ea","Mortised half offset hinge set stainless",0,0,{"$f":"IF(D195<>\"\",ROUND(IF($F$3=\"SLP\",IF(E195<>\"\",E195,D195),D195)*1.1,2),\"\")","v":0},1]
["E22MHHSSP","ea","Mortised half offset hinge set stainless polished",0,0,{"$f":"IF(D196<>\"\",ROUND(IF($F$3=\"SLP\",IF(E196<>\"\",E196,D196),D196)*1.1,2),\"\")","v":0},1]
["E22MHHSTG","ea","Mortised half offset hinge set Ti gold",0,0,{"$f":"IF(D197<>\"\",ROUND(IF($F$3=\"SLP\",IF(E197<>\"\",E197,D197),D197)*1.1,2),\"\")","v":0},1]
[null,null,null,0,0]
["No Handle Half Offset Mortised Hinges (for equal sized panels)",null,null,0,0]
["E22MHHNHSS","ea","Mortised half offset hinge no handle set stainless",0,0,{"$f":"IF(D200<>\"\",ROUND(IF($F$3=\"SLP\",IF(E200<>\"\",E200,D200),D200)*1.1,2),\"\")","v":0},1]
["E22MHHNHSSP","ea","Mortised half offset hinge no handle set stainless polished",0,0,{"$f":"IF(D201<>\"\",ROUND(IF($F$3=\"SLP\",IF(E201<>\"\",E201,D201),D201)*1.1,2),\"\")","v":0},1]
["E22MHHNHSTG","ea","Mortised half offset hinge no handle set Ti gold",0,0,{"$f":"IF(D202<>\"\",ROUND(IF($F$3=\"SLP\",IF(E202<>\"\",E202,D202),D202)*1.1,2),\"\")","v":0},1]
[null,null,null,0,0]
["Concealed Guide Mortise Intermediate Carrier Sets",null,null,0,0]
["E2CMICSS","ea","Concealed mortise intermediate carrier set stainless",0,0,{"$f":"IF(D205<>\"\",ROUND(IF($F$3=\"SLP\",IF(E205<>\"\",E205,D205),D205)*1.1,2),\"\")","v":0},1]
["E2CMICSSP","ea","Concealed mortise intermediate carrier set stainless polish",0,0,{"$f":"IF(D206<>\"\",ROUND(IF($F$3=\"SLP\",IF(E206<>\"\",E206,D206),D206)*1.1,2),\"\")","v":0},1]
["E2CMICSTG","ea","Concealed mortise intermediate carrier set Ti gold",0,0,{"$f":"IF(D207<>\"\",ROUND(IF($F$3=\"SLP\",IF(E207<>\"\",E207,D207),D207)*1.1,2),\"\")","v":0},1]
[null,null,null,0,0]
["External Pull Handles",null,null,0,0]
["E22EHN","ea","External handle natural",0,0,{"$f":"IF(D210<>\"\",ROUND(IF($F$3=\"SLP\",IF(E210<>\"\",E210,D210),D210)*1.1,2),\"\")","v":0},1]
["E22EHG","ea","External handle bright gold",0,0,0,1]
["E22EHL","ea","External handle black",0,0,0,1]
["E22EHW","ea","External handle white",0,0,0,1]
["E22EHM","ea","External handle mahogony",0,0,0,1]
["E22EHS","ea","External handle stainless",0,0,0,1]
["E22EHSP","ea","External handle stainless polished",0,0,0,1]
["E22EHTG","ea","External handle Ti gold",0,0,0,1]
["E22EHPC","ea","External handle custom powdercoat",0,0,0,1]
[null,null,null,0,0]
["Wall Pivots",null,null,0,0]
["E22WPSN","ea","Wall pivot set natural",0,0,{"$f":"IF(D221<>\"\",ROUND(IF($F$3=\"SLP\",IF(E221<>\"\",E221,D221),D221)*1.1,2),\"\")","v":0},1]
["E22WPSG","ea","Wall pivot set gold",0,0,0,1]
["E22WPSL","ea","Wall pivot set black",0,0,0,1]
["E22WPSW","ea","Wall pivot set white",0,0,0,1]
["E22WPSM","ea","Wall pivot set mahogony",0,0,0,1]
["E22WPSS","ea","Wall pivot set stainless",0,0,0,1]
["E22WPSSP","ea","Wall pivot set stainless polished",0,0,0,1]
["E22WPSTG","ea","Wall pivot set Ti gold",0,0,0,1]
["E22WPSPC","ea","Wall pivot set custom powdercoat",0,0,0,1]
[null,null,null,0,0]
["Dropbolt Cups",null,null,0,0]
["DBCB","ea","Dropbolt Cup Brass",0,0,{"$f":"IF(D232<>\"\",ROUND(IF($F$3=\"SLP\",IF(E232<>\"\",E232,D232),D232)*1.1,2),\"\")","v":0},5]
["DBCS","ea","Dropbolt Cup Stainless",0,0,{"$f":"IF(D233<>\"\",ROUND(IF($F$3=\"SLP\",IF(E233<>\"\",E233,D233),D233)*1.1,2),\"\")","v":0},5]
[null,null,null,0,0]
["Flush Bolts",null,null,0,0]
["DBFO200KRC","ea","Dropbolt Forte 200 Keyed Round Chrome",0,0,{"$f":"IF(D236<>\"\",ROUND(IF($F$3=\"SLP\",IF(E236<>\"\",E236,D236),D236)*1.1,2),\"\")","v":0},5]
["DBFO200KRG","ea","Dropbolt Forte 200 Keyed Round Gold",0,0,0,5]
["DBFO200KRN","ea","Dropbolt Forte 200 Keyed Round Satin",0,0,0,5]
["DBFO200KRX","ea","Dropbolt Forte 200 Keyed Round Brushed Metallic",0,0,0,5]
["DBFO200NRC","ea","Dropbolt Forte 200 Non-Keyed Round Chrome",0,0,0,5]
["DBFO200NRG","ea","Dropbolt Forte 200 Non-Keyed Round Gold",0,0,0,5]
["DBFO200NRN","ea","Dropbolt Forte 200 Non-Keyed Round Satin",0,0,0,5]
["DBFO200NRX","ea","Dropbolt Forte 200 Non-Keyed Round Brushed Metallic",0,0,0,5]
["DBFO400KRC","ea","Dropbolt Forte 400 Keyed Round Chrome",0,0,0,5]
["DBFO400KRG","ea","Dropbolt Forte 400 Keyed Round Gold",0,0,0,5]
["DBFO400KRN","ea","Dropbolt Forte 400 Keyed Round Satin",0,0,0,5]
["DBFO400KRX","ea","Dropbolt Forte 400 Keyed Round Brushed Metallic",0,0,0,5]
["DBFO400NRC","ea","Dropbolt Forte 400 Non-Keyed Round Chrome",0,0,0,5]
["DBFO400NRG","ea","Dropbolt Forte 400 Non-Keyed Round Gold",0,0,0,5]
["DBFO400NRN","ea","Dropbolt Forte 400 Non-Keyed Round Satin",0,0,0,5]
["DBFO400NRX","ea","Dropbolt Forte 400 Non-Keyed Round Brushed Metallic",0,0,0,5]
["DBFO600NRC","ea","Dropbolt Forte 600 Non-Keyed Round Chrome",0,0,0,5]
["DBFO600NRG","ea","Dropbolt Forte 600 Non-Keyed Round Gold",0,0,0,5]
["DBFO600NRN","ea","Dropbolt Forte 600 Non-Keyed Round Satin",0,0,0,5]
["DBFO600NRX","ea","Dropbolt Forte 600 Non-Keyed Round Brushed Metallic",0,0,0,5]
["DBHA200KSG","ea","Dropbolt Harmony 200 Keyed Square Gold",0,0,0,5]
["DBHA200KSN","ea","Dropbolt Harmony 200 Keyed Square Satin",0,0,0,5]
["DBHA200NSG","ea","Dropbolt Harmony 200 Non-Keyed Square Gold",0,0,0,5]
["DBHA200NSN","ea","Dropbolt Harmony 200 Non-Keyed Square Satin",0,0,0,5]
["DBHA400NSG","ea","Dropbolt Harmony 400 Non-Keyed Square Gold",0,0,0,5]
["DBHA400NSN","ea","Dropbolt Harmony 400 Non-Keyed Square Satin",0,0,0,5]
["DBOC200KRG","ea","Dropbolt Overture Concealed 200 Keyed Round Gold",0,0,0,5]
["DBOC200KRC","ea","Dropbolt Overture Concealed 200 Keyed Round Chrome",0,0,0,5]
["DBOC200KRN","ea","Dropbolt Overture Concealed 200 Keyed Round Satin",0,0,0,5]
["DBOC200KRX","ea","Dropbolt Overture Concealed 200 Keyed Round Satin Brushed",0,0,0,5]
["DBOC200NRG","ea","Dropbolt Overture Concealed 200 Non-Keyed Round Gold",0,0,0,5]
["DBOC200NRC","ea","Dropbolt Overture Concealed 200 Non-Keyed Round Chrome",0,0,0,5]
["DBOC200NRN","ea","Dropbolt Overture Concealed 200 Non-Keyed Round Satin",0,0,{"$f":"IF(D268<>\"\",ROUND(IF($F$3=\"SLP\",IF(E268<>\"\",E268,D268),D268)*1.1,2),\"\")","v":0},5]
["DBOC200NRX","ea","Dropbolt Overture Concealed 200 Non-Keyed Round Satin Brushed",0,0,0,5]
["DBOV200KRG","ea","Dropbolt Overture 200 Keyed Round Gold",0,0,0,5]
["DBOV200KRN","ea","Dropbolt Overture 200 Keyed Round Satin",0,0,0,5]
["DBOV200KRC","ea","Dropbolt Overture 200 Keyed Round Chrome",0,0,0,5]
["DBOV200KRX","ea","Dropbolt Overture 200 Keyed Round Brushed Metallic",0,0,0,5]
["DBOV200NRG","ea","Dropbolt Overture 200 Non-Keyed Round Gold",0,0,0,5]
["DBOV200NRC","ea","Dropbolt Overture 200 Non-Keyed Round Chrome",0,0,0,5]
["DBOV200NRN","ea","Dropbolt Overture 200 Non-Keyed Round Satin",0,0,0,5]
["DBOV200NRX","ea","Dropbolt Overture 200 Non-Keyed Round Brushed Metallic",0,0,0,5]
["DBOV400NRG","ea","Dropbolt Overture 400 Non-Keyed Round Gold",0,0,0,5]
["DBOV400NRN","ea","Dropbolt Overture 400 Non-Keyed Round Satin",0,0,0,5]
["DBOV400NRC","ea","Dropbolt Overture 400 Non-Keyed Round Chrome",0,0,0,5]
["DBOV400NRX","ea","Dropbolt Overture 400 Non-Keyed Round Brushed Metallic",0,0,0,5]
["DBSY200KRG","ea","Dropbolt Forte 25 200 Keyed Round Gold",0,0,0,5]
["DBSY200KRN","ea","Dropbolt Forte 25 200 Keyed Round Satin",0,0,0,5]
["DBSY200KRX","ea","Dropbolt Forte 25 200 Keyed Round Brushed Metallic",0,0,0,5]
["DBSY200NRG","ea","Dropbolt Forte 25 200 Non-Keyed Round Gold",0,0,0,5]
["DBSY200NRN","ea","Dropbolt Forte 25 200 Non-Keyed Round Satin",0,0,0,5]
["DBSY200NRX","ea","Dropbolt Forte 25 200 Non-Keyed Round Brushed Metallic",0,0,0,5]
["DBSY400NRG","ea","Dropbolt Forte 25 400 Non-Keyed Round Gold",0,0,0,5]
["DBSY400NRN","ea","Dropbolt Forte 25 400 Non-Keyed Round Satin",0,0,0,5]
["DBSY400NRX","ea","Dropbolt Forte 25 400 Non-Keyed Round Brushed Metallic",0,0,0,5]
["DBSY600NRG","ea","Dropbolt Forte 25 600 Non-Keyed Round Gold",0,0,0,5]
["DBSY600NRN","ea","Dropbolt Forte 25 600 Non-Keyed Round Satin",0,0,0,5]
["DBSY600NRX","ea","Dropbolt Forte 25 600 Non-Keyed Round Brushed Metallic",0,0,0,5]
[null,null,null,0,0]
["Self Draining Sill",null,null,0,0]
["E2IS4N","ea","E2 Inward Sill 4mtr Satin",0,0,{"$f":"IF(D296<>\"\",ROUND(IF($F$3=\"SLP\",IF(E296<>\"\",E296,D296),D296)*1.1,2),\"\")","v":0},3]
["E2IS4NT","ea","E2 Inward Sill 4mtr Satin (Timber)",0,0,0,3]
["E2IS4R","ea","E2 Inward Sill 4mtr Bronze",0,0,0,3]
["E2IS4RT","ea","E2 Inward Sill 4mtr Bronze (Timber)",0,0,0,3]
["E2IS6N","ea","E2 Inward Sill 6mtr Satin",0,0,0,3]
["E2IS6NT","ea","E2 Inward Sill 6mtr Satin (Timber)",0,0,0,3]
["E2IS6R","ea","E2 Inward Sill 6mtr Bronze",0,0,0,3]
["E2IS6RT","ea","E2 Inward Sill 6mtr Bronze (Timber)",0,0,0,3]
["E2CS30NKWL","ea","E2 & E3 concealed sill assembly 3.0m natural anodised/kwila",0,0,0,3]
["E2CS30RKWL","ea","E2&E3concealedsillassembly3.0mbronzeanod",0,0,0,3]
["E2CS42NKWL","ea","E2&E3concealedsillassembly4.2mnaturalano",0,0,0,3]
["E2CS42RKWL","ea","E2&E3concealedsillassembly4.2mbronzeanod",0,0,0,3]
["E2CS48NKWL","ea","E2&E3concealedsillassembly4.8mnaturalano",0,0,0,3]
["E2CS48RKWL","ea","E2&E3concealedsillassembly4.8mbronzeanod",0,0,0,3]
["E2CS57NKWL","ea","E2&E3concealedsillassembly57mnaturalanod",0,0,0,3]
["E2CS57RKWL","ea","E2&E3concealedsillassembly57mbronzeanodi",0,0,0,3]
["E2CIS57NKWL","ea","E2 & E3 concealed inswing sill assembly 5.7m natural anodised/kwila",0,0,0,3]
["E2CNS4","ea","E2+/E3 concealed narrow external sill 4000 mill",0,0,0,3]
["E2CNS4N","ea","E2+/E3 concealed narrow external sill 4000 natural",0,0,0,3]
["E2CNS6","ea","E2+/E3 concealed narrow external sill 6000 mill",0,0,0,3]
["E2CNS6N","ea","E2+/E3 concealed narrow external sill 6000 natural",0,0,0,3]
["E2CSEG","pr","E2 concealed sill end gasket (pr)",0,0,0,3]
[null,null,null,0,0]
["Track",null,null,0,0]
["14TA2G","ea","2000mm Track Gold",0,0,{"$f":"IF(D320<>\"\",ROUND(IF($F$3=\"SLP\",IF(E320<>\"\",E320,D320),D320)*1.1,2),\"\")","v":0},2]
["14TA2N","ea","2000mm Track Satin",0,0,0,2]
["14TA3G","ea","3000mm Track Gold",0,0,0,2]
["14TA3N","ea","3000mm Track Satin",0,0,0,2]
["14TA4G","ea","4000mm Track Gold",0,0,0,2]
["14TA4N","ea","4000mm Track Satin",0,0,0,2]
["14TA6G","ea","6000mm Track Gold",0,0,0,2]
["14TA6N","ea","6000mm Track Satin",0,0,0,2]
[null,null,null,0,0]
["Channel",null,null,0,0]
["E2FCA2G","ea","2000mm Channel Gold",0,0,{"$f":"IF(D330<>\"\",ROUND(IF($F$3=\"SLP\",IF(E330<>\"\",E330,D330),D330)*1.1,2),\"\")","v":0},3]
["E2FCA2N","ea","2000mm Channel Satin",0,0,0,3]
["E2FCA3G","ea","3000mm Channel Gold",0,0,0,3]
["E2FCA3N","ea","3000mm Channel Satin",0,0,0,3]
["E2FCA4G","ea","4000mm Channel Gold",0,0,0,3]
["E2FCA4N","ea","4000mm Channel Satin",0,0,0,3]
["E2FCA6G","ea","6000mm Channel Gold",0,0,0,3]
["E2FCA6N","ea","6000mm Channel Satin",0,0,0,3]
["E2FCB2","ea","2000mm Channel Brass",0,0,0,3]
["E2FCB3","ea","3000mm Channel Brass",0,0,0,3]
["E2FCB4","ea","4000mm Channel Brass",0,0,0,3]
["E2FCB6","ea","6000mm Channel Brass",0,0,0,3]
["E22FCP4","ea","4000mm Polypropylene Channel Black",0,0,0,3]
["E22FCP6","ea","6000mm Polypropylene Channel Black",0,0,0,3]
[null,null,null,0,0]
["Channel Retainer",null,null,0,0]
["E22FCR4GP","ea","4000mm Channel Gold",0,0,{"$f":"IF(D346<>\"\",ROUND(IF($F$3=\"SLP\",IF(E346<>\"\",E346,D346),D346)*1.1,2),\"\")","v":0},3]
["E22FCR4NP","ea","4000mm Channel Satin",0,0,{"$f":"IF(D347<>\"\",ROUND(IF($F$3=\"SLP\",IF(E347<>\"\",E347,D347),D347)*1.1,2),\"\")","v":0},3]
["E22FCR6GP","ea","6000mm Channel Gold",0,0,{"$f":"IF(D348<>\"\",ROUND(IF($F$3=\"SLP\",IF(E348<>\"\",E348,D348),D348)*1.1,2),\"\")","v":0},3]
["E22FCR6NP","ea","6000mm Channel Satin",0,0,{"$f":"IF(D349<>\"\",ROUND(IF($F$3=\"SLP\",IF(E349<>\"\",E349,D349),D349)*1.1,2),\"\")","v":0},3]
[null,null,null,0,0]
["Weatherseal",null,null,0,0]
["AQ21B","mtr","AQ21 Seal Brown",0,0,{"$f":"IF(D352<>\"\",ROUND(IF($F$3=\"SLP\",IF(E352<>\"\",E352,D352),D352)*1.1,2),\"\")","v":0},4]
["AQ21L","mtr","AQ21 Seal Black",0,0,0,4]
["AQ21W","mtr","AQ21 Seal White",0,0,0,4]
["E4QLSB","mtr","E4QLS Seal Brown",0,0,0,4]
["E4QLSW","mtr","E4QLS Seal White",0,0,0,4]
["QLB7000","mtr","QLB7000 Seal (Brown only)",0,0,0,4]
[]
["Prices subject to change without notice.",null,null,null,null,""]